{"text_format":"1","workbook":"xlsx","n_sheets":4,"sheets":["Cerere de Finantare","Anexa 1","Anexa 2","Anexa 3"],"not_rendered":{"charts":0,"images":1,"macros":1,"external_links":0,"defined_names":1,"comments":0,"pivot_tables":0},"unopened":[],"bounds":{"document_bytes":16777216,"sheet_cells":100000,"rows_first":2000,"rows_last":500,"rows_between":2000,"halvings":0,"cell_chars":16384,"cell_head_chars":4096},"cells_cut":0,"cells_raw":0,"read":"whole","date_system":"1900"}

{"sheet":"Cerere de Finantare","index":0,"n_rows":851,"n_cols":61,"rows_kept":851,"cut":false,"hidden":false,"merged":[[702,52,702,56],[12,21,13,21],[715,52,715,56],[715,57,715,62],[715,0,715,31],[707,0,707,61],[716,44,716,51],[717,44,717,51],[718,44,718,51],[719,44,719,51],[728,1,728,62],[730,1,730,62],[708,52,708,56],[708,57,708,62],[709,52,709,56],[709,57,709,62],[710,52,710,56],[710,57,710,62],[711,52,711,56],[711,57,711,62],[713,52,713,56],[713,57,713,62],[714,52,714,56],[714,57,714,62],[704,37,704,43],[705,0,705,31],[705,32,705,36],[705,37,705,43],[3,7,3,43],[676,0,676,31],[676,37,676,43],[676,44,676,51],[676,52,676,56],[676,57,676,62],[682,52,682,62],[688,0,688,31],[688,32,688,36],[688,37,688,43],[688,52,688,56],[688,57,688,62],[698,37,698,43],[698,44,698,51],[698,52,698,56],[698,57,698,62],[701,32,701,36],[701,37,701,43],[701,44,701,51],[701,52,701,56],[701,57,701,62],[692,32,692,36],[703,44,706,51],[702,44,702,51],[703,52,706,56],[703,57,706,62],[702,0,702,31],[702,37,702,43],[708,37,708,43],[709,37,709,43],[710,37,710,43],[711,37,711,43],[713,37,713,43],[714,37,714,43],[32,1,32,61],[34,1,37,61],[39,1,48,61],[443,0,443,44],[617,0,617,46],[528,0,528,45],[156,48,156,56],[174,26,174,51],[126,50,126,57],[156,34,156,36],[290,0,290,18],[308,0,308,33],[712,37,712,43],[712,52,712,56],[700,32,700,36],[700,37,700,43],[700,44,700,51],[700,52,700,56],[700,57,700,62],[698,32,698,36],[702,57,702,62],[703,0,703,31],[703,32,703,36],[703,37,703,43],[704,0,704,31],[704,32,704,36],[755,1,755,33],[754,43,754,54],[755,43,755,52],[739,5,739,62],[740,5,740,62],[741,5,741,62],[742,5,742,62],[743,5,743,62],[744,5,744,62],[745,5,745,62],[746,5,746,62],[747,5,747,62],[748,5,748,62],[749,5,749,62],[750,5,750,62],[721,0,721,62],[723,0,723,62],[753,3,753,62],[754,0,754,32],[733,0,733,62],[739,0,739,2],[740,0,740,2],[741,0,741,2],[742,0,742,2],[743,0,743,2],[744,0,744,2],[745,0,745,2],[746,0,746,2],[747,0,747,2],[731,1,731,62],[732,1,732,62],[750,0,750,2],[751,0,751,2],[734,3,734,62],[735,3,735,62],[736,3,736,62],[751,5,751,62],[737,3,737,62],[738,3,738,62],[718,32,718,36],[718,37,718,43],[718,52,718,56],[718,57,718,62],[706,32,706,36],[706,37,706,43],[716,32,716,36],[716,37,716,43],[716,52,716,56],[716,57,716,62],[712,57,712,62],[720,0,720,62],[719,52,719,56],[719,57,719,62],[712,0,712,31],[726,33,726,61],[725,0,725,62],[717,57,717,62],[748,0,748,2],[749,0,749,2],[722,1,722,36],[724,1,724,61],[726,1,726,30],[719,32,719,36],[719,37,719,43],[696,32,696,36],[696,37,696,43],[696,44,696,51],[696,52,696,56],[696,57,696,62],[700,0,700,31],[706,0,706,31],[716,0,716,31],[717,0,717,31],[718,0,718,31],[719,0,719,31],[701,0,701,31],[699,32,699,36],[699,37,699,43],[699,44,699,51],[699,52,699,56],[699,57,699,62],[697,32,697,36],[697,37,697,43],[697,44,697,51],[697,52,697,56],[697,57,697,62],[717,32,717,36],[717,37,717,43],[717,52,717,56],[709,0,709,31],[708,0,708,31],[710,0,710,31],[711,0,711,31],[713,0,713,31],[714,0,714,31],[692,37,692,43],[692,44,692,51],[692,52,692,56],[692,57,692,62],[691,32,691,36],[691,37,691,43],[691,44,691,51],[691,52,691,56],[691,57,691,62],[695,32,695,36],[695,37,695,43],[695,44,695,51],[695,52,695,56],[695,57,695,62],[693,32,693,36],[693,37,693,43],[693,44,693,51],[693,52,693,56],[693,57,693,62],[694,32,694,36],[694,37,694,43],[694,44,694,51],[694,52,694,56],[694,57,694,62],[684,37,684,43],[684,44,684,51],[684,52,684,56],[684,57,684,62],[685,32,685,36],[685,37,685,43],[685,44,685,51],[685,52,685,56],[685,57,685,62],[684,32,684,36],[686,37,686,43],[686,44,686,51],[686,52,686,56],[686,57,686,62],[687,32,687,36],[687,37,687,43],[687,52,687,56],[687,57,687,62],[681,57,681,62],[683,32,683,36],[683,37,683,43],[683,44,683,51],[683,52,683,56],[683,57,683,62],[692,0,692,31],[693,0,693,31],[694,0,694,31],[695,0,695,31],[696,0,696,31],[698,0,698,31],[699,0,699,31],[687,0,687,31],[681,0,681,31],[683,0,683,31],[684,0,684,31],[685,0,685,31],[689,0,689,31],[690,0,690,31],[691,0,691,31],[697,0,697,31],[689,32,689,36],[689,37,689,43],[689,44,689,51],[689,52,689,56],[689,57,689,62],[690,32,690,36],[690,37,690,43],[690,44,690,51],[690,52,690,56],[690,57,690,62],[686,0,686,31],[682,0,682,31],[682,37,682,43],[682,44,682,51],[679,0,679,31],[679,32,679,36],[679,37,679,43],[679,44,679,51],[679,52,679,56],[679,57,679,62],[680,0,680,31],[680,32,680,36],[680,37,680,43],[680,44,680,51],[680,52,680,56],[680,57,680,62],[677,0,677,31],[677,32,677,36],[677,37,677,43],[677,44,677,51],[677,52,677,56],[677,57,677,62],[678,0,678,31],[678,32,678,36],[678,37,678,43],[678,44,678,51],[678,52,678,56],[678,57,678,62],[681,32,681,36],[681,37,681,43],[681,44,681,51],[681,52,681,56],[675,32,675,36],[675,37,675,43],[675,44,675,51],[675,52,675,56],[675,57,675,62],[673,0,673,31],[665,32,668,62],[668,0,668,17],[668,18,668,19],[670,0,671,56],[670,57,670,62],[671,57,671,62],[672,0,672,62],[673,32,673,36],[673,37,673,43],[673,44,673,51],[673,52,673,56],[673,57,673,62],[674,32,674,51],[674,52,674,62],[674,0,674,31],[675,0,675,31],[663,0,663,31],[664,0,664,31],[663,32,664,62],[666,0,666,31],[667,0,667,31],[669,0,669,31],[615,0,615,3],[615,4,615,43],[615,44,615,62],[612,0,612,3],[612,4,612,43],[612,44,612,52],[612,53,612,62],[613,0,613,3],[613,4,613,43],[613,44,613,52],[613,53,613,62],[614,0,614,3],[614,4,614,43],[614,44,614,52],[614,53,614,62],[657,0,657,3],[657,4,657,43],[657,44,657,52],[657,53,657,62],[658,0,658,3],[658,4,658,43],[658,44,658,62],[655,0,655,3],[655,4,655,43],[655,44,655,52],[655,53,655,62],[611,44,611,52],[611,53,611,62],[606,0,606,3],[606,4,606,43],[606,44,606,52],[606,53,606,62],[607,0,607,3],[607,4,607,43],[607,44,607,52],[607,53,607,62],[608,0,608,3],[608,4,608,43],[608,44,608,52],[608,53,608,62],[604,0,604,3],[604,4,604,43],[604,44,604,52],[604,53,604,62],[605,0,605,3],[605,4,605,43],[605,44,605,52],[605,53,605,62],[609,0,609,3],[609,4,609,43],[609,44,609,52],[609,53,609,62],[610,0,610,3],[610,4,610,43],[610,44,610,52],[610,53,610,62],[611,0,611,3],[611,4,611,43],[597,0,597,43],[599,0,599,62],[600,0,600,3],[600,4,600,43],[600,44,600,52],[600,53,600,62],[602,0,602,3],[602,4,602,43],[602,44,602,52],[602,53,602,62],[603,0,603,3],[603,4,603,43],[603,44,603,52],[603,53,603,62],[598,0,598,3],[598,4,598,43],[598,44,598,52],[598,53,598,62],[595,0,595,3],[595,4,595,43],[595,44,595,52],[595,53,595,62],[596,0,596,3],[596,4,596,43],[596,44,596,52],[596,53,596,62],[591,0,591,3],[591,4,591,43],[591,44,591,52],[591,53,591,62],[592,0,592,3],[592,4,592,43],[592,44,592,52],[592,53,592,62],[593,0,593,3],[593,4,593,43],[593,44,593,52],[593,53,593,62],[589,0,589,3],[589,4,589,43],[589,44,589,52],[589,53,589,62],[590,0,590,3],[590,4,590,43],[590,44,590,52],[590,53,590,62],[586,0,586,3],[586,4,586,43],[586,44,586,52],[586,53,586,62],[587,0,587,3],[587,4,587,43],[587,44,587,52],[587,53,587,62],[594,0,594,3],[594,4,594,43],[594,44,594,52],[594,53,594,62],[580,53,580,62],[581,7,581,62],[582,0,582,62],[574,26,574,42],[574,43,574,49],[574,50,574,56],[574,57,574,62],[571,0,571,62],[572,0,572,25],[572,26,572,62],[573,0,573,25],[574,0,574,25],[573,26,573,42],[573,43,573,49],[573,50,573,56],[573,57,573,62],[588,0,588,3],[588,4,588,43],[588,44,588,52],[588,53,588,62],[521,0,521,3],[522,0,522,3],[519,0,519,62],[491,0,491,3],[565,50,565,56],[565,57,565,62],[566,0,566,2],[566,3,566,18],[566,19,566,25],[566,26,566,42],[566,43,566,49],[566,50,566,56],[566,57,566,62],[567,0,567,2],[567,3,567,18],[567,19,567,25],[567,26,567,42],[567,43,567,49],[567,50,567,56],[567,57,567,62],[563,0,563,2],[563,3,563,18],[563,19,563,25],[563,26,563,42],[563,43,563,49],[563,50,563,56],[563,57,563,62],[564,0,564,2],[564,3,564,18],[564,19,564,25],[564,26,564,42],[564,43,564,49],[501,0,501,62],[508,0,508,3],[509,0,509,3],[509,4,509,43],[509,44,509,52],[509,53,509,62],[510,0,510,3],[510,4,510,43],[510,44,510,52],[510,53,510,62],[507,0,507,3],[514,0,514,3],[511,0,511,3],[512,0,512,3],[512,4,512,43],[512,44,512,52],[512,53,512,62],[513,0,513,3],[440,0,440,3],[440,4,440,43],[423,6,423,43],[424,6,424,43],[425,6,425,43],[426,6,426,43],[427,6,427,43],[428,6,428,43],[440,44,440,52],[440,53,440,62],[408,0,408,3],[408,4,408,43],[409,0,409,3],[409,4,409,43],[410,0,410,3],[410,4,410,43],[411,0,411,3],[411,4,411,43],[412,0,412,3],[412,4,412,43],[413,0,413,3],[413,4,413,43],[414,0,414,3],[414,4,414,43],[415,0,415,3],[415,4,415,43],[437,44,437,52],[437,53,437,62],[438,44,438,52],[438,53,438,62],[439,44,439,52],[439,53,439,62],[437,0,437,3],[437,4,437,43],[438,0,438,3],[438,4,438,43],[439,0,439,3],[439,4,439,43],[434,44,434,52],[434,53,434,62],[435,44,435,52],[435,53,435,62],[436,44,436,52],[436,53,436,62],[434,0,434,3],[434,4,434,43],[435,0,435,3],[435,4,435,43],[436,0,436,3],[436,4,436,43],[431,44,431,52],[431,53,431,62],[432,44,432,52],[432,53,432,62],[433,44,433,52],[433,53,433,62],[431,0,431,3],[431,4,431,43],[432,0,432,3],[432,4,432,43],[433,0,433,3],[433,4,433,43],[428,44,428,52],[428,53,428,62],[429,44,429,52],[429,53,429,62],[430,44,430,52],[430,53,430,62],[428,0,428,3],[429,0,429,3],[429,4,429,43],[430,0,430,3],[430,4,430,43],[425,44,425,52],[425,53,425,62],[426,44,426,52],[426,53,426,62],[427,44,427,52],[427,53,427,62],[425,0,425,3],[426,0,426,3],[427,0,427,3],[422,44,422,52],[422,53,422,62],[423,44,423,52],[423,53,423,62],[424,44,424,52],[424,53,424,62],[422,0,422,3],[422,4,422,43],[423,0,423,3],[424,0,424,3],[419,0,419,3],[419,4,419,43],[420,0,420,3],[420,4,420,43],[421,0,421,3],[421,4,421,43],[416,44,416,52],[416,53,416,62],[417,44,417,52],[417,53,417,62],[418,44,418,52],[418,53,418,62],[416,0,416,3],[416,4,416,43],[417,0,417,3],[417,4,417,43],[418,0,418,3],[418,4,418,43],[415,53,415,62],[410,44,410,52],[410,53,410,62],[411,44,411,52],[411,53,411,62],[412,44,412,52],[412,53,412,62],[408,44,408,52],[408,53,408,62],[409,44,409,52],[409,53,409,62],[419,44,419,52],[419,53,419,62],[420,44,420,52],[420,53,420,62],[421,44,421,52],[421,53,421,62],[400,7,400,43],[402,7,402,43],[401,7,401,43],[401,44,402,62],[54,52,54,60],[52,29,52,42],[52,43,52,61],[50,2,50,22],[51,0,51,16],[52,0,52,12],[52,14,52,27],[54,1,54,14],[54,16,54,27],[54,29,54,39],[54,41,54,50],[66,16,66,27],[66,29,66,39],[82,16,82,27],[82,29,82,39],[82,41,82,50],[12,18,13,18],[12,19,13,19],[12,23,13,23],[12,32,13,32],[12,33,13,33],[12,34,13,34],[12,35,13,35],[12,36,13,36],[14,32,14,36],[14,23,14,25],[12,25,13,25],[12,27,13,27],[12,29,13,29],[12,30,13,30],[38,1,38,25],[23,1,23,7],[31,1,31,16],[26,7,26,15],[20,0,20,17],[21,0,21,62],[23,10,23,62],[24,10,24,62],[17,0,17,24],[18,0,18,7],[19,0,19,24],[33,1,33,17],[16,0,16,7],[15,32,15,36],[14,6,14,8],[14,9,14,11],[14,12,14,15],[14,29,14,30],[14,26,14,28],[0,6,0,62],[1,6,1,62],[7,0,7,36],[8,0,8,36],[10,7,10,36],[10,0,10,5],[6,38,6,62],[3,44,3,62],[12,0,12,5],[12,7,13,7],[12,9,13,9],[12,10,13,10],[12,12,13,12],[5,0,6,36],[5,38,5,62],[13,0,13,5],[12,24,13,24],[16,9,16,23],[10,38,10,62],[11,38,12,62],[15,23,15,25],[14,16,14,19],[12,14,13,14],[12,16,13,16],[12,17,13,17],[82,52,82,60],[95,1,95,25],[97,6,97,17],[90,29,90,39],[90,41,90,50],[90,52,90,60],[90,16,90,27],[97,30,97,32],[72,1,76,14],[66,41,66,50],[58,16,58,27],[58,29,58,39],[58,41,58,50],[58,52,58,60],[74,16,74,27],[74,29,74,39],[74,41,74,50],[74,52,74,60],[66,52,66,60],[64,1,68,14],[56,1,60,14],[101,53,101,61],[100,53,100,61],[100,42,100,51],[101,42,101,50],[100,19,100,25],[98,6,98,17],[100,1,100,3],[100,12,100,17],[100,5,100,10],[100,30,100,32],[100,33,100,40],[105,1,105,25],[106,1,106,25],[107,1,107,6],[107,12,107,61],[110,1,110,19],[110,32,110,53],[108,1,108,19],[109,1,109,19],[105,43,105,50],[105,53,105,60],[122,2,122,15],[122,22,122,41],[122,45,122,60],[124,42,124,60],[134,1,134,25],[134,30,134,56],[136,1,136,25],[136,30,136,56],[137,1,137,25],[137,30,137,56],[111,1,111,25],[112,1,112,6],[112,12,112,61],[113,1,113,19],[114,1,114,19],[115,1,115,19],[115,32,115,53],[117,0,117,62],[121,45,121,60],[126,18,126,32],[126,1,126,17],[118,0,118,62],[119,1,119,19],[120,1,121,16],[120,22,120,41],[121,22,121,41],[120,45,120,60],[139,1,139,25],[139,30,139,56],[140,1,140,25],[140,30,140,56],[142,1,142,25],[142,30,142,56],[143,1,143,25],[143,30,143,56],[145,1,145,25],[145,30,145,56],[146,1,146,25],[146,30,146,56],[148,1,148,25],[148,30,148,56],[149,1,149,25],[149,30,149,56],[128,1,128,9],[128,10,128,17],[130,1,130,25],[131,1,131,25],[130,30,130,56],[131,30,131,56],[133,1,133,25],[133,30,133,56],[152,1,152,22],[152,25,152,41],[152,44,152,60],[153,1,153,22],[153,25,153,41],[153,44,153,60],[158,1,158,14],[159,1,159,14],[158,23,158,34],[159,23,159,34],[158,38,158,60],[159,38,159,60],[154,1,154,9],[154,54,154,60],[155,1,155,9],[155,54,155,60],[154,16,154,47],[155,16,155,47],[156,1,156,9],[157,1,157,9],[156,18,156,27],[157,18,157,27],[167,4,167,14],[167,17,167,25],[167,28,167,36],[166,49,168,59],[167,38,167,48],[170,0,170,62],[171,1,171,34],[164,3,165,14],[164,15,165,26],[164,27,165,37],[164,38,165,48],[164,49,164,59],[165,49,165,59],[179,30,180,36],[178,39,178,50],[179,39,180,50],[178,53,178,60],[179,53,180,60],[173,3,173,10],[174,3,174,17],[173,26,173,51],[178,4,178,16],[178,30,178,36],[179,4,179,6],[179,7,179,9],[179,10,179,16],[180,4,180,6],[180,7,180,9],[180,10,180,16],[178,19,178,23],[178,24,178,28],[179,24,180,28],[179,19,180,23],[200,1,200,9],[199,38,199,46],[196,1,196,39],[197,1,197,22],[197,25,197,41],[197,44,197,60],[198,1,198,22],[198,25,198,41],[198,44,198,60],[199,1,199,9],[200,12,200,29],[199,32,199,35],[199,12,199,29],[200,32,200,35],[200,38,200,47],[199,56,199,60],[199,50,199,53],[200,50,200,53],[200,56,200,60],[211,2,211,58],[212,2,212,58],[214,2,214,29],[214,33,214,58],[215,2,215,29],[215,33,215,58],[204,1,204,25],[201,40,201,52],[202,40,202,52],[206,0,206,62],[208,2,208,29],[208,33,208,58],[209,33,209,58],[209,2,209,29],[202,1,202,14],[202,23,202,34],[224,0,224,62],[201,1,201,14],[201,23,201,34],[225,2,225,62],[226,2,226,62],[230,1,231,14],[230,15,230,57],[230,58,231,61],[231,15,231,19],[231,22,231,43],[231,44,231,50],[231,51,231,57],[232,1,232,14],[232,15,232,19],[232,22,232,43],[232,44,232,50],[232,51,232,57],[232,58,234,61],[233,1,233,14],[233,15,233,19],[233,22,233,43],[233,44,233,50],[233,51,233,57],[234,1,234,14],[234,15,234,19],[234,22,234,43],[234,44,234,50],[234,51,234,57],[235,1,235,14],[236,1,236,14],[237,1,237,14],[238,1,238,14],[239,1,239,14],[240,1,240,14],[241,1,241,14],[235,15,235,19],[238,15,238,19],[241,15,241,19],[235,58,235,61],[236,58,236,61],[237,58,239,61],[240,58,242,61],[238,22,238,43],[238,44,238,50],[238,51,238,57],[239,15,239,19],[239,22,239,43],[239,44,239,50],[239,51,239,57],[240,15,240,19],[240,22,240,43],[240,44,240,50],[240,51,240,57],[235,22,235,43],[235,44,235,50],[235,51,235,57],[236,15,236,19],[236,22,236,43],[236,44,236,50],[236,51,236,57],[237,15,237,19],[237,22,237,43],[243,4,243,42],[249,0,249,36],[250,0,250,36],[250,37,250,45],[250,46,250,53],[250,54,250,62],[241,22,241,43],[241,44,241,50],[241,51,241,57],[242,15,242,19],[242,22,242,43],[242,44,242,50],[242,51,242,57],[242,1,242,14],[237,44,237,50],[237,51,237,57],[244,0,247,61],[251,0,251,62],[249,37,249,62],[253,16,253,24],[253,32,253,47],[253,49,253,58],[253,25,253,29],[255,0,255,36],[255,37,255,45],[255,46,255,53],[255,54,255,62],[256,0,256,36],[256,37,256,45],[256,46,256,53],[256,54,256,62],[257,0,257,36],[257,37,257,45],[257,46,257,53],[257,54,257,62],[258,0,258,36],[258,37,258,45],[258,46,258,53],[258,54,258,62],[259,0,259,36],[259,37,259,45],[259,46,259,53],[259,54,259,62],[260,0,260,36],[260,37,260,45],[260,46,260,53],[260,54,260,62]],"merged_total":2191,"flags":["merged_cut"]}
[null,null,null,null,null,null,"MINISTERUL AGRICULTURII ŞI DEZVOLTĂRII RURALE"]
[null,null,null,null,null,null,"AGENŢIA PENTRU FINANŢAREA INVESTIŢIILOR RURALE"]
[]
[null,null,null,null,null,null,null,"GAL \"OLTUL PUTERNIC\"",null,null,null,null,null,null,null,null,null,null,null,null,null,null,null,null,null,null,null,null,null,null,null,null,null,null,null,null,null,null,null,null,null,null,null,null,"SECŢIUNE GENERALĂ"]
[]
["DATE DE ÎNREGISTRARE",null,null,null,null,null,null,null,null,null,null,null,null,null,null,null,null,null,null,null,null,null,null,null,null,null,null,null,null,null,null,null,null,null,null,null,null,null,"NUME ŞI PRENUME DIRECTOR GENERAL"]
[null,null,null,null,null,null,null,null,null,null,null,null,null,null,null,null,null,null,null,null,null,null,null,null,null,null,null,null,null,null,null,null,null,null,null,null,null,null,"ADJUNCT CRFIR"]
["Se completează de către Agenția pentru Finanțarea Investițiilor Rurale -Centrul"]
["Regional- Programul FEADR 2014-2020"]
[]
["CRFIR",null,null,null,null,null,null,null,null,null,null,null,null,null,null,null,null,null,null,null,null,null,null,null,null,null,null,null,null,null,null,null,null,null,null,null,null,null,"Semnătura Director General Adjunct CRFIR"]
[null,null,null,null,null,null,null,null,null,null,null,null,null,null,null,null,null,null,null,null,null,null,null,null,null,null,null,null,null,null,null,null,null,null,null,null,null,null,"Ştampila CRFIR"]
["Număr "]
["înregistrare"]
[]
[]
["Data Înregistrării"]
["Numele şi prenumele persoanei care înregistrează"]
["Semnătura:"]
["Data primirii cererii de finanţare la contractare:"]
["Se completează de către solicitant"]
["A PREZENTARE GENERALĂ"]
[]
[null,"A1 Măsura",null,null,null,null,null,null,null,null,"Sub-măsura 19.2"]
[null,null,null,null,null,null,null,null,null,null,"M5/ 6B - DEZVOLTAREA SATEOR"]
[]
[null,null,null,null,null,null,null,"Tip investitie:",null,null,null,null,null,null,null,null,null,null,"A. CREAREA SI MODERNIZAREA INFRASTRUCTII FIZICE DE BAZA"]
[null,null,null,null,null,null,null,null,null,null,null,null,null,null,null,null,null,null,"B. CREAREA SI DEZVOLTAREA SERVICIILOR DE BAZA"]
[null,null,null,null,null,null,null,null,null,null,null,null,null,null,null,null,null,null,"C. PROTEJAREA SI PROMOVAREA PATRIMONIULUI NATURAL SI CULTURAL DE INTERES LOCAL"]
[]
[null,"Conţinutul cadru al documentaţiei tehnico-economice faza SF/DALI conform : ",null,null,null,null,null,null,null,null,null,null,null,null,null,null,null,null,null,null,null,null,null,null,null,null,null,null,null,null,null,null,null,null,null,null,null,null,null,null,null,null,null,null,null,null,null,null,null,null,"H.G. nr. 28/2008"]
[null,"A2 Denumire solicitant:",null,null,null,null,null,null,null,null,null,null,null,null,null,null,null,null,null,null,null,null,null,null,null,null,null,null,null,null,null,null,null,null,null,null,null,null,null,null,null,null,null,null,null,null,null,null,null,null,"H.G. nr. 907/2016"]
[]
[null,"A3 Titlu proiect:"]
[]
[]
[]
[]
[null,"A4 Descrierea succintă a proiectului:"]
[]
[]
[]
[]
[]
[]
[]
[]
[]
[]
[]
[null,null,"A5 Amplasarea proiectului:"]
[]
["Regiunea de dezvoltare:",null,null,null,null,null,null,null,null,null,null,null,null,null,"SV OLTENIA",null,null,null,null,null,null,null,null,null,null,null,null,null,null,"Judeţ:"]
[]
[null,"Obiectivele investiţiei",null,null,null,null,null,null,null,null,null,null,null,null,null,null,"Judeţ",null,null,null,null,null,null,null,null,null,null,null,null,"Comună/Oraş",null,null,null,null,null,null,null,null,null,null,null,"Sat/Sector",null,null,null,null,null,null,null,null,null,null,"Sat/Sector"]
[]
[]
[]
[]
[]
[]
[]
[]
[]
[]
[]
[]
[]
[]
[]
[]
[]
[]
[]
[]
[]
[]
[]
[]
[]
[]
[]
[]
[]
[]
[]
[]
[]
[]
[]
[]
[]
[]
[]
[]
[null,"A6 Date despre tipul de proiect şi beneficiar:"]
[]
[null,"A6.1",null,null,null,null,"Investiţie nouă",null,null,null,null,null,null,null,null,null,null,null,null,null,null,null,null,null,null,null,null,null,null,null,"A6.2",null,null,null,null,"Comune şi ADI"]
[null,null,null,null,null,null,"Lucrări de intervenție",null,null,null,null,null,null,null,null,null,null,null,null,null,null,null,null,null,null,null,null,null,null,null,null,null,null,null,null,"Alt tip de solicitant"]
[]
[null,"A6.3",null,null,null,"Prescorare",null,null,null,null,null,null,null,null,null,null,null,null,null,"puncte",null,null,null,null,null,null,null,null,null,null,"A6.4",null,null,"Alocare financiară",null,null,null,null,null,null,null,null,"  Teritoriul GAL OP"]
[null,"A6.3.1 Detaliere criterii de selecţie îndeplinite:"]
[]
[]
[]
[]
[null,"A7 Date despre consultant:"]
[null,"Denumire: "]
[null,"Cod Unic de Înregistrare / Codul de"]
[null,"Înregistrare Fiscală",null,null,null,null,null,null,null,null,null,null,null,null,null,null,null,null,null,null,null,null,null,null,null,null,null,null,null,null,null,null,"Număr de înregistrare în registrul comerțului"]
[]
[null,"A8 Date despre proiectant:"]
[null,"Denumire: "]
[null,"Cod Unic de Înregistrare / Codul de"]
[null,"Înregistrare Fiscală",null,null,null,null,null,null,null,null,null,null,null,null,null,null,null,null,null,null,null,null,null,null,null,null,null,null,null,null,null,null,"Număr de înregistrare în registrul comerțului"]
[]
[]
["B INFORMAŢII PRIVIND SOLICITANTUL"]
["B1 Descrierea solicitantului"]
[null,"B1.1 Informaţii privind solicitantul"]
[null,"Data înființării",null,null,null,null,null,null,null,null,null,null,null,null,null,null,null,null,null,null,null,null,"Cod Unic de Înregistrare și/sau Codul de",null,null,null,null,null,null,null,null,null,null,null,null,null,null,null,null,null,null,null,null,null,null,"Statut juridic al solicitantului"]
[null,null,null,null,null,null,null,null,null,null,null,null,null,null,null,null,null,null,null,null,null,null,"Înregistrare Fiscală",null,null,null,null,null,null,null,null,null,null,null,null,null,null,null,null,null,null,null,null,null,null,"(Comune, ADI, ONG*)"]
[]
[]
[null,"Număr de înregistrare în registrul comerțului"]
[]
[null,"Codul unic de înregistrare APIA",null,null,null,null,null,null,null,null,null,null,null,null,null,null,null,null,null,null,null,null,null,null,null,null,null,null,null,null,null,null,null,null,null,null,null,null,"Anul atribuirii codului"]
[]
[null,"Nr. comune ADI"]
[]
[null,"Denumire comune solicitant",null,null,null,null,null,null,null,null,null,null,null,null,null,null,null,null,null,null,null,null,null,null,null,null,null,null,null,null,"Cod Unic de Înregistrare / Cod de Înregistrare Fiscală"]
[]
[]
[null,"Denumire comune solicitant",null,null,null,null,null,null,null,null,null,null,null,null,null,null,null,null,null,null,null,null,null,null,null,null,null,null,null,null,"Cod Unic de Înregistrare / Cod de Înregistrare Fiscală"]
[]
[]
[null,"Denumire comune solicitant",null,null,null,null,null,null,null,null,null,null,null,null,null,null,null,null,null,null,null,null,null,null,null,null,null,null,null,null,"Cod Unic de Înregistrare / Cod de Înregistrare Fiscală"]
[]
[]
[null,"Denumire comune solicitant",null,null,null,null,null,null,null,null,null,null,null,null,null,null,null,null,null,null,null,null,null,null,null,null,null,null,null,null,"Cod Unic de Înregistrare / Cod de Înregistrare Fiscală"]
[]
[]
[null,"Denumire comune solicitant",null,null,null,null,null,null,null,null,null,null,null,null,null,null,null,null,null,null,null,null,null,null,null,null,null,null,null,null,"Cod Unic de Înregistrare / Cod de Înregistrare Fiscală"]
[]
[]
[null,"Denumire comune solicitant",null,null,null,null,null,null,null,null,null,null,null,null,null,null,null,null,null,null,null,null,null,null,null,null,null,null,null,null,"Cod Unic de Înregistrare / Cod de Înregistrare Fiscală"]
[]
[]
[null,"Denumire comune solicitant",null,null,null,null,null,null,null,null,null,null,null,null,null,null,null,null,null,null,null,null,null,null,null,null,null,null,null,null,"Cod Unic de Înregistrare / Cod de Înregistrare Fiscală"]
[]
[]
[null,"B1.2 Sediul social / Domiciliul stabil al solicitantului / Reşedinţa din România"]
[null,"Judeţ",null,null,null,null,null,null,null,null,null,null,null,null,null,null,null,null,null,null,null,null,null,null,null,"Localitate",null,null,null,null,null,null,null,null,null,null,null,null,null,null,null,null,null,null,"Sat"]
[]
[null,"Cod Poştal",null,null,null,null,null,null,null,null,null,null,null,null,null,null,"Strada",null,null,null,null,null,null,null,null,null,null,null,null,null,null,null,null,null,null,null,null,null,null,null,null,null,null,null,null,null,null,null,null,null,null,null,null,null,"Nr."]
[]
[null,"Bloc",null,null,null,null,null,null,null,null,null,null,null,null,null,null,null,null,"Scara"]
[]
[null,"Telefon fix/ mobil",null,null,null,null,null,null,null,null,null,null,null,null,null,null,null,null,null,null,null,null,null,"Fax",null,null,null,null,null,null,null,null,null,null,null,null,null,null,"E-mail"]
[]
[]
[null,"B1.3 Numele şi prenumele reprezentantului legal şi funcţia acestuia în cadrul organizaţiei, precum şi"]
[null,"specimenul de semnatură:"]
[]
[null,null,null,"Numele",null,null,null,null,null,null,null,null,null,null,null,"Prenumele",null,null,null,null,null,null,null,null,null,null,null,"Funcţia",null,null,null,null,null,null,null,null,null,null,"Reprezentant legal",null,null,null,null,null,null,null,null,null,null,"Specimen de"]
[null,null,null,null,null,null,null,null,null,null,null,null,null,null,null,null,null,null,null,null,null,null,null,null,null,null,null,null,null,null,null,null,null,null,null,null,null,null,null,null,null,null,null,null,null,null,null,null,null,"semnătură"]
[]
[null,null,null,null,null,null,null,null,null,null,null,null,null,null,null,null,null,null,null,null,null,null,null,null,null,null,null,null,null,null,null,null,null,null,null,null,null,null,"LEGAL"]
[]
[]
["B2 Informaţii referitoare la reprezentantul legal de proiect"]
[null,"B2.1 Date de identitate ale reprezentantului legal de proiect"]
[]
[null,null,null,"Data naşterii",null,null,null,null,null,null,null,null,null,null,null,null,null,null,null,null,null,null,null,null,null,null,"Cod numeric personal"]
[]
[]
[]
[]
[null,null,null,null,"Act de identitate",null,null,null,null,null,null,null,null,null,null,null,null,null,null,"Seria",null,null,null,null,"Nr.",null,null,null,null,null,"Eliberat la data de",null,null,null,null,null,null,null,null,"de:",null,null,null,null,null,null,null,null,null,null,null,null,null,"Valabil până la:"]
[null,null,null,null,"B.I.",null,null,"C.I.",null,null,"Paşaport"]
[]
[]
[]
[]
[]
[]
[]
[]
[]
[]
[]
[]
[]
[]
[]
[]
[null,"B2.2 Domiciliul stabil al reprezentantului legal de proiect"]
[null,"Judeţ",null,null,null,null,null,null,null,null,null,null,null,null,null,null,null,null,null,null,null,null,null,null,null,"Localitate",null,null,null,null,null,null,null,null,null,null,null,null,null,null,null,null,null,null,"Sat"]
[]
[null,"Cod Poştal",null,null,null,null,null,null,null,null,null,null,"Strada",null,null,null,null,null,null,null,null,null,null,null,null,null,null,null,null,null,null,null,"Nr.",null,null,null,null,null,"Bloc",null,null,null,null,null,null,null,null,null,null,null,"Scara",null,null,null,null,null,"Ap."]
[]
[null,"Telefon fix",null,null,null,null,null,null,null,null,null,null,null,null,null,null,null,null,null,null,null,null,null,"Telefon mobil",null,null,null,null,null,null,null,null,null,null,null,null,null,null,null,null,"Fax"]
[]
[null,"E-mail"]
[]
[]
["B3 Informaţii privind contul bancar pentru proiect schema de autor de stat"]
[]
[null,null,"B3.1 Denumirea Băncii",null,null,null,null,null,null,null,null,null,null,null,null,null,null,null,null,null,null,null,null,null,null,null,null,null,null,null,null,null,null,"Denumirea Sucursalei/Filialei"]
[]
[]
[null,null,"B3.2 Adresa Băncii/Sucursalei"]
[]
[]
[null,null,"B3.3 Cod IBAN",null,null,null,null,null,null,null,null,null,null,null,null,null,null,null,null,null,null,null,null,null,null,null,null,null,null,null,null,null,null,"B3.4 Titularul contului bancar"]
[]
[]
[]
[]
[]
[]
[]
[]
[]
["C FINANȚĂRI NERAMBURSABILE OBȚINUTE, SAU SOLICITATE ?"]
[null,null,"Dacă au fost obținute finanțări nerambursabile sau au fost solicitate și au fost obținute parțial, se vor detalia prin completarea"]
[null,null,"tabelului de mai jos."]
[]
[null,null,null,null,null,null,null,null,null,null,"DA",null,null,null,null,null,null,null,null,"NU"]
[]
[null,"DENUMIRE PROGRAM FINANȚARE",null,null,null,null,null,null,null,null,null,null,null,null,null,"DA",null,null,null,null,null,null,null,null,null,null,null,null,null,null,null,null,null,null,null,null,null,null,null,null,null,null,null,null,null,null,null,null,null,null,null,null,null,null,null,null,null,null,"NU"]
[null,null,null,null,null,null,null,null,null,null,null,null,null,null,null,"Număr proiecte",null,null,null,null,null,null,"Titlul Proiectui și numărul contractului de finanțare ",null,null,null,null,null,null,null,null,null,null,null,null,null,null,null,null,null,null,null,null,null,"Data finalizării\nll/zz/aaaa",null,null,null,null,null,null,"Valoarea\nsprijinului\n(EUR)"]
[null,"Program Naţional*"]
[null,"Program Naţional*"]
[null,"Program Naţional*"]
[null,"SAPARD"]
[null,"FEADR"]
[null,"Alte programe europene*"]
[null,"Alte programe europene*"]
[null,"Alte programe europene*"]
[null,"Alte programe internaționale*"]
[null,"Alte programe internaționale*"]
[null,"Alte programe internaționale*"]
[null,null,null,null,"* se completează de către solicitant cu denumirea programului"]
["REGULI DE COMPLETARE\n\nToate campurile care se impun prin specificul proiectului sunt obligatorii.\n\n"]
[]
[]
[]
[null,"Buget Indicativ - HG 28/2008"]
["MINISTERUL AGRICULTURII ŞI DEZVOLTĂRII RURALE"]
["AGENŢIA PENTRU FINANŢAREA INVESTIŢIILOR RURALE"]
[]
[]
[null,null,null,null,null,null,null,null,null,null,null,null,null,null,null,null,"Curs EURO",null,null,null,null,null,null,null,null,null,null,null,null,null,null,null,"Data întocmirii devizului general din SF/DALI"]
[]
["Măsura",null,null,null,null,null,null,null,null,null,null,null,null,null,null,null,null,null,null,null,null,null,null,null,null,null,null,null,null,null,null,null,null,null,null,null,null,"M5/6B"]
["Denumirea capitolelor de cheltuieli",null,null,null,null,null,null,null,null,null,null,null,null,null,null,null,null,null,null,null,null,null,null,null,null,null,null,null,null,null,null,null,null,null,null,null,null,"Cheltuieli eligibile",null,null,null,null,null,null,null,null,"Cheltuieli neeligibile",null,null,null,null,null,null,null,"Total"]
[null,null,null,null,null,null,null,null,null,null,null,null,null,null,null,null,null,null,null,null,null,null,null,null,null,null,null,null,null,null,null,null,null,null,null,null,null,"EURO",null,null,null,null,null,null,null,null,"EURO",null,null,null,null,null,null,null,"EURO"]
[1,null,null,null,null,null,null,null,null,null,null,null,null,null,null,null,null,null,null,null,null,null,null,null,null,null,null,null,null,null,null,null,null,null,null,null,null,2,null,null,null,null,null,null,null,null,3,null,null,null,null,null,null,null,4]
["Capitolul 1 Cheltuieli pentru obtinerea şi amenajarea terenului - total, din care:",null,null,null,null,null,null,null,null,null,null,null,null,null,null,null,null,null,null,null,null,null,null,null,null,null,null,null,null,null,null,null,null,null,null,null,null,{"$f":"SUM(AL262:AT263)","v":0},null,null,null,null,null,null,null,null,{"$f":"SUM(AU261:BB263)","v":0},null,null,null,null,null,null,null,{"$f":"SUM(AL260:BB260)","v":0}]
["1.1 Cheltuieli pentru obţinerea terenului",null,null,null,null,null,null,null,null,null,null,null,null,null,null,null,null,null,null,null,null,null,null,null,null,null,null,null,null,null,null,null,null,null,null,null,null,null,null,null,null,null,null,null,null,null,null,null,null,null,null,null,null,null,{"$f":"SUM(AL261:BB261)","v":0}]
["1.2 Cheltuieli pentru amenajarea terenului",null,null,null,null,null,null,null,null,null,null,null,null,null,null,null,null,null,null,null,null,null,null,null,null,null,null,null,null,null,null,null,null,null,null,null,null,null,null,null,null,null,null,null,null,null,null,null,null,null,null,null,null,null,0]
["1.3 Cheltuieli cu amenajari pentru protecţia mediului şi aducerea la starea iniţială",null,null,null,null,null,null,null,null,null,null,null,null,null,null,null,null,null,null,null,null,null,null,null,null,null,null,null,null,null,null,null,null,null,null,null,null,null,null,null,null,null,null,null,null,null,null,null,null,null,null,null,null,null,0]
["Capitolul 2 Cheltuieli pentru asigurarea utilităţilor necesare obiectivului",null,null,null,null,null,null,null,null,null,null,null,null,null,null,null,null,null,null,null,null,null,null,null,null,null,null,null,null,null,null,null,null,null,null,null,null,null,null,null,null,null,null,null,null,null,null,null,null,null,null,null,null,null,0]
["Capitolul 3 Cheltuieli pentru proiectare şi asistenţă tehnică - total, din care:",null,null,null,null,null,null,null,null,null,null,null,null,null,null,null,null,null,null,null,null,null,null,null,null,null,null,null,null,null,null,null,null,null,null,null,null,{"$f":"SUM(AL266:AT271)-AL269","v":0},null,null,null,null,null,null,null,null,{"$f":"SUM(AU266:BB271)","v":0},null,null,null,null,null,null,null,0]
["3.1 Studii de teren",null,null,null,null,null,null,null,null,null,null,null,null,null,null,null,null,null,null,null,null,null,null,null,null,null,null,null,null,null,null,null,null,null,null,null,null,null,null,null,null,null,null,null,null,null,null,null,null,null,null,null,null,null,0]
["3.2 Obţinerea de avize, acorduri şi autorizaţii",null,null,null,null,null,null,null,null,null,null,null,null,null,null,null,null,null,null,null,null,null,null,null,null,null,null,null,null,null,null,null,null,null,null,null,null,null,null,null,null,null,null,null,null,null,null,null,null,null,null,null,null,null,0]
["3.3 Proiectare şi inginerie",null,null,null,null,null,null,null,null,null,null,null,null,null,null,null,null,null,null,null,null,null,null,null,null,null,null,null,null,null,null,null,null,null,null,null,null,null,null,null,null,null,null,null,null,null,null,null,null,null,null,null,null,null,0]
["3.4 Organizarea procedurilor de achiziţie",null,null,null,null,null,null,null,null,null,null,null,null,null,null,null,null,null,null,null,null,null,null,null,null,null,null,null,null,null,null,null,null,null,null,null,null,null,null,null,null,null,null,null,null,null,null,null,null,null,null,null,null,null,0]
["3.5 Consultanţă",null,null,null,null,null,null,null,null,null,null,null,null,null,null,null,null,null,null,null,null,null,null,null,null,null,null,null,null,null,null,null,null,null,null,null,null,null,null,null,null,null,null,null,null,null,null,null,null,null,null,null,null,null,0]
["3.6 Asistenţă tehnică",null,null,null,null,null,null,null,null,null,null,null,null,null,null,null,null,null,null,null,null,null,null,null,null,null,null,null,null,null,null,null,null,null,null,null,null,null,null,null,null,null,null,null,null,null,null,null,null,null,null,null,null,null,0]
["Verificare încadrare cheltuieli capitolul 3",null,null,null,null,null,null,null,null,null,null,null,null,null,null,null,null,null,null,null,null,null,null,null,null,null,null,null,null,null,null,null,null,null,{"$f":"AL260+AL264+AL273","v":0},{"$f":"IF(AI272=0,0,AK272)","v":0},{"$f":"AL265*100/AI272","v":{"$error":"#DIV/0!"}},{"$f":"IF(AL273=0,IF(AJ272<=5,\"cheltuieli capitol 3 se incadreaza in limita de 5%\",\"cheltuieli capitol 3 nu se incadreaza in limita de 5%\"),IF(AJ272<=10,\"cheltuieli capitol 3 se incadreaza in limita de 10%\",\"cheltuieli capitol 3 nu se incadreaza in limita de 10%\"))","v":"cheltuieli capitol 3 se incadreaza in limita de 5%"}]
["Capitolul 4 Cheltuieli pentru investiţia de bază - total, din care:",null,null,null,null,null,null,null,null,null,null,null,null,null,null,null,null,null,null,null,null,null,null,null,null,null,null,null,null,null,null,null,null,null,null,null,null,{"$f":"AL274","v":0},null,null,null,null,null,null,null,null,{"$f":"AU274","v":0},null,null,null,null,null,null,null,{"$f":"SUM(AL273:BB273)","v":0}]
["Constructii, din care:",null,null,null,null,null,null,null,null,null,null,null,null,null,null,null,null,null,null,null,null,null,null,null,null,null,null,null,null,null,null,null,null,null,null,null,null,{"$f":"SUM(AL275:AT280)","v":0},null,null,null,null,null,null,null,null,{"$f":"SUM(AU275:BB280)","v":0},null,null,null,null,null,null,null,{"$f":"SUM(AL274:BB274)","v":0}]
["4.1 Construcţii şi instalaţii",null,null,null,null,null,null,null,null,null,null,null,null,null,null,null,null,null,null,null,null,null,null,null,null,null,null,null,null,null,null,null,null,null,null,null,null,null,null,null,null,null,null,null,null,null,null,null,null,null,null,null,null,null,0]
["4.2 Montaj utilaj tehnologic",null,null,null,null,null,null,null,null,null,null,null,null,null,null,null,null,null,null,null,null,null,null,null,null,null,null,null,null,null,null,null,null,null,null,null,null,null,null,null,null,null,null,null,null,null,null,null,null,null,null,null,null,null,0]
["4.3 Utilaje, echipamente tehnologice şi funcţionale cu montaj (procurare)",null,null,null,null,null,null,null,null,null,null,null,null,null,null,null,null,null,null,null,null,null,null,null,null,null,null,null,null,null,null,null,null,null,null,null,null,null,null,null,null,null,null,null,null,null,null,null,null,null,null,null,null,null,0]
["4.4 Utilaje şi echipamente fară montaj, mijloace de transport, alte achiziţii specifice",null,null,null,null,null,null,null,null,null,null,null,null,null,null,null,null,null,null,null,null,null,null,null,null,null,null,null,null,null,null,null,null,null,null,null,null,null,null,null,null,null,null,null,null,null,null,null,null,null,null,null,null,null,0]
["4.5 Dotări",null,null,null,null,null,null,null,null,null,null,null,null,null,null,null,null,null,null,null,null,null,null,null,null,null,null,null,null,null,null,null,null,null,null,null,null,null,null,null,null,null,null,null,null,null,null,null,null,null,null,null,null,null,0]
["4.6 Active necorporale",null,null,null,null,null,null,null,null,null,null,null,null,null,null,null,null,null,null,null,null,null,null,null,null,null,null,null,null,null,null,null,null,null,null,null,null,null,null,null,null,null,null,null,null,null,null,null,null,null,null,null,null,null,0]
["Capitolul 5 Alte cheltuieli - total, din care:",null,null,null,null,null,null,null,null,null,null,null,null,null,null,null,null,null,null,null,null,null,null,null,null,null,null,null,null,null,null,null,null,null,null,null,null,{"$f":"AL285+AL282","v":0},null,null,null,null,null,null,null,null,{"$f":"AU286+AU285+AU282","v":0},null,null,null,null,null,null,null,0]
["5.1 Organizare de şantier",null,null,null,null,null,null,null,null,null,null,null,null,null,null,null,null,null,null,null,null,null,null,null,null,null,null,null,null,null,null,null,null,null,null,null,null,{"$f":"SUM(AL283:AT284)","v":0},null,null,null,null,null,null,null,null,{"$f":"SUM(AU283:BB284)","v":0},null,null,null,null,null,null,null,0]
["      5.1.1 lucrări de construcţii şi instalaţii aferente organizării de şantier",null,null,null,null,null,null,null,null,null,null,null,null,null,null,null,null,null,null,null,null,null,null,null,null,null,null,null,null,null,null,null,null,null,null,null,null,null,null,null,null,null,null,null,null,null,null,null,null,null,null,null,null,null,0]
["      5.1.2 cheltuieli conexe orgănizării şantierului",null,null,null,null,null,null,null,null,null,null,null,null,null,null,null,null,null,null,null,null,null,null,null,null,null,null,null,null,null,null,null,null,null,null,null,null,null,null,null,null,null,null,null,null,null,null,null,null,null,null,null,null,null,0]
["5.2 Comisioane, taxe, costul creditului",null,null,null,null,null,null,null,null,null,null,null,null,null,null,null,null,null,null,null,null,null,null,null,null,null,null,null,null,null,null,null,null,null,null,null,null,null,null,null,null,null,null,null,null,null,null,null,null,null,null,null,null,null,0]
["5.3 Cheltuieli diverse şi neprevăzute",null,null,null,null,null,null,null,null,null,null,null,null,null,null,null,null,null,null,null,null,null,null,null,null,null,null,null,null,null,null,null,null,null,null,null,null,null,null,null,null,null,null,null,null,null,null,null,null,null,null,null,null,null,0]
["Capitolul 6 Cheltuieli pentru darea în exploatare - total, din care:",null,null,null,null,null,null,null,null,null,null,null,null,null,null,null,null,null,null,null,null,null,null,null,null,null,null,null,null,null,null,null,null,null,null,null,null,{"$f":"AL289","v":0},null,null,null,null,null,null,null,null,{"$f":"SUM(AU288:BB289)","v":0},null,null,null,null,null,null,null,0]
["6.1 Pregătirea personalului de exploatare",null,null,null,null,null,null,null,null,null,null,null,null,null,null,null,null,null,null,null,null,null,null,null,null,null,null,null,null,null,null,null,null,null,null,null,null,null,null,null,null,null,null,null,null,null,null,null,null,null,null,null,null,null,0]
["6.2 Probe tehnologice şi teste",null,null,null,null,null,null,null,null,null,null,null,null,null,null,null,null,null,null,null,null,null,null,null,null,null,null,null,null,null,null,null,null,null,null,null,null,null,null,null,null,null,null,null,null,null,null,null,null,null,null,null,null,null,0]
["TOTAL GENERAL",null,null,null,null,null,null,null,null,null,null,null,null,null,null,null,null,null,null,null,null,null,null,null,null,null,null,null,null,null,null,null,null,null,null,null,null,{"$f":"AL260+AL264+AL265+AL273+AL281+AL287","v":0},null,null,null,null,null,null,null,null,{"$f":"AU260+AU264+AU265+AU273+AU281+AU287","v":0},null,null,null,null,null,null,null,0]
["Verificare actualizare",null,null,null,null,null,null,null,null,null,null,null,null,null,null,null,null,null,null,null,null,null,null,null,null,null,null,null,null,null,null,null,null,{"$f":"AL292*100/AL290","v":{"$error":"#DIV/0!"}},null,null,{"$f":"IF(AL290=0,0,AH291)","v":0},{"$f":"IF(AK291<=5,\"actualizare mai mică de 5% din valoarea eligibila\",\"actualizare mai mare de 5% din valoarea eligibila\")","v":"actualizare mai mică de 5% din valoarea eligibila"}]
["ACTUALIZARE Cheltuieli Eligibile (max 5%)",null,null,null,null,null,null,null,null,null,null,null,null,null,null,null,null,null,null,null,null,null,null,null,null,null,null,null,null,null,null,null,null,null,null,null,null,null,null,null,null,null,null,null,null,null,null,null,null,null,null,null,null,null,{"$f":"SUM(AL292:BB292)","v":0}]
["TOTAL GENERAL CU ACTUALIZARE",null,null,null,null,null,null,null,null,null,null,null,null,null,null,null,null,null,null,null,null,null,null,null,null,null,null,null,null,null,null,null,null,null,null,null,null,{"$f":"AL290+AL292","v":0},null,null,null,null,null,null,null,null,{"$f":"AU290","v":0},null,null,null,null,null,null,null,{"$f":"SUM(AL293:BB293)","v":0}]
["Valoare TVA",null,null,null,null,null,null,null,null,null,null,null,null,null,null,null,null,null,null,null,null,null,null,null,null,null,null,null,null,null,null,null,null,null,null,null,null,null,null,null,null,null,null,null,null,null,null,null,null,null,null,null,null,null,0]
[null,null,null,null,null,null,null,null,null,null,null,null,null,null,null,null,null,null,null,null,null,null,null,null,null,null,null,null,null,null,null,null,null,null,null,null,null,{"$f":"SUM(AL293:AT294)","v":0},null,null,null,null,null,null,null,null,{"$f":"SUM(AU293:BB294)","v":0},null,null,null,null,null,null,null,0]
["TOTAL GENERAL inclusiv TVA",null,null,null,null,null,null,null,null,null,null,null,null,null,null,null,null,null,null,null,null,null,null,null,null,null,null,null,null,null,null,null,null,null,null,null,null,{"$f":"BC293+BC294","v":0}]
[null,null,null,null,null,null,null,null,null,null,null,null,null,null,null,null,null,null,null,null,null,null,null,null,null,null,null,null,null,null,null,null,null,null,null,null,null,"LEI",null,null,null,null,null,null,null,null,"EURO"]
["VALOARE TOTALĂ",null,null,null,null,null,null,null,null,null,null,null,null,null,null,null,null,null,null,null,null,null,null,null,null,null,null,null,null,null,null,null,null,null,null,null,null,{"$f":"AU298*Z254","v":0},null,null,null,null,null,null,null,null,{"$f":"AL296","v":0}]
["VALOARE ELIGIBILĂ",null,null,null,null,null,null,null,null,null,null,null,null,null,null,null,null,null,null,null,null,null,null,null,null,null,null,null,null,null,null,null,null,null,null,null,null,{"$f":"AU299*Z254","v":0},null,null,null,null,null,null,null,null,{"$f":"AL293+AL294","v":0}]
["VALOARE NEELIGIBILĂ",null,null,null,null,null,null,null,null,null,null,null,null,null,null,null,null,null,null,null,null,null,null,null,null,null,null,null,null,null,null,null,null,null,null,null,null,{"$f":"AU300*Z254","v":0},null,null,null,null,null,null,null,null,{"$f":"AU293+AU294","v":0}]
[]
["Plan Financiar",null,null,null,null,null,null,null,null,null,null,null,null,null,null,null,null,null,null,null,null,null,null,null,null,null,null,null,null,null,null,null,null,null,null,null,null,"Cheltuieli eligibile EURO",null,null,null,null,null,null,null,null,"Cheltuieli neeligibile EURO",null,null,null,null,null,null,null,"Total"]
["Ajutor public nerambursabil (contribuţie UE şi cofinanţare naţională)",null,null,null,null,null,null,null,null,null,null,null,null,null,null,null,null,null,null,null,null,null,null,null,null,null,null,null,null,null,null,null,null,null,null,null,null,null,null,null,null,null,null,null,null,null,null,null,null,null,null,null,null,null,{"$f":"SUM(AL303:BB303)","v":0}]
["Cofinantare privata, din care:",null,null,null,null,null,null,null,null,null,null,null,null,null,null,null,null,null,null,null,null,null,null,null,null,null,null,null,null,null,null,null,null,null,null,null,null,{"$f":"SUM(AL305:AT306)","v":0},null,null,null,null,null,null,null,null,{"$f":"SUM(AU305:BB306)","v":0},null,null,null,null,null,null,null,{"$f":"SUM(AL304:BB304)","v":0}]
[null,null,null,null,null,null,null,null,null,null,null,null,null,null,null,null,"- autofinantare",null,null,null,null,null,null,null,null,null,null,null,null,null,null,null,null,null,null,null,null,null,null,null,null,null,null,null,null,null,null,null,null,null,null,null,null,null,0]
[null,null,null,null,null,null,null,null,null,null,null,null,null,null,null,null,"- imprumuturi",null,null,null,null,null,null,null,null,null,null,null,null,null,null,null,null,null,null,null,null,null,null,null,null,null,null,null,null,null,null,null,null,null,null,null,null,null,0]
["Buget local",null,null,null,null,null,null,null,null,null,null,null,null,null,null,null,null,null,null,null,null,null,null,null,null,null,null,null,null,null,null,null,null,null,null,null,null,null,null,null,null,null,null,null,null,null,null,null,null,null,null,null,null,null,0]
["TOTAL PROIECT",null,null,null,null,null,null,null,null,null,null,null,null,null,null,null,null,null,null,null,null,null,null,null,null,null,null,null,null,null,null,null,null,null,null,null,null,{"$f":"AL303+AL304+AL307","v":0},null,null,null,null,null,null,null,null,{"$f":"AU304+AU307","v":0},null,null,null,null,null,null,null,0]
["Procent contribuţie publică",null,null,null,null,null,null,null,null,null,null,null,null,null,null,null,null,null,null,null,null,null,null,null,null,null,null,null,null,null,null,null,null,null,null,{"$f":"AL303*100/AL308","v":{"$error":"#DIV/0!"}},{"$f":"IF(AL308=0,0,AJ309)","v":0},{"$f":"AK309","v":0},null,null,null,null,null,null,null,"%"]
["Avans solicitat"]
["Procent avans solicitat ca procent din ajutorul public nerambursabil",null,null,null,null,null,null,null,null,null,null,null,null,null,null,null,null,null,null,null,null,null,null,null,null,null,null,null,null,null,null,null,null,null,null,null,{"$f":"AL310*100/AL303","v":{"$error":"#DIV/0!"}},{"$f":"IF(AL303=0,0,AK311)","v":0},null,null,null,null,null,null,null,null,{"$f":"IF(AL311<=50,\"Suma avans mai mica de 50% din ajutorul public\",\"Suma avans mai mare de 50% din ajutorul public\")","v":"Suma avans mai mica de 50% din ajutorul public"}]
[]
[null,"Buget Indicativ - HG 907/2016"]
["MINISTERUL AGRICULTURII ŞI DEZVOLTĂRII RURALE"]
["AGENŢIA PENTRU FINANŢAREA INVESTIŢIILOR RURALE"]
[]
[]
[null,null,null,null,null,null,null,null,null,null,null,null,null,null,null,null,"Curs EURO",null,null,null,null,null,null,null,null,null,null,null,null,null,null,null,"Data întocmirii devizului general din SF/DALI"]
[]
["Măsura",null,null,null,null,null,null,null,null,null,null,null,null,null,null,null,null,null,null,null,null,null,null,null,null,null,null,null,null,null,null,null,null,null,null,null,null,"M5/6B"]
["Denumirea capitolelor de cheltuieli",null,null,null,null,null,null,null,null,null,null,null,null,null,null,null,null,null,null,null,null,null,null,null,null,null,null,null,null,null,null,null,null,null,null,null,null,"Cheltuieli eligibile",null,null,null,null,null,null,null,null,"Cheltuieli neeligibile",null,null,null,null,null,null,null,"Total"]
[null,null,null,null,null,null,null,null,null,null,null,null,null,null,null,null,null,null,null,null,null,null,null,null,null,null,null,null,null,null,null,null,null,null,null,null,null,"EURO",null,null,null,null,null,null,null,null,"EURO",null,null,null,null,null,null,null,"EURO"]
[1,null,null,null,null,null,null,null,null,null,null,null,null,null,null,null,null,null,null,null,null,null,null,null,null,null,null,null,null,null,null,null,null,null,null,null,null,2,null,null,null,null,null,null,null,null,3,null,null,null,null,null,null,null,4]
["Capitolul 1 Cheltuieli pentru obtinerea şi amenajarea terenului - total, din care:",null,null,null,null,null,null,null,null,null,null,null,null,null,null,null,null,null,null,null,null,null,null,null,null,null,null,null,null,null,null,null,null,null,null,null,null,{"$f":"SUM(AL326:AL328)","v":0},null,null,null,null,null,null,null,null,{"$f":"SUM(AU325:AU328)","v":0},null,null,null,null,null,null,null,{"$f":"SUM(AL324:BB324)","v":0}]
["1.1 Obţinerea terenului",null,null,null,null,null,null,null,null,null,null,null,null,null,null,null,null,null,null,null,null,null,null,null,null,null,null,null,null,null,null,null,null,null,null,null,null,null,null,null,null,null,null,null,null,null,null,null,null,null,null,null,null,null,{"$f":"SUM(AL325:BB325)","v":0}]
["1.2 Amenajarea terenului",null,null,null,null,null,null,null,null,null,null,null,null,null,null,null,null,null,null,null,null,null,null,null,null,null,null,null,null,null,null,null,null,null,null,null,null,null,null,null,null,null,null,null,null,null,null,null,null,null,null,null,null,null,0]
["1.3 Amenajari pentru protecţia mediului şi aducerea terenului la starea iniţială",null,null,null,null,null,null,null,null,null,null,null,null,null,null,null,null,null,null,null,null,null,null,null,null,null,null,null,null,null,null,null,null,null,null,null,null,null,null,null,null,null,null,null,null,null,null,null,null,null,null,null,null,null,0]
["1.4 Cheltuieli pentru relocarea/protecţia utilităţilor",null,null,null,null,null,null,null,null,null,null,null,null,null,null,null,null,null,null,null,null,null,null,null,null,null,null,null,null,null,null,null,null,null,null,null,null,null,null,null,null,null,null,null,null,null,null,null,null,null,null,null,null,null,{"$f":"SUM(AL328:BB328)","v":0}]
["Capitolul 2 Cheltuieli pentru asigurarea utilităţilor necesare obiectivului de investiții",null,null,null,null,null,null,null,null,null,null,null,null,null,null,null,null,null,null,null,null,null,null,null,null,null,null,null,null,null,null,null,null,null,null,null,null,null,null,null,null,null,null,null,null,null,null,null,null,null,null,null,null,null,0]
["Capitolul 3 Cheltuieli pentru proiectare şi asistenţă tehnică - total, din care:",null,null,null,null,null,null,null,null,null,null,null,null,null,null,null,null,null,null,null,null,null,null,null,null,null,null,null,null,null,null,null,null,null,null,null,null,{"$f":"AL331+AL335+AL336+AL337+AL338+AL346+AL349","v":0},null,null,null,null,null,null,null,null,{"$f":"AU331+AU335+AU336+AU345+AU337+AU338+AU346+AU349","v":0},null,null,null,null,null,null,null,0]
["3.1 Studii",null,null,null,null,null,null,null,null,null,null,null,null,null,null,null,null,null,null,null,null,null,null,null,null,null,null,null,null,null,null,null,null,null,null,null,null,{"$f":"SUM(AL332:AL334)","v":0},null,null,null,null,null,null,null,null,{"$f":"SUM(AU332:AU334)","v":0},null,null,null,null,null,null,null,{"$f":"SUM(AL331:BB331)","v":0}]
["      3.1.1 Studii de teren",null,null,null,null,null,null,null,null,null,null,null,null,null,null,null,null,null,null,null,null,null,null,null,null,null,null,null,null,null,null,null,null,null,null,null,null,null,null,null,null,null,null,null,null,null,null,null,null,null,null,null,null,null,{"$f":"SUM(AL332:BB332)","v":0}]
["      3.1.2 Raport privind impactul asupra mediului",null,null,null,null,null,null,null,null,null,null,null,null,null,null,null,null,null,null,null,null,null,null,null,null,null,null,null,null,null,null,null,null,null,null,null,null,null,null,null,null,null,null,null,null,null,null,null,null,null,null,null,null,null,{"$f":"SUM(AL333:BB333)","v":0}]
["      3.1.3 Alte studii specifice",null,null,null,null,null,null,null,null,null,null,null,null,null,null,null,null,null,null,null,null,null,null,null,null,null,null,null,null,null,null,null,null,null,null,null,null,null,null,null,null,null,null,null,null,null,null,null,null,null,null,null,null,null,{"$f":"SUM(AL334:BB334)","v":0}]
["3.2 Documentații-suport și cheltuieli pentru obţinerea de avize, acorduri şi autorizaţii",null,null,null,null,null,null,null,null,null,null,null,null,null,null,null,null,null,null,null,null,null,null,null,null,null,null,null,null,null,null,null,null,null,null,null,null,null,null,null,null,null,null,null,null,null,null,null,null,null,null,null,null,null,0]
["3.3 Expertizare tehnică",null,null,null,null,null,null,null,null,null,null,null,null,null,null,null,null,null,null,null,null,null,null,null,null,null,null,null,null,null,null,null,null,null,null,null,null,null,null,null,null,null,null,null,null,null,null,null,null,null,null,null,null,null,0]
["3.4 Certificarea performanței energetice și auditul energetic al clădirilor",null,null,null,null,null,null,null,null,null,null,null,null,null,null,null,null,null,null,null,null,null,null,null,null,null,null,null,null,null,null,null,null,null,null,null,null,null,null,null,null,null,null,null,null,null,null,null,null,null,null,null,null,null,0]
["3.5 Proiectare",null,null,null,null,null,null,null,null,null,null,null,null,null,null,null,null,null,null,null,null,null,null,null,null,null,null,null,null,null,null,null,null,null,null,null,null,{"$f":"SUM(AL339:AL344)","v":0},null,null,null,null,null,null,null,null,{"$f":"SUM(AU339:AU344)","v":0},null,null,null,null,null,null,null,0]
["      3.5.1 Temă de proiectare",null,null,null,null,null,null,null,null,null,null,null,null,null,null,null,null,null,null,null,null,null,null,null,null,null,null,null,null,null,null,null,null,null,null,null,null,null,null,null,null,null,null,null,null,null,null,null,null,null,null,null,null,null,0]
["      3.5.2 Studiu de prefezabilitate",null,null,null,null,null,null,null,null,null,null,null,null,null,null,null,null,null,null,null,null,null,null,null,null,null,null,null,null,null,null,null,null,null,null,null,null,null,null,null,null,null,null,null,null,null,null,null,null,null,null,null,null,null,0]
["      3.5.3 Studiu de fezabilitate/documentație de avizare a lucrărilor de intervenții și deviz general",null,null,null,null,null,null,null,null,null,null,null,null,null,null,null,null,null,null,null,null,null,null,null,null,null,null,null,null,null,null,null,null,null,null,null,null,null,null,null,null,null,null,null,null,null,null,null,null,null,null,null,null,null,0]
["      3.5.4 Documentațiile tehnice necesare în vederea obținerii avizelor/acordurilor/autorizațiilor",null,null,null,null,null,null,null,null,null,null,null,null,null,null,null,null,null,null,null,null,null,null,null,null,null,null,null,null,null,null,null,null,null,null,null,null,null,null,null,null,null,null,null,null,null,null,null,null,null,null,null,null,null,{"$f":"SUM(AL342:BB342)","v":0}]
["      3.5.5 Verificarea tehnică de calitate a proiectului tehnic și a detaliilor de execuție",null,null,null,null,null,null,null,null,null,null,null,null,null,null,null,null,null,null,null,null,null,null,null,null,null,null,null,null,null,null,null,null,null,null,null,null,null,null,null,null,null,null,null,null,null,null,null,null,null,null,null,null,null,0]
["      3.5.6 Proiect tehnic și detalii de execuție",null,null,null,null,null,null,null,null,null,null,null,null,null,null,null,null,null,null,null,null,null,null,null,null,null,null,null,null,null,null,null,null,null,null,null,null,null,null,null,null,null,null,null,null,null,null,null,null,null,null,null,null,null,0]
["3.6 Organizarea procedurilor de achiziţie",null,null,null,null,null,null,null,null,null,null,null,null,null,null,null,null,null,null,null,null,null,null,null,null,null,null,null,null,null,null,null,null,null,null,null,null,null,null,null,null,null,null,null,null,null,null,null,null,null,null,null,null,null,{"$f":"SUM(AL345:BB345)","v":0}]
["3.7 Consultanță",null,null,null,null,null,null,null,null,null,null,null,null,null,null,null,null,null,null,null,null,null,null,null,null,null,null,null,null,null,null,null,null,null,null,null,null,{"$f":"AL347","v":0},null,null,null,null,null,null,null,null,{"$f":"SUM(AU347:AU348)","v":0},null,null,null,null,null,null,null,{"$f":"SUM(AL346:BB346)","v":0}]
["      3.7.1 Managementul de proiect pentru obiectivul de investiții",null,null,null,null,null,null,null,null,null,null,null,null,null,null,null,null,null,null,null,null,null,null,null,null,null,null,null,null,null,null,null,null,null,null,null,null,null,null,null,null,null,null,null,null,null,null,null,null,null,null,null,null,null,{"$f":"SUM(AL347:BB347)","v":0}]
["      3.7.2 Auditul financiar",null,null,null,null,null,null,null,null,null,null,null,null,null,null,null,null,null,null,null,null,null,null,null,null,null,null,null,null,null,null,null,null,null,null,null,null,null,null,null,null,null,null,null,null,null,null,null,null,null,null,null,null,null,0]
["3.8 Asistența tehnică",null,null,null,null,null,null,null,null,null,null,null,null,null,null,null,null,null,null,null,null,null,null,null,null,null,null,null,null,null,null,null,null,null,null,null,null,{"$f":"AL350+AL353","v":0},null,null,null,null,null,null,null,null,{"$f":"AU350+AU353","v":0},null,null,null,null,null,null,null,0]
["      3.8.1 Asistență tehnică din partea proiectantului",null,null,null,null,null,null,null,null,null,null,null,null,null,null,null,null,null,null,null,null,null,null,null,null,null,null,null,null,null,null,null,null,null,null,null,null,{"$f":"SUM(AL351:AL352)","v":0},null,null,null,null,null,null,null,null,{"$f":"SUM(AU351:AU352)","v":0},null,null,null,null,null,null,null,{"$f":"SUM(AL350:BB350)","v":0}]
["            3.8.1.1 pe perioada de execuție a lucrărilor",null,null,null,null,null,null,null,null,null,null,null,null,null,null,null,null,null,null,null,null,null,null,null,null,null,null,null,null,null,null,null,null,null,null,null,null,null,null,null,null,null,null,null,null,null,null,null,null,null,null,null,null,null,{"$f":"SUM(AL351:BB351)","v":0}]
["            3.8.1.2 pentru participarea proiectantului la fazele incluse în programul de control al lucrărilor de execuție, avizat de către Inspectoratul de Stat în Construcții",null,null,null,null,null,null,null,null,null,null,null,null,null,null,null,null,null,null,null,null,null,null,null,null,null,null,null,null,null,null,null,null,null,null,null,null,null,null,null,null,null,null,null,null,null,null,null,null,null,null,null,null,null,0]
["      3.8.2 Dirigenție de șantier",null,null,null,null,null,null,null,null,null,null,null,null,null,null,null,null,null,null,null,null,null,null,null,null,null,null,null,null,null,null,null,null,null,null,null,null,null,null,null,null,null,null,null,null,null,null,null,null,null,null,null,null,null,0]
["Verificare încadrare cheltuieli capitolul 3",null,null,null,null,null,null,null,null,null,null,null,null,null,null,null,null,null,null,null,null,null,null,null,null,null,null,null,null,null,null,null,null,null,{"$f":"AL324+AL329+AL355","v":0},{"$f":"IF(AI354=0,0,AK354)","v":0},{"$f":"AL330*100/AI354","v":{"$error":"#DIV/0!"}},{"$f":"IF(AL355=0,IF(AJ354<=5,\"cheltuieli capitol 3 se incadreaza in limita de 5%\",\"cheltuieli capitol 3 nu se incadreaza in limita de 5%\"),IF(AJ354<=10,\"cheltuieli capitol 3 se incadreaza in limita de 10%\",\"cheltuieli capitol 3 nu se incadreaza in limita de 10%\"))","v":"cheltuieli capitol 3 se incadreaza in limita de 5%"}]
["Capitolul 4 Cheltuieli pentru investiţia de bază - total, din care:",null,null,null,null,null,null,null,null,null,null,null,null,null,null,null,null,null,null,null,null,null,null,null,null,null,null,null,null,null,null,null,null,null,null,null,null,{"$f":"SUM(AL356:AL361)","v":0},null,null,null,null,null,null,null,null,{"$f":"SUM(AU356:AU361)","v":0},null,null,null,null,null,null,null,{"$f":"SUM(AL355:BB355)","v":0}]
["4.1 Construcţii şi instalaţii",null,null,null,null,null,null,null,null,null,null,null,null,null,null,null,null,null,null,null,null,null,null,null,null,null,null,null,null,null,null,null,null,null,null,null,null,null,null,null,null,null,null,null,null,null,null,null,null,null,null,null,null,null,{"$f":"SUM(AL356:BB356)","v":0}]
["4.2 Montaj utilaje, echipamente tehnologice şi funcţionale",null,null,null,null,null,null,null,null,null,null,null,null,null,null,null,null,null,null,null,null,null,null,null,null,null,null,null,null,null,null,null,null,null,null,null,null,null,null,null,null,null,null,null,null,null,null,null,null,null,null,null,null,null,0]
["4.3 Utilaje, echipamente tehnologice şi funcţionale care necesită montaj",null,null,null,null,null,null,null,null,null,null,null,null,null,null,null,null,null,null,null,null,null,null,null,null,null,null,null,null,null,null,null,null,null,null,null,null,null,null,null,null,null,null,null,null,null,null,null,null,null,null,null,null,null,0]
["4.4 Utilaje, echipamente tehnologice şi funcţionale care nu necesită montaj şi echipamente de transport",null,null,null,null,null,null,null,null,null,null,null,null,null,null,null,null,null,null,null,null,null,null,null,null,null,null,null,null,null,null,null,null,null,null,null,null,null,null,null,null,null,null,null,null,null,null,null,null,null,null,null,null,null,0]
["4.5 Dotări",null,null,null,null,null,null,null,null,null,null,null,null,null,null,null,null,null,null,null,null,null,null,null,null,null,null,null,null,null,null,null,null,null,null,null,null,null,null,null,null,null,null,null,null,null,null,null,null,null,null,null,null,null,0]
["4.6 Active necorporale",null,null,null,null,null,null,null,null,null,null,null,null,null,null,null,null,null,null,null,null,null,null,null,null,null,null,null,null,null,null,null,null,null,null,null,null,null,null,null,null,null,null,null,null,null,null,null,null,null,null,null,null,null,0]
["Capitolul 5 Alte cheltuieli - total, din care:",null,null,null,null,null,null,null,null,null,null,null,null,null,null,null,null,null,null,null,null,null,null,null,null,null,null,null,null,null,null,null,null,null,null,null,null,{"$f":"AL363+AL366+AL373","v":0},null,null,null,null,null,null,null,null,{"$f":"AU363+AU366+AU372+AU373","v":0},null,null,null,null,null,null,null,0]
["5.1 Organizare de şantier",null,null,null,null,null,null,null,null,null,null,null,null,null,null,null,null,null,null,null,null,null,null,null,null,null,null,null,null,null,null,null,null,null,null,null,null,{"$f":"SUM(AL364:AT365)","v":0},null,null,null,null,null,null,null,null,{"$f":"SUM(AU364:BB365)","v":0},null,null,null,null,null,null,null,0]
["      5.1.1 Lucrări de construcţii şi instalaţii aferente organizării de şantier",null,null,null,null,null,null,null,null,null,null,null,null,null,null,null,null,null,null,null,null,null,null,null,null,null,null,null,null,null,null,null,null,null,null,null,null,null,null,null,null,null,null,null,null,null,null,null,null,null,null,null,null,null,0]
["      5.1.2 Cheltuieli conexe orgănizării şantierului",null,null,null,null,null,null,null,null,null,null,null,null,null,null,null,null,null,null,null,null,null,null,null,null,null,null,null,null,null,null,null,null,null,null,null,null,null,null,null,null,null,null,null,null,null,null,null,null,null,null,null,null,null,0]
["5.2 Comisioane, cote, taxe, costul creditului",null,null,null,null,null,null,null,null,null,null,null,null,null,null,null,null,null,null,null,null,null,null,null,null,null,null,null,null,null,null,null,null,null,null,null,null,{"$f":"SUM(AL368:AT371)-AL370","v":0},null,null,null,null,null,null,null,null,{"$f":"SUM(AU367:BB371)","v":0},null,null,null,null,null,null,null,{"$f":"SUM(AL366:BB366)","v":0}]
["      5.2.1 Comisioanele și dobânzile aferente creditului băncii finanțatoare",null,null,null,null,null,null,null,null,null,null,null,null,null,null,null,null,null,null,null,null,null,null,null,null,null,null,null,null,null,null,null,null,null,null,null,null,null,null,null,null,null,null,null,null,null,null,null,null,null,null,null,null,null,0]
["      5.2.2 Cota aferentă ISC pentru controlul calității lucrărilor de construcții",null,null,null,null,null,null,null,null,null,null,null,null,null,null,null,null,null,null,null,null,null,null,null,null,null,null,null,null,null,null,null,null,null,null,null,null,null,null,null,null,null,null,null,null,null,null,null,null,null,null,null,null,null,0]
["      5.2.3 Cota aferentă ISC pentru controlul statului în amenajarea teritoriului, urbanism și pentru autorizarea lucrărilor de construcţii",null,null,null,null,null,null,null,null,null,null,null,null,null,null,null,null,null,null,null,null,null,null,null,null,null,null,null,null,null,null,null,null,null,null,null,null,null,null,null,null,null,null,null,null,null,null,null,null,null,null,null,null,null,{"$f":"SUM(AL369:BB369)","v":0}]
["      5.2.4 Cota aferentă Casei Sociale a Constructorilor - CSC",null,null,null,null,null,null,null,null,null,null,null,null,null,null,null,null,null,null,null,null,null,null,null,null,null,null,null,null,null,null,null,null,null,null,null,null,null,null,null,null,null,null,null,null,null,null,null,null,null,null,null,null,null,0]
["      5.2.5 Taxe pentru acorduri, avize conforme și autorizașia de construire/desființare",null,null,null,null,null,null,null,null,null,null,null,null,null,null,null,null,null,null,null,null,null,null,null,null,null,null,null,null,null,null,null,null,null,null,null,null,null,null,null,null,null,null,null,null,null,null,null,null,null,null,null,null,null,{"$f":"SUM(AL371:BB371)","v":0}]
["5.3 Cheltuieli diverse şi neprevăzute",null,null,null,null,null,null,null,null,null,null,null,null,null,null,null,null,null,null,null,null,null,null,null,null,null,null,null,null,null,null,null,null,null,null,null,null,null,null,null,null,null,null,null,null,null,null,null,null,null,null,null,null,null,{"$f":"SUM(AL372:BB372)","v":0}]
["5.4 Cheltuieli pentru informare și publicitate",null,null,null,null,null,null,null,null,null,null,null,null,null,null,null,null,null,null,null,null,null,null,null,null,null,null,null,null,null,null,null,null,null,null,null,null,null,null,null,null,null,null,null,null,null,null,null,null,null,null,null,null,null,{"$f":"SUM(AL373:BB373)","v":0}]
["Capitolul 6 Cheltuieli pentru darea în exploatare - total, din care:",null,null,null,null,null,null,null,null,null,null,null,null,null,null,null,null,null,null,null,null,null,null,null,null,null,null,null,null,null,null,null,null,null,null,null,null,{"$f":"AL376","v":0},null,null,null,null,null,null,null,null,{"$f":"SUM(AU375:AU376)","v":0},null,null,null,null,null,null,null,0]
["6.1 Pregătirea personalului de exploatare",null,null,null,null,null,null,null,null,null,null,null,null,null,null,null,null,null,null,null,null,null,null,null,null,null,null,null,null,null,null,null,null,null,null,null,null,null,null,null,null,null,null,null,null,null,null,null,null,null,null,null,null,null,0]
["6.2 Probe tehnologice şi teste",null,null,null,null,null,null,null,null,null,null,null,null,null,null,null,null,null,null,null,null,null,null,null,null,null,null,null,null,null,null,null,null,null,null,null,null,null,null,null,null,null,null,null,null,null,null,null,null,null,null,null,null,null,0]
["TOTAL GENERAL",null,null,null,null,null,null,null,null,null,null,null,null,null,null,null,null,null,null,null,null,null,null,null,null,null,null,null,null,null,null,null,null,null,null,null,null,{"$f":"AL324+AL329+AL330+AL355+AL362+AL374","v":0},null,null,null,null,null,null,null,null,{"$f":"AU324+AU329+AU330+AU355+AU362+AU374","v":0},null,null,null,null,null,null,null,0]
["Verificare actualizare",null,null,null,null,null,null,null,null,null,null,null,null,null,null,null,null,null,null,null,null,null,null,null,null,null,null,null,null,null,null,null,null,{"$f":"AL379*100/AL377","v":{"$error":"#DIV/0!"}},null,null,{"$f":"IF(AL377=0,0,AH378)","v":0},{"$f":"IF(AK378<=5,\"actualizare mai mică de 5% din valoarea eligibila\",\"actualizare mai mare de 5% din valoarea eligibila\")","v":"actualizare mai mică de 5% din valoarea eligibila"}]
["ACTUALIZARE Cheltuieli Eligibile (max 5%)",null,null,null,null,null,null,null,null,null,null,null,null,null,null,null,null,null,null,null,null,null,null,null,null,null,null,null,null,null,null,null,null,null,null,null,null,null,null,null,null,null,null,null,null,null,null,null,null,null,null,null,null,null,{"$f":"SUM(AL379:BB379)","v":0}]
["TOTAL GENERAL CU ACTUALIZARE",null,null,null,null,null,null,null,null,null,null,null,null,null,null,null,null,null,null,null,null,null,null,null,null,null,null,null,null,null,null,null,null,null,null,null,null,{"$f":"AL377+AL379","v":0},null,null,null,null,null,null,null,null,{"$f":"AU377","v":0},null,null,null,null,null,null,null,{"$f":"SUM(AL380:BB380)","v":0}]
["Valoare TVA",null,null,null,null,null,null,null,null,null,null,null,null,null,null,null,null,null,null,null,null,null,null,null,null,null,null,null,null,null,null,null,null,null,null,null,null,null,null,null,null,null,null,null,null,null,null,null,null,null,null,null,null,null,0]
[]
["TOTAL GENERAL inclusiv TVA",null,null,null,null,null,null,null,null,null,null,null,null,null,null,null,null,null,null,null,null,null,null,null,null,null,null,null,null,null,null,null,null,null,null,null,null,{"$f":"BC380+BC381","v":0}]
[null,null,null,null,null,null,null,null,null,null,null,null,null,null,null,null,null,null,null,null,null,null,null,null,null,null,null,null,null,null,null,null,null,null,null,null,null,"LEI",null,null,null,null,null,null,null,null,"EURO"]
["VALOARE TOTALĂ",null,null,null,null,null,null,null,null,null,null,null,null,null,null,null,null,null,null,null,null,null,null,null,null,null,null,null,null,null,null,null,null,null,null,null,null,{"$f":"AU385*Z318","v":0},null,null,null,null,null,null,null,null,{"$f":"AL383","v":0}]
["VALOARE ELIGIBILĂ",null,null,null,null,null,null,null,null,null,null,null,null,null,null,null,null,null,null,null,null,null,null,null,null,null,null,null,null,null,null,null,null,null,null,null,null,{"$f":"AU386*Z318","v":0},null,null,null,null,null,null,null,null,{"$f":"AL380+AL381","v":0}]
["VALOARE NEELIGIBILĂ",null,null,null,null,null,null,null,null,null,null,null,null,null,null,null,null,null,null,null,null,null,null,null,null,null,null,null,null,null,null,null,null,null,null,null,null,{"$f":"AU387*Z318","v":0},null,null,null,null,null,null,null,null,{"$f":"AU380+AU381","v":0}]
[]
["Plan Financiar",null,null,null,null,null,null,null,null,null,null,null,null,null,null,null,null,null,null,null,null,null,null,null,null,null,null,null,null,null,null,null,null,null,null,null,null,"Cheltuieli eligibile EURO",null,null,null,null,null,null,null,null,"Cheltuieli neeligibile EURO",null,null,null,null,null,null,null,"Total"]
["Ajutor public nerambursabil (contribuţie UE şi cofinanţare naţională)",null,null,null,null,null,null,null,null,null,null,null,null,null,null,null,null,null,null,null,null,null,null,null,null,null,null,null,null,null,null,null,null,null,null,null,null,null,null,null,null,null,null,null,null,null,null,null,null,null,null,null,null,null,{"$f":"SUM(AL390:BB390)","v":0}]
["Cofinantare privata, din care:",null,null,null,null,null,null,null,null,null,null,null,null,null,null,null,null,null,null,null,null,null,null,null,null,null,null,null,null,null,null,null,null,null,null,null,null,{"$f":"SUM(AL392:AL393)","v":0},null,null,null,null,null,null,null,null,{"$f":"SUM(AU392:AU393)","v":0},null,null,null,null,null,null,null,0]
[null,null,null,null,null,null,null,null,null,null,null,null,null,null,null,null,"- autofinantare",null,null,null,null,null,null,null,null,null,null,null,null,null,null,null,null,null,null,null,null,null,null,null,null,null,null,null,null,null,null,null,null,null,null,null,null,null,0]
[null,null,null,null,null,null,null,null,null,null,null,null,null,null,null,null,"- imprumuturi",null,null,null,null,null,null,null,null,null,null,null,null,null,null,null,null,null,null,null,null,null,null,null,null,null,null,null,null,null,null,null,null,null,null,null,null,null,0]
["Buget local",null,null,null,null,null,null,null,null,null,null,null,null,null,null,null,null,null,null,null,null,null,null,null,null,null,null,null,null,null,null,null,null,null,null,null,null,null,null,null,null,null,null,null,null,null,null,null,null,null,null,null,null,null,0]
["TOTAL PROIECT",null,null,null,null,null,null,null,null,null,null,null,null,null,null,null,null,null,null,null,null,null,null,null,null,null,null,null,null,null,null,null,null,null,null,null,null,{"$f":"AL390+AL391+AL394","v":0},null,null,null,null,null,null,null,null,{"$f":"AU391+AU394","v":0},null,null,null,null,null,null,null,0]
["Procent contribuţie publică",null,null,null,null,null,null,null,null,null,null,null,null,null,null,null,null,null,null,null,null,null,null,null,null,null,null,null,null,null,null,null,null,null,null,{"$f":"AL390*100/AL395","v":{"$error":"#DIV/0!"}},{"$f":"IF(AL395=0,0,AJ396)","v":0},{"$f":"AK396","v":0},null,null,null,null,null,null,null,"%"]
["Avans solicitat"]
["Procent avans solicitat ca procent din ajutorul public nerambursabil",null,null,null,null,null,null,null,null,null,null,null,null,null,null,null,null,null,null,null,null,null,null,null,null,null,null,null,null,null,null,null,null,null,null,null,{"$f":"AL397*100/AL390","v":{"$error":"#DIV/0!"}},{"$f":"IF(AL390=0,0,AK398)","v":0},null,null,null,null,null,null,null,null,{"$f":"IF(AL398<=50,\"Suma avans mai mica de 50% din ajutorul public\",\"Suma avans mai mare de 50% din ajutorul public\")","v":"Suma avans mai mica de 50% din ajutorul public"}]
[]
[]
[null,null,null,null,null,null,null,"MINISTERUL AGRICULTURII ŞI DEZVOLTĂRII RURALE"]
[null,null,null,null,null,null,null,null,null,null,null,null,null,null,null,null,null,null,null,null,null,null,null,null,null,null,null,null,null,null,null,null,null,null,null,null,null,null,null,null,null,null,null,null,"Anexa A1\nHG 28/2008"]
[null,null,null,null,null,null,null,"AGENŢIA PENTRU FINANŢAREA INVESTIŢIILOR RURALE"]
[null,null,null,null,null,null,null,null,null,null,null,null,null,null,null,null,null,null,null,null,null,null,null,null,null,null,null,null,null,null,null,null,null,null,null,null,null,null,null,null,null,null,null,null,2017,null,null,null,null,null,null,null,null,"Nr.1"]
[null,null,null,null,null,null,null,"Deviz financiar- Capitolul 3 - Cheltuieli pentru proiectare şi asistenţa tehnică - EURO"]
[]
[]
["(Titlu deviz)"]
["Nr.crt",null,null,null,"Specificaţie",null,null,null,null,null,null,null,null,null,null,null,null,null,null,null,null,null,null,null,null,null,null,null,null,null,null,null,null,null,null,null,null,null,null,null,null,null,null,null,"Valoare eligibilă",null,null,null,null,null,null,null,null,"Valoare\nneeligibilă"]
[1,null,null,null,"Cheltuieli pentru studii de teren (geotehnice, geologice, hidrologice, hidrogeologice, fotogrammetrice, topografice şi de stabilitate a terenului pe care se amplasează obiectivul de investiţie)"]
[2,null,null,null,"Cheltuieli pentru obţinere de avize, acorduri şi autorizaţii - total, din care:",null,null,null,null,null,null,null,null,null,null,null,null,null,null,null,null,null,null,null,null,null,null,null,null,null,null,null,null,null,null,null,null,null,null,null,null,null,null,null,{"$f":"SUM(AS412:BA421)","v":0},null,null,null,null,null,null,null,null,{"$f":"SUM(BB412:BK421)","v":0}]
[null,null,null,null,"1. obţinerea/prelungirea valabilităţii ceritificatului de urbanism"]
[null,null,null,null,"2. obţinerea/prelungirea valabilităţii autorizaţiei de construire/desfiinţare, obţinere autorizaţii de scoatere din circuitul agricol"]
[null,null,null,null,"3. obţinerea avizelor şi acordurilor pentru racorduri şi branşamente la reţelele publice de apă, canalizare, gaze, termoficare, energie electrică, telefonie etc."]
[null,null,null,null,"4. obţinere aviz sanitar, sanitar-veterinar şi fitosanitar"]
[null,null,null,null,"5. obţinerea certificatului de nomenclatură stradală şi adresa"]
[null,null,null,null,"6. întocmirea documentaţiei, obţinerea numărului Cadastral provizoriu şi înregistrarea terenului în Cartea Funciară"]
[null,null,null,null,"7. obţinerea avizului PSI"]
[null,null,null,null,"8. obţinerea acordului de mediu"]
[null,null,null,null,"9. căi ferate"]
[null,null,null,null,"10. alte avize, acorduri şi autorizaţii solicitate prin lege"]
[3,null,null,null,"3 Proiectare şi inginerie - total, din care:",null,null,null,null,null,null,null,null,null,null,null,null,null,null,null,null,null,null,null,null,null,null,null,null,null,null,null,null,null,null,null,null,null,null,null,null,null,null,null,{"$f":"AS423+AS430+AS431+AS432","v":0},null,null,null,null,null,null,null,null,{"$f":"BB423+BB430+BB431+BB432","v":0}]
[null,null,null,null,"1. Cheltuieli pentru elaborarea tuturor fazelor de proiectare - total, din care:",null,null,null,null,null,null,null,null,null,null,null,null,null,null,null,null,null,null,null,null,null,null,null,null,null,null,null,null,null,null,null,null,null,null,null,null,null,null,null,{"$f":"SUM(AS424:BA429)","v":0},null,null,null,null,null,null,null,null,{"$f":"SUM(BB424:BK429)","v":0}]
[null,null,null,null,null,null,"a. studiu de prefezabilitate"]
[null,null,null,null,null,null,"b. studiu de fezabilitate"]
[null,null,null,null,null,null,"c. proiect tehnic"]
[null,null,null,null,null,null,"d. detalii de execuţie"]
[null,null,null,null,null,null,"e. verificarea tehnică a proiectării"]
[null,null,null,null,null,null,"f. elaborarea certificatului de performanţa energetică a clădirii"]
[null,null,null,null,"2. Documentaţii necesare pentru obţinerea acordurilor, avizelor şi autorizaţiilor aferente obiectivului de investitii"]
[null,null,null,null,"3. Cheltuielile pentru expertiza tehnică efectuată pentru construcţii începute şi neterminate sau care urmează a fi modificate prin proiect (modernizări, consolidări etc.)"]
[null,null,null,null,"4. Cheltuielile pentru efectuarea auditului energetic"]
[4,null,null,null,"Organizarea procedurilor de achiziţie"]
[5,null,null,null,"Cheltuieli pentru consultanţă - total, din care:",null,null,null,null,null,null,null,null,null,null,null,null,null,null,null,null,null,null,null,null,null,null,null,null,null,null,null,null,null,null,null,null,null,null,null,null,null,null,null,{"$f":"SUM(AS435:BA436)","v":0},null,null,null,null,null,null,null,null,{"$f":"SUM(BB435:BK436)","v":0}]
[null,null,null,null,"1. plata serviciilor de consultanţă la elaborarea memoriului justificativ, studiilor de piaţă, de evaluare, la întocmirea cererii de finanţare"]
[null,null,null,null,"2. plata serviciilor de consultanţă în domeniul managementului investiţiei sau administrarea contractului de execuţie"]
[6,null,null,null,"Cheltuieli pentru asistenţa tehnică - total, din care:",null,null,null,null,null,null,null,null,null,null,null,null,null,null,null,null,null,null,null,null,null,null,null,null,null,null,null,null,null,null,null,null,null,null,null,null,null,null,null,{"$f":"SUM(AS438:BA439)","v":0},null,null,null,null,null,null,null,null,{"$f":"SUM(BB438:BK439)","v":0}]
[null,null,null,null,"1. asistenţa tehnică din partea proiectantului în cazul când aceasta nu intră în tarifarea proiectării"]
[null,null,null,null,"2. plata diriginţilor de şantier desemnaţi de autoritatea contractantă, autorizaţi conform prevederilor legale pentru verificarea execuţiei lucrărilor de construcţii şi instalaţii"]
[null,null,null,null,"Total valoare fără TVA",null,null,null,null,null,null,null,null,null,null,null,null,null,null,null,null,null,null,null,null,null,null,null,null,null,null,null,null,null,null,null,null,null,null,null,null,null,null,null,{"$f":"AS437+AS434+AS422+AS411+AS410","v":0},null,null,null,null,null,null,null,null,{"$f":"BB437+BB434+BB433+BB422+BB411+BB410","v":0}]
[null,null,null,null,"Valoare TVA (aferentă cheltuielilor eligibile şi neeligibile)"]
["TOTAL DEVIZ FINANCIAR 1 (inclusiv TVA)",null,null,null,null,null,null,null,null,null,null,null,null,null,null,null,null,null,null,null,null,null,null,null,null,null,null,null,null,null,null,null,null,null,null,null,null,null,null,null,null,null,null,null,{"$f":"AS440+BB440+AS441+BB441","v":0}]
[]
["Notă: Pentru a adăuga o nouă anexă accesaţi foaia (sheet) corespunzătoare sau click aici"]
[]
[null,null,null,null,null,null,null,"MINISTERUL AGRICULTURII ŞI DEZVOLTĂRII RURALE"]
[null,null,null,null,null,null,null,null,null,null,null,null,null,null,null,null,null,null,null,null,null,null,null,null,null,null,null,null,null,null,null,null,null,null,null,null,null,null,null,null,null,null,null,null,"Anexa A1\nHG 907/2016"]
[null,null,null,null,null,null,null,"AGENŢIA PENTRU FINANŢAREA INVESTIŢIILOR RURALE"]
[]
[null,null,null,null,null,null,null,"Deviz financiar- Capitolul 3 - Cheltuieli pentru proiectare şi asistenţa tehnică - EURO"]
[]
[]
["(Titlu deviz)"]
["Nr.crt",null,null,null,"Specificaţie",null,null,null,null,null,null,null,null,null,null,null,null,null,null,null,null,null,null,null,null,null,null,null,null,null,null,null,null,null,null,null,null,null,null,null,null,null,null,null,"Valoare eligibilă",null,null,null,null,null,null,null,null,"Valoare\nneeligibilă"]
["3.1",null,null,null,"Cheltuieli pentru studii - total din care:",null,null,null,null,null,null,null,null,null,null,null,null,null,null,null,null,null,null,null,null,null,null,null,null,null,null,null,null,null,null,null,null,null,null,null,null,null,null,null,{"$f":"AS456+AS457+AS458","v":0},null,null,null,null,null,null,null,null,{"$f":"BB456+BB457+BB458","v":0}]
[null,null,null,null,"3.1.1 Studii de teren: studii geotehnice, geologice, hidrologice, hidrogeotehnice,\nfotogrammetrice, topografica şi de stabilitate ale terenului pe care se amplasează obiectivul de investiţie "]
[null,null,null,null,"3.1.2 Raport privind impactul asupra mediului"]
[null,null,null,null,"3.1.3 Studii de specialitate necesare în funcţie de specificul investiţiei"]
["3.2",null,null,null,"Documentaţii-suport şi cheltuieli pentru obţinerea de avize, acorduri şi\nautorizaţii",null,null,null,null,null,null,null,null,null,null,null,null,null,null,null,null,null,null,null,null,null,null,null,null,null,null,null,null,null,null,null,null,null,null,null,null,null,null,null,{"$f":"AS460+AS461+AS462+AS465+AS466+AS467+AS468","v":0},null,null,null,null,null,null,null,null,{"$f":"BB460+BB461+BB462+BB463+BB464+BB465+BB466+BB467+BB468","v":0}]
[null,null,null,null,"1. obţinerea/prelungirea valabilităţii ceritificatului de urbanism"]
[null,null,null,null,"2. obţinerea/prelungirea valabilităţii autorizaţiei de construire/desfiinţare"]
[null,null,null,null,"3. obţinerea avizelor şi acordurilor pentru racorduri şi branşamente la reţele publice\nde alimentare cu apă, canalizare, alimentare cu gaze, alimentare cu agent termic,\nenergie electrică, telefonie"]
[null,null,null,null,"4. obţinerea certificatului de nomenclatură stradală şi adresă"]
[null,null,null,null,"5. întocmirea documentaţiei, obţinerea numărului cadastral provizoriu şi\nînregistrarea terenului în cartea funciară"]
[null,null,null,null,"6. obţinerea actului administrativ al autorităţii competente pentru protecţia mediului"]
[null,null,null,null,"7. obţinerea avizului de protecţie civilă"]
[null,null,null,null,"8. avizul de specialitate în cazul obiectivelor de patrimoniu"]
[null,null,null,null,"9. alte avize, acorduri şi autorizaţii"]
["3.3",null,null,null,"Cheltuieli pentru expertizarea tehnică a construcţiilor existente, a structurilor\nşi/sau, după caz, a proiectelor tehnice, inclusiv întocmirea de către expertul\ntehnic a raportului de expertiză tehnică",null,null,null,null,null,null,null,null,null,null,null,null,null,null,null,null,null,null,null,null,null,null,null,null,null,null,null,null,null,null,null,null,null,null,null,null,null,null,null,0,null,null,null,null,null,null,null,null,0]
["3.4",null,null,null,"Cheltuieli pentru certificarea performanţei energetice şi auditul energetic al clădirilor",null,null,null,null,null,null,null,null,null,null,null,null,null,null,null,null,null,null,null,null,null,null,null,null,null,null,null,null,null,null,null,null,null,null,null,null,null,null,null,0,null,null,null,null,null,null,null,null,0]
["3.5",null,null,null,"Cheltuieli pentru proiectare",null,null,null,null,null,null,null,null,null,null,null,null,null,null,null,null,null,null,null,null,null,null,null,null,null,null,null,null,null,null,null,null,null,null,null,null,null,null,null,{"$f":"AS472+AS473+AS474+AS475+AS476+AS477","v":0},null,null,null,null,null,null,null,null,{"$f":"BB472+BB473+BB474+BB475+BB476+BB477","v":0}]
[null,null,null,null,"3.5.1 Temă de proiectare"]
[null,null,null,null,"3.5.2 Studiu de prefezabilitate"]
[null,null,null,null,"3.5.3 Studiu de fezabilitate/documentaţie de avizare a lucrărilor de intervenţii şi deviz general"]
[null,null,null,null,"3.5.4 Documentaţiile tehnice necesare în vederea obţinerii avizelor/acordurilor/autorizaţiilor"]
[null,null,null,null,"3.5.5 Verificarea tehnică de calitate a proiectului tehnic şi a detaliilor de execuţie"]
[null,null,null,null,"3.5.6 Proiect tehnic şi detalii de execuţie"]
["3.6",null,null,null,"Cheltuieli aferente organizării şi derulării procedurilor de achiziţii publice",null,null,null,null,null,null,null,null,null,null,null,null,null,null,null,null,null,null,null,null,null,null,null,null,null,null,null,null,null,null,null,null,null,null,null,null,null,null,null,null,null,null,null,null,null,null,null,null,{"$f":"BB479+BB480+BB481+BB482","v":0}]
[null,null,null,null,"1. Cheltuieli aferente întocmirii documentaţiei de atribuire şi multiplicării acesteia (exclusiv cele cumpărate de ofertanţi)"]
[null,null,null,null,"2. Cheltuieli cu onorariile, transportul, cazarea şi diurna membrilor desemnaţi în comisiile de evaluare"]
[null,null,null,null,"3. Anunţuri de intenţie, de participare şi de atribuire a contractelor, corespondenţă\nprin poştă, fax, poştă electronică în legătură cu procedurile de achiziţie publică"]
[null,null,null,null,"4. Cheltuieli aferente organizării şi derulării procedurilor de achiziţii publice"]
["3.7",null,null,null,"Cheltuieli pentru consultanţă",null,null,null,null,null,null,null,null,null,null,null,null,null,null,null,null,null,null,null,null,null,null,null,null,null,null,null,null,null,null,null,null,null,null,null,null,null,null,null,{"$f":"AS484","v":0},null,null,null,null,null,null,null,null,{"$f":"BB484+BB485","v":0}]
[null,null,null,null,"3.7.1 Managementul de proiect pentru obiectivul de investiţii"]
[null,null,null,null,"3.7.2 Auditul financiar"]
["3.8",null,null,null,"Cheltuieli pentru asistenţă tehnică",null,null,null,null,null,null,null,null,null,null,null,null,null,null,null,null,null,null,null,null,null,null,null,null,null,null,null,null,null,null,null,null,null,null,null,null,null,null,null,{"$f":"AS487+AS490","v":0},null,null,null,null,null,null,null,null,{"$f":"BB487+BB490","v":0}]
[null,null,null,null,"3.8.1. Asistenţă tehnică din partea proiectantului",null,null,null,null,null,null,null,null,null,null,null,null,null,null,null,null,null,null,null,null,null,null,null,null,null,null,null,null,null,null,null,null,null,null,null,null,null,null,null,{"$f":"AS488+AS489","v":0},null,null,null,null,null,null,null,null,{"$f":"BB488+BB489","v":0}]
[null,null,null,null,"    1.1. pe perioada de execuţie a lucrărilor"]
[null,null,null,null,"     1.2. pentru participarea proiectantului la fazele incluse în programul de control al\nlucrărilor de execuţie, avizat de către Inspectoratul de Stat în Construcţii"]
[null,null,null,null,"3.8.2 Dirigenţie de şantier, asigurată de personal tehnic de specialitate, autorizat"]
[null,null,null,null,"Total valoare fără TVA",null,null,null,null,null,null,null,null,null,null,null,null,null,null,null,null,null,null,null,null,null,null,null,null,null,null,null,null,null,null,null,null,null,null,null,null,null,null,null,{"$f":"AS486+AS483+AS471+AS470+AS469+AS459+AS455","v":0},null,null,null,null,null,null,null,null,{"$f":"BB486+BB483+BB478+BB471+BB470+BB469+BB459+BB455","v":0}]
[null,null,null,null,"Valoare TVA (aferentă cheltuielilor eligibile şi neeligibile)"]
["TOTAL DEVIZ FINANCIAR 1 (inclusiv TVA)",null,null,null,null,null,null,null,null,null,null,null,null,null,null,null,null,null,null,null,null,null,null,null,null,null,null,null,null,null,null,null,null,null,null,null,null,null,null,null,null,null,null,null,{"$f":"AS491+BB491+AS492+BB492","v":0}]
[]
["Notă: Pentru a adăuga o nouă anexă accesaţi foaia (sheet) corespunzătoare sau click aici"]
[]
[null,null,null,null,null,null,null,"MINISTERUL AGRICULTURII ŞI DEZVOLTĂRII RURALE"]
[null,null,null,null,null,null,null,null,null,null,null,null,null,null,null,null,null,null,null,null,null,null,null,null,null,null,null,null,null,null,null,null,null,null,null,null,null,null,null,null,null,null,null,null,"Anexa A2\nHG 28/2008"]
[null,null,null,null,null,null,null,"AGENŢIA PENTRU FINANŢAREA INVESTIŢIILOR RURALE"]
[null,null,null,null,null,null,null,null,null,null,null,null,null,null,null,null,null,null,null,null,null,null,null,null,null,null,null,null,null,null,null,null,null,null,null,null,null,null,null,null,null,null,null,null,2017,null,null,null,null,null,null,null,null,"Nr.1"]
[null,null,null,null,null,null,null,"DEVIZ PE OBIECT *"]
[]
[]
["(Descriere obiect de construcţie)"]
["Nr. crt.",null,null,null,"Denumire",null,null,null,null,null,null,null,null,null,null,null,null,null,null,null,null,null,null,null,null,null,null,null,null,null,null,null,null,null,null,null,null,null,null,null,null,null,null,null,"Valoarea pe categorii de lucrări, fară TVA - EURO"]
[null,null,null,null,null,null,null,null,null,null,null,null,null,null,null,null,null,null,null,null,null,null,null,null,null,null,null,null,null,null,null,null,null,null,null,null,null,null,null,null,null,null,null,null,"Valoare eligibilă",null,null,null,null,null,null,null,null,"Valoare\nneeligibilă"]
["I - LUCRĂRI DE CONSTRUCŢII ŞI INSTALAŢII"]
[1,null,null,null,"Terasamente"]
[2,null,null,null,"Construcţii : rezistenţă (fundaţii, structură de rezistenţă) şi arhitectură (închideri exterioare, compartimentări, finisaje)"]
[3,null,null,null,"Izolaţii"]
[4,null,null,null,"Instalaţii electrice"]
[5,null,null,null,"Instalaţii sanitare"]
[6,null,null,null,"Instalaţii de încălzire, ventilare, climatizare. PSI, radio-tv, intranet"]
[7,null,null,null,"Instalaţii de alimentare cu gaze naturale"]
[8,null,null,null,"Instalaţii de telecomunicaţii"]
[null,null,null,null,"TOTAL I ( fără TVA)",null,null,null,null,null,null,null,null,null,null,null,null,null,null,null,null,null,null,null,null,null,null,null,null,null,null,null,null,null,null,null,null,null,null,null,null,null,null,null,{"$f":"SUM(AS508:BA515)","v":0},null,null,null,null,null,null,null,null,{"$f":"SUM(BB508:BK515)","v":0}]
["II - MONTAJ"]
[9,null,null,null,"Montaj utilaje şi echipamente tehnologice"]
[null,null,null,null,"TOTAL II ( fără TVA)",null,null,null,null,null,null,null,null,null,null,null,null,null,null,null,null,null,null,null,null,null,null,null,null,null,null,null,null,null,null,null,null,null,null,null,null,null,null,null,{"$f":"SUM(AS518)","v":0},null,null,null,null,null,null,null,null,{"$f":"SUM(BB518)","v":0}]
["III - PROCURARE"]
[10,null,null,null,"Utilaje şi echipamente tehnologice"]
[11,null,null,null,"Utilaje şi echipamente de transport, utilaje şi echipamente fară montaj, mijloace de transport, alte achiziţii specifice"]
[12,null,null,null,"Dotări"]
[null,null,null,null,"TOTAL III ( fără TVA)",null,null,null,null,null,null,null,null,null,null,null,null,null,null,null,null,null,null,null,null,null,null,null,null,null,null,null,null,null,null,null,null,null,null,null,null,null,null,null,{"$f":"SUM(AS521:BA523)","v":0},null,null,null,null,null,null,null,null,{"$f":"SUM(BB521:BK523)","v":0}]
["TOTAL ( TOTAL I + TOTAL II +TOTAL III) fără TVA",null,null,null,null,null,null,null,null,null,null,null,null,null,null,null,null,null,null,null,null,null,null,null,null,null,null,null,null,null,null,null,null,null,null,null,null,null,null,null,null,null,null,null,{"$f":"AS524+AS519+AS516","v":0},null,null,null,null,null,null,null,null,{"$f":"BB524+BB519+BB516","v":0}]
["TVA aferent cheltuielilor eligibile şi neeligibile"]
["TOTAL DEVIZ PE OBIECT (inclusiv TVA)",null,null,null,null,null,null,null,null,null,null,null,null,null,null,null,null,null,null,null,null,null,null,null,null,null,null,null,null,null,null,null,null,null,null,null,null,null,null,null,null,null,null,null,{"$f":"AS525+BB525+AS526+BB526","v":0}]
[]
["Notă: Pentru a adăuga o nouă anexă accesaţi foaia (sheet) corespunzătoare sau click aici"]
[]
[null,null,null,null,null,null,null,"MINISTERUL AGRICULTURII ŞI DEZVOLTĂRII RURALE"]
[null,null,null,null,null,null,null,null,null,null,null,null,null,null,null,null,null,null,null,null,null,null,null,null,null,null,null,null,null,null,null,null,null,null,null,null,null,null,null,null,null,null,null,null,"Anexa A2\nHG 907/2016"]
[null,null,null,null,null,null,null,"AGENŢIA PENTRU FINANŢAREA INVESTIŢIILOR RURALE"]
[]
[null,null,null,null,null,null,null,"DEVIZ PE OBIECT *"]
[]
[]
["(Descriere obiect de construcţie)"]
["Nr. crt.",null,null,null,"Denumire",null,null,null,null,null,null,null,null,null,null,null,null,null,null,null,null,null,null,null,null,null,null,null,null,null,null,null,null,null,null,null,null,null,null,null,null,null,null,null,"Valoarea pe categorii de lucrări, fară TVA - EURO"]
["Cap. 4 + Cheltuieli pentru investiţia de bază",null,null,null,null,null,null,null,null,null,null,null,null,null,null,null,null,null,null,null,null,null,null,null,null,null,null,null,null,null,null,null,null,null,null,null,null,null,null,null,null,null,null,null,"Valoare eligibilă",null,null,null,null,null,null,null,null,"Valoare\nneeligibilă"]
["   I - LUCRĂRI DE CONSTRUCŢII ŞI INSTALAŢII"]
["4.1",null,null,null,"Construcţii şi instalaţii"]
[null,null,null,null,"4.1.1 Terasamente, sistematizare pe verticală şi amenajări exterioare"]
[null,null,null,null,"4.1.2 Rezistenţă"]
[null,null,null,null,"4.1.3 Arhitectură"]
[null,null,null,null,"4.1.4 Instalaţii"]
[null,null,null,null,"TOTAL I ( fără TVA)",null,null,null,null,null,null,null,null,null,null,null,null,null,null,null,null,null,null,null,null,null,null,null,null,null,null,null,null,null,null,null,null,null,null,null,null,null,null,null,{"$f":"SUM(AS543:AS546)","v":0},null,null,null,null,null,null,null,null,{"$f":"SUM(BB543:BK546)","v":0}]
["   II - MONTAJ"]
["4.2",null,null,null,"Montaj utilaje şi echipamente tehnologice"]
[null,null,null,null,"TOTAL II ( fără TVA)",null,null,null,null,null,null,null,null,null,null,null,null,null,null,null,null,null,null,null,null,null,null,null,null,null,null,null,null,null,null,null,null,null,null,null,null,null,null,null,{"$f":"SUM(AS549)","v":0},null,null,null,null,null,null,null,null,{"$f":"SUM(BB549)","v":0}]
["   III - PROCURARE"]
["4.3",null,null,null,"Utilaje, echipamente tehnologice şi funcţionale care necesită montaj"]
["4.4",null,null,null,"Utilaje, echipamente tehnologice şi funcţionale care nu necesită\nmontaj şi echipamente de transport"]
["4.5",null,null,null,"Dotări"]
["4.6",null,null,null,"Active necorporale"]
[null,null,null,null,"TOTAL III ( fără TVA)",null,null,null,null,null,null,null,null,null,null,null,null,null,null,null,null,null,null,null,null,null,null,null,null,null,null,null,null,null,null,null,null,null,null,null,null,null,null,null,{"$f":"SUM(AS552:BA555)","v":0},null,null,null,null,null,null,null,null,{"$f":"SUM(BB552:BK555)","v":0}]
["TOTAL ( TOTAL I + TOTAL II +TOTAL III) fără TVA",null,null,null,null,null,null,null,null,null,null,null,null,null,null,null,null,null,null,null,null,null,null,null,null,null,null,null,null,null,null,null,null,null,null,null,null,null,null,null,null,null,null,null,{"$f":"AS556+AS550+AS547","v":0},null,null,null,null,null,null,null,null,{"$f":"BB556+BB550+BB547","v":0}]
["TVA aferent cheltuielilor eligibile şi neeligibile"]
["TOTAL DEVIZ PE OBIECT (inclusiv TVA)",null,null,null,null,null,null,null,null,null,null,null,null,null,null,null,null,null,null,null,null,null,null,null,null,null,null,null,null,null,null,null,null,null,null,null,null,null,null,null,null,null,null,null,{"$f":"AS557+BB557+AS558+BB558","v":0}]
[]
["Notă: Pentru a adăuga o nouă anexă accesaţi foaia (sheet) corespunzătoare sau click aici"]
[]
["Situaţia achiziţiilor publice efectuate până la depunerea Cererii de finanţare cu respectarea condiţiilor de eligibilitate a cheltuielilor prevăzute în fişa Măsurii 5/ 6B"]
["Nr. crt.",null,null,"Obiectul contractului",null,null,null,null,null,null,null,null,null,null,null,null,null,null,null,"Valoarea reală                         (Lei)",null,null,null,null,null,null,null,null,null,null,null,null,null,null,null,null,null,null,null,null,null,null,null,"Data începerii procedurii (zz/ll/aaaa)",null,null,null,null,null,null,"Data finalizarii procedurii (zz/ll/aaaa)",null,null,null,null,null,null,"Stadiul procedurii"]
[1,null,null,"Servicii de consultanta"]
[2,null,null,"Elaborarea Studiului de Fezabilitate"]
[3]
[4]
[5]
[6]
[7]
["Declar pe proprie raspundere ca informatiile din tabelul de mai sus sunt corecte si ca la atribuirea contractelor de servicii mentionate au fost respectate prevederile legislatiei nationale in vigoare privind procedura de achizitie publica"]
[]
["Reprezentant legal, Nume/Prenume"]
["Semnatura si ştampila"]
[]
[]
[]
[null,null,null,null,null,null,null,"MINISTERUL AGRICULTURII ŞI DEZVOLTĂRII RURALE",null,null,null,null,null,null,null,null,null,null,null,null,null,null,null,null,null,null,null,null,null,null,null,null,null,null,null,null,null,null,null,null,null,null,null,null,"Anexa A3\nHG 28/2008"]
[]
[null,null,null,null,null,null,null,"AGENŢIA PENTRU FINANŢAREA INVESTIŢIILOR RURALE",null,null,null,null,null,null,null,null,null,null,null,null,null,null,null,null,null,null,null,null,null,null,null,null,null,null,null,null,null,null,null,null,null,null,null,null,2017,null,null,null,null,null,null,null,null,"Nr.1"]
[]
[]
[]
["(Titlu deviz)"]
["Deviz capitolul 2- Cheltuieli pentru asigurarea utilităţilor necesare obiectivului - EURO"]
["Nr.crt",null,null,null,"Specificaţie",null,null,null,null,null,null,null,null,null,null,null,null,null,null,null,null,null,null,null,null,null,null,null,null,null,null,null,null,null,null,null,null,null,null,null,null,null,null,null,"Valoare eligibilă",null,null,null,null,null,null,null,null,"Valoare\nneeligibilă"]
[1,null,null,null,"Alimentare cu apă"]
[2,null,null,null,"Canalizare"]
[3,null,null,null,"Alimentare cu gaze naturale"]
[4,null,null,null,"Alimentare cu agent termic"]
[5,null,null,null,"Alimentare cu energie electrică"]
[6,null,null,null,"Telecomunicaţii (telefonie, radio-tv,etc)"]
[7,null,null,null,"Alte tipuri de reţele exterioare"]
[8,null,null,null,"Drumuri de acces"]
[null,null,null,null,"Total valoare fără TVA",null,null,null,null,null,null,null,null,null,null,null,null,null,null,null,null,null,null,null,null,null,null,null,null,null,null,null,null,null,null,null,null,null,null,null,null,null,null,null,{"$f":"SUM(AS588:BA595)","v":0},null,null,null,null,null,null,null,null,{"$f":"SUM(BB588:BK595)","v":0}]
[null,null,null,null,"Valoare TVA aferentă cheltuielilor eligibile şi neeligibile"]
["TOTAL DEVIZ CAPITOLUL 2 (inclusiv TVA)",null,null,null,null,null,null,null,null,null,null,null,null,null,null,null,null,null,null,null,null,null,null,null,null,null,null,null,null,null,null,null,null,null,null,null,null,null,null,null,null,null,null,null,{"$f":"AS596+BB596+AS597+BB597","v":0}]
[]
[" Deviz capitolul 5 - Alte cheltuieli - EURO"]
["Nr.crt",null,null,null,"Specificaţie",null,null,null,null,null,null,null,null,null,null,null,null,null,null,null,null,null,null,null,null,null,null,null,null,null,null,null,null,null,null,null,null,null,null,null,null,null,null,null,"Valoare eligibilă",null,null,null,null,null,null,null,null,"Valoare\nneeligibilă"]
[]
["5.1 ",null,null,null,"Organizare de şantier",null,null,null,null,null,null,null,null,null,null,null,null,null,null,null,null,null,null,null,null,null,null,null,null,null,null,null,null,null,null,null,null,null,null,null,null,null,null,null,{"$f":"SUM(AS604:BA605)","v":0},null,null,null,null,null,null,null,null,{"$f":"SUM(BB604:BK605)","v":0}]
["5.1.1",null,null,null,"lucrări de construcţii şi instalaţii aferente organizării de şantier"]
["5.1.2",null,null,null,"cheltuieli conexe organizării de şantier"]
["5.2",null,null,null,"Comisioane, taxe",null,null,null,null,null,null,null,null,null,null,null,null,null,null,null,null,null,null,null,null,null,null,null,null,null,null,null,null,null,null,null,null,null,null,null,null,null,null,null,{"$f":"SUM(AS608:BA611)","v":0},null,null,null,null,null,null,null,null,{"$f":"SUM(BB607:BK612)","v":0}]
[null,null,null,null,"comisionul băncii finanţatoare"]
[null,null,null,null,"cota aferentă Inspectoratului de Stat în Construcţii pentru controlul calităţii lucrărilor de construcţii"]
[null,null,null,null,"cota pentru controlul statului în amenajarea teritoriului, urbanism şi pentru autorizarea lucrărilor de construcţii"]
[null,null,null,null,"prime de asigurare din sarcina autorităţii contractante"]
[null,null,null,null,"alte cheltuieli de aceeaşi natură, stabilite în condiţiile legii"]
[null,null,null,null,"cota aferentă Casei Sociale a Constructorilor"]
["5.3",null,null,null," Cheltuieli diverse si neprevazute"]
[null,null,null,null,"TOTAL DEVIZ CAPITOLUL 5",null,null,null,null,null,null,null,null,null,null,null,null,null,null,null,null,null,null,null,null,null,null,null,null,null,null,null,null,null,null,null,null,null,null,null,null,null,null,null,{"$f":"AS603+AS606","v":0},null,null,null,null,null,null,null,null,{"$f":"BB603+BB606+BB613","v":0}]
[null,null,null,null,"VALOARE TVA aferentă cheltuielilor eligibile şi neeligibile"]
[null,null,null,null,"TOTAL DEVIZ CAPITOLUL 5 ( inclusiv TVA)",null,null,null,null,null,null,null,null,null,null,null,null,null,null,null,null,null,null,null,null,null,null,null,null,null,null,null,null,null,null,null,null,null,null,null,null,null,null,null,{"$f":"AS614+BB614+AS615+BB615","v":0}]
[]
["Notă: Pentru a adăuga o nouă anexă accesaţi foaia (sheet) corespunzătoare sau click aici"]
[]
[]
[null,null,null,null,null,null,null,"MINISTERUL AGRICULTURII ŞI DEZVOLTĂRII RURALE",null,null,null,null,null,null,null,null,null,null,null,null,null,null,null,null,null,null,null,null,null,null,null,null,null,null,null,null,null,null,null,null,null,null,null,null,"Anexa A3\nHG 907/2016"]
[]
[null,null,null,null,null,null,null,"AGENŢIA PENTRU FINANŢAREA INVESTIŢIILOR RURALE"]
[]
[]
[]
["(Titlu deviz)"]
["Deviz capitolul 2- Cheltuieli pentru asigurarea utilităţilor necesare obiectivului - EURO"]
["Nr.crt",null,null,null,"Specificaţie",null,null,null,null,null,null,null,null,null,null,null,null,null,null,null,null,null,null,null,null,null,null,null,null,null,null,null,null,null,null,null,null,null,null,null,null,null,null,null,"Valoare eligibilă",null,null,null,null,null,null,null,null,"Valoare\nneeligibilă"]
[1,null,null,null,"Alimentare cu apă"]
[2,null,null,null,"Canalizare"]
[3,null,null,null,"Alimentare cu gaze naturale"]
[4,null,null,null,"Alimentare cu agent termic"]
[5,null,null,null,"Alimentare cu energie electrică"]
[6,null,null,null,"Telecomunicaţii (telefonie, radio-tv,etc)"]
[7,null,null,null,"Drumuri de acces"]
[8,null,null,null,"Căi ferate industriale"]
[9,null,null,null,"Alte utilități"]
[null,null,null,null,"TOTAL DEVIZ CAPITOLUL 2",null,null,null,null,null,null,null,null,null,null,null,null,null,null,null,null,null,null,null,null,null,null,null,null,null,null,null,null,null,null,null,null,null,null,null,null,null,null,null,{"$f":"SUM(AS630:BA638)","v":0},null,null,null,null,null,null,null,null,{"$f":"SUM(BB630:BK638)","v":0}]
[null,null,null,null,"Valoare TVA aferentă cheltuielilor eligibile şi neeligibile"]
["TOTAL DEVIZ CAPITOLUL 2 (inclusiv TVA)",null,null,null,null,null,null,null,null,null,null,null,null,null,null,null,null,null,null,null,null,null,null,null,null,null,null,null,null,null,null,null,null,null,null,null,null,null,null,null,null,null,null,null,{"$f":"AS639+BB639+AS640+BB640","v":0}]
[]
[" Deviz capitolul 5 - Alte cheltuieli - EURO"]
["Nr.crt",null,null,null,"Specificaţie",null,null,null,null,null,null,null,null,null,null,null,null,null,null,null,null,null,null,null,null,null,null,null,null,null,null,null,null,null,null,null,null,null,null,null,null,null,null,null,"Valoare eligibilă",null,null,null,null,null,null,null,null,"Valoare\nneeligibilă"]
[]
["5.1 ",null,null,null,"Organizare de şantier",null,null,null,null,null,null,null,null,null,null,null,null,null,null,null,null,null,null,null,null,null,null,null,null,null,null,null,null,null,null,null,null,null,null,null,null,null,null,null,{"$f":"SUM(AS647:BA648)","v":0},null,null,null,null,null,null,null,null,{"$f":"SUM(BB647:BK648)","v":0}]
[null,null,null,null,"5.1.1 Lucrări de construcţii şi instalaţii aferente organizării de şantier"]
[null,null,null,null,"5.1.2 Cheltuieli conexe organizării de şantier"]
["5.2",null,null,null,"Comisioane, cote, taxe, costul creditului",null,null,null,null,null,null,null,null,null,null,null,null,null,null,null,null,null,null,null,null,null,null,null,null,null,null,null,null,null,null,null,null,null,null,null,null,null,null,null,{"$f":"SUM(AS651:AS654)-AS653","v":0},null,null,null,null,null,null,null,null,{"$f":"SUM(BB650:BK654)","v":0}]
[null,null,null,null,"5.2.1. Comisioanele şi dobânzile aferente creditului băncii finanţatoare",null,null,null,null,null,null,null,null,null,null,null,null,null,null,null,null,null,null,null,null,null,null,null,null,null,null,null,null,null,null,null,null,null,null,null,null,null,null,null,1]
[null,null,null,null,"5.2.2. Cota aferentă ISC pentru controlul calităţii lucrărilor de\nconstrucţii"]
[null,null,null,null,"5.2.3. Cota aferentă ISC pentru controlul statului în amenajarea teritoriului, urbanism şi pentru autorizarea lucrărilor de construcţii"]
[null,null,null,null,"5.2.4. Cota aferentă Casei Sociale a Constructorilor - CSC"]
[null,null,null,null,"5.2.5. Taxe pentru acorduri, avize conforme şi autorizaţia de construire/desfiinţare"]
["5.3",null,null,null," Cheltuieli diverse si neprevazute"]
["5.3",null,null,null,"Cheltuieli pentru informare și publicitate",null,null,null,null,null,null,null,null,null,null,null,null,null,null,null,null,null,null,null,null,null,null,null,null,null,null,null,null,null,null,null,null,null,null,null,null,null,null,null,0,null,null,null,null,null,null,null,null,0]
[null,null,null,null,"TOTAL DEVIZ CAPITOLUL 5",null,null,null,null,null,null,null,null,null,null,null,null,null,null,null,null,null,null,null,null,null,null,null,null,null,null,null,null,null,null,null,null,null,null,null,null,null,null,null,{"$f":"AS646+AS649+AS656","v":0},null,null,null,null,null,null,null,null,{"$f":"BB656+BB655+BB649+BB646","v":0}]
[null,null,null,null,"VALOARE TVA aferentă cheltuielilor eligibile şi neeligibile"]
[null,null,null,null,"TOTAL DEVIZ CAPITOLUL 5 ( inclusiv TVA)",null,null,null,null,null,null,null,null,null,null,null,null,null,null,null,null,null,null,null,null,null,null,null,null,null,null,null,null,null,null,null,null,null,null,null,null,null,null,null,{"$f":"AS657+BB657+AS658+BB658","v":0}]
[]
["Notă: Pentru a adăuga o nouă anexă accesaţi foaia (sheet) corespunzătoare sau click aici"]
[]
[]
["MINISTERUL AGRICULTURII ŞI DEZVOLTĂRII RURALE",null,null,null,null,null,null,null,null,null,null,null,null,null,null,null,null,null,null,null,null,null,null,null,null,null,null,null,null,null,null,null,"SECTIUNE SPECIFICA MASURA 5/6B"]
["AGENŢIA PENTRU FINANŢAREA INVESTIŢIILOR RURALE"]
[]
["D. ALTE INFORMAȚII :"]
["Programarea proiectului:"]
["Numar luni de implementare"]
[]
["E. LISTA DOCUMENTELOR ANEXATE PROIECTELOR AFERENTE MĂSURII 5/6B",null,null,null,null,null,null,null,null,null,null,null,null,null,null,null,null,null,null,null,null,null,null,null,null,null,null,null,null,null,null,null,null,null,null,null,null,null,null,null,null,null,null,null,null,null,null,null,null,null,null,null,null,null,null,null,null,"OPIS"]
[null,null,null,null,null,null,null,null,null,null,null,null,null,null,null,null,null,null,null,null,null,null,null,null,null,null,null,null,null,null,null,null,null,null,null,null,null,null,null,null,null,null,null,null,null,null,null,null,null,null,null,null,null,null,null,null,null,"documente"]
["Documentele se vor anexa cererii de finanțare în ordinea de mai jos:"]
["Lista documente",null,null,null,null,null,null,null,null,null,null,null,null,null,null,null,null,null,null,null,null,null,null,null,null,null,null,null,null,null,null,null,"Obligatoriu pentru toate proiectele",null,null,null,null,"Obligatoriu, dacă proiectul impune",null,null,null,null,null,null,"PAGINA de   la - până la",null,null,null,null,null,null,null,"Obligatoriu pentru toate proiectele",null,null,null,null,"Obligatoriu, dacă proiectul impune"]
["ETAPA:",null,null,null,null,null,null,null,null,null,null,null,null,null,null,null,null,null,null,null,null,null,null,null,null,null,null,null,null,null,null,null,"DEPUNERE",null,null,null,null,null,null,null,null,null,null,null,null,null,null,null,null,null,null,null,"CONTRACTARE"]
["1.1 Studiu de Fezabilitate/Documentaţie de Avizare pentru Lucrări de\nIntervenţii, întocmite, avizate și verificate în condițiile legii și însoțite de\ntoate studiile, expertizele, avizele și acordurile specifice fiecărui tip de\ninvestiție, conform reglementărilor legale în vigoare sau"]
["1.2 Memoriu justificativ - doar în cazul achizițiilor simple și dotărilor care nu presupun montaj.\n\n"]
["2. Certificat de Urbanism, completat și eliberat conform reglementărilor\nlegale în vigoare și aflate în termenul de valabilitate la data depunerii cererii de finanțare."]
["3.1 Pentru comune și ADI\nInventarul bunurilor ce aparţin domeniului public al comunei/comunelor, întocmit conform legislaţiei în vigoare privind proprietatea publică şi regimul juridic al acesteia, atestat prin Hotărâre a Guvernului şi publicat în Monitorul Oficial al României.\nşi"]
["3.2 Hotărârea Consiliului Local privind aprobarea modificărilor şi / sau\ncompletărilor la inventar în sensul includerii în domeniul public sau\ndetalierii poziției globale existente sau clasificării unor drumuri\nneclasificate, cu respectarea prevederilor Art. 115 alin (7) din Legea nr.\n215/ 2001, republicată, cu modificările şi completările ulterioare, a\nadministraţiei publice locale, adică să fi fost supusă controlului de legalitate al Prefectului, în condiţiile legii\nși/sau"]
["3.3 Pentru ONG-uri\nDocumente doveditoare de către ONG-uri privind dreptul de\nproprietate /administrare pe o perioadă de 10 ani, asupra bunurilor imobile\nla care se vor efectua lucrări, conform cererii de finanţare;"]
["4.1 Hotărârea Consiliului Local / Hotaririle Consiliului Local în cazul ADI/\nHotararea Adunarii Generala în cazul ONG pentru implementarea\nproiectului, cu referire la următoarelor puncte (obligatorii):\n potentialul economic, oportunitatea si necesitatea socio-economica a investitiei;\n lucrările vor fi prevăzute în bugetul solicitantului pentru perioada de realizare a investiţiei, în cazul în care se obţine finanţarea;\n angajamentul de a suporta cheltuielile de întreţinere/mentenanță a investiţiei pe o perioadă de minimum 5 ani de la data efectuării ultimei plăți;\n caracteristici tehnice ale investiției/investițiilor propuse (lungimi, arii, volume, capacităţi etc.);\n numărul de locuitori deserviţi de proiect sau numarul de utilizatori direcţi ;\n nominalizarea şi delegarea reprezentantului legal al solicitantului pentru relaţia cu AFIR în derularea proiectului.\n angajamentul de asigurare a cofinantarii, daca este cazul. \n"]
["4.2. Hotărârea organului de conducere specific fiecărei categorii de solicitanți cu referire la însuşirea / aprobarea de către ONG, Unitate de cult, Persoană fizică autorizată / Societate Comercială  a următoarelor (condiții obligatorii):\n potentialul economic, oportunitatea si necesitatea socio-economica a investitiei;\n lucrările vor fi prevăzute în bugetul solicitantului pentru perioada de realizare a investiţiei, în cazul în care se obţine finanţarea;\n angajamentul de a suporta cheltuielile de întreţinere/mentenanță a investiţiei pe o perioadă de minimum 5 ani de la data efectuării ultimei plăți;\n caracteristici tehnice ale investiției/investițiilor propuse (lungimi, arii, volume, capacităţi etc.);\n numărul de locuitori deserviţi de proiect sau numarul de utilizatori direcţi ;\n nominalizarea şi delegarea reprezentantului legal al solicitantului pentru relaţia cu AFIR în derularea proiectului.\n angajamentul de asigurare a cofinantarii, daca este cazul. \n"]
["5.1 Certificatul de înregistrare fiscală"]
["5.2 Încheiere privind înscrierea în Registrul Asociațiilor și Fundațiilor,\nrămasă definitivă / Certificat de înregistrare în\nRegistrul Asociațiilor și Fundațiilor si"]
["5.3 Actul de înfiinţare şi statutul ADI/ONG"]
["5.4. Actul Constitutiv, Certificatul de înregistrare a firmei, Hotărârea tribunalului de pe lângă ONRC, Certificat constatator eliberat de ONRC"]
["5.5. Actul de înfiinţare şi statutul unitatii de cult"]
["6. Raport asupra utilizării programelor de finanţare nerambursabilă întocmit de solicitant (va cuprinde obiective, tip de investiţie, lista cheltuielilor eligibile, costuri şi stadiul proiectului, perioada derulării proiectului), pentru solicitanţii care au mai beneficiat de finanţare nerambursabilă începând cu anul 2007 pentru aceleaşi tipuri de investiţii."]
["7. Extrasul din strategie, care confirmă dacă investiţia este în corelare cu orice strategie de dezvoltare naţională/ regional/ judeţeană/ locală aprobată, corespunzătoare domeniului de investiţii precum şi copia hotărârii de aprobare a strategiei.\n"]
["8. Copie document de identitate al reprezentantului legal al beneficiarului."]
["9. Document eliberat de Primărie/ Centrul eparhial ( în cazul Unităţilor de Cult)/ Comitet director al ONG/Societate comercială, din care să rezulte numărul de activităţi desfăşurate ce au avut loc în ultimele 12 luni, anterioare datei depunerii Cererii de Finanţare "]
["10. Avizul emis de către Ministerul Culturii sau, după caz, de către serviciile publice deconcentrate ale Ministerului Culturii respectiv Direcțiile Judeţene pentru Cultură pe raza cărora sunt amplasate obiectivele, conform Legii nr. 422/2001 privind protejarea monumentelor istorice, republicată, cu modificările și completările ulterioare, care să confirme faptul că obiectivul propus spre finanțare face parte din patrimoniul cultural de interes local – clasa (grupa) B şi că se poate interveni asupra lui (documentația este adecvată)."]
["11. Dovadă eliberată de Muzeul județean, prin care se certifică verificarea documentară și pe teren, dacă este cazul, asupra unor intervenții antropice cu caracter arheologic în perimetrul aferent proiectului propus pentru finanțare nerambursabilă (OG nr. 43/2000 privind protecția patrimoniului arheologic și declararea unor situri arheologice ca zone de interes național, republicată, cu modificările și completările ulterioare)."]
["12. Document/e justificativ/e (ex.: afișe, pliante, anunțuri, procese ‐ verbale etc eliberat/e de Primărie/Centru eparhial (în cazul unităților de cult)/ Comitet director al ONG/ Societate comercială din care să rezulte activităţile desfășurate în ultimele 12 luni, anterioare datei depunerii Cererii de Finanţare."]
["13. Copie Ordin de clasare ca monument istoric de interes local clasa (grupa) B conform Legii 422/2001 și copie Monitor Oficial al României Partea I în care a fost publicat, dacă este cazul"]
["14. Lista obiectivelor de interes local aprobata de catre fiecare UAT insotita de Hotararea Consiliului Local prin care a fost aprobata."]
["15. Contractul/acordul proprietarului retelei publice de iluminat/ liniei electrice privind dreptul de folosinta asupra infrastructurii sistemului de distributie din partea proprietarului acesteia pe toata durata de implementare si monitorizare a proiectului pentru investitiile  ce vizeaza modernizarea retelei publice de iluminat prin executarea unor investitii ce nu prevad executarea unor lucrari de constructii, daca este cazul."]
["16. Contractul cu proprietarul retelei publice de iluminat privind dreptul de folosinta asupra infrastructurii retelei publice de iluminat din partea proprietarului acesteia pe toata durata de implementare si monitorizare a proiectului, insotit de acordul proprietarului infrastructurii privind amplasarea sistemului public de supraveghere (acordul proprietarului poate fi mentionat explicit si in cadrul contractului care atesta dreptul de folosinta a infrastructurii), in cadrul actiunilor ce vizeaza infiintarea, modernizarea sau extinderea sistemelor publice de supraveghere prin executarea unor investitii ce nu prevad executarea unor lucrari de constructii.\n\n"]
["17. Hotararea Consiliului Local de infiintare a serviciului public insotita de inventarul bunurilor din cadrul serviciului respectiv, daca este cazul; "]
["18. Anexa 8 Declaratie eligibilitate;\n"]
["19. Anexa 9 Declaratie de raportare catre GAL"]
[]
[]
[]
[]
[]
["DOCUMENTE CONTRACTARE"]
["1. Certificat/e care să ateste lipsa datoriilor restante fiscale, emise de Direcţia Generală a Finanţelor Publice şi, dacă este cazul, graficul de reeşalonare a datoriilor către bugetul consolidat."]
["2. Document emis de ANPM\n2.1 Clasarea notificării sau\n2.2. Decizia etapei de încadrare, ca document final (prin care se precizează că proiectul nu se supune evaluării impactului asupra mediului şi nici evaluării adecvate)\nsau\n2.3. Acord de mediu în cazul în care se impune evaluarea impactului preconizat asupra mediului sau\n2.4.  Acord de mediu în cazul evaluării impactului asupra mediului şi de evaluare adecvată (daca este cazul)\nsau\n2.5.  Aviz Natura 2000 pentru proiectele care impun doar evaluare adecvată.\nTermenul maxim de prezentare a documentelor emise de ANPM este precizat in notificarea emisa in conformitate cu procedurile aprobate prin ordin al ministrului agriculturii si dezvoltarii rurale, termen care curge de la data comunicarii notificarii privind selectia proiectului. După expirarea termenului prevăzut pentru prezentarea documentului de mediu, contractul de finanţare nu mai poate fi semnat"]
["3. Cazier judiciar al reprezentantului legal"]
["4. Cazier fiscal al solicitantului"]
["5. Declaraţia de eşalonare a depunerii dosarelor cererilor de plată, inclusiv cea pentru decontarea TVA unde este cazul"]
["6. Dovada achitarii integrale a datoriei faţă de AFIR, inclusiv dobânzile şi majorările de întârziere, dacă este cazul"]
["7. Document de la bancă / trezorerie cu datele de identificare ale băncii / trezoreriei şi ale contului aferent proiectului FEADR (denumirea, adresa băncii / trezoreriei, codul IBAN al contului în care se derulează operaţiunile cu AFIR)."]
["8, Alte documente"]
[]
[]
[]
[]
["F. DECLARAŢIE PE PROPRIA RĂSPUNDERE A SOLICITANTULUI"]
["Prin această declaraţie solicitantul"]
[]
["care solicită asistență financiară nerambursabilă prin programul FEADR pentru proiectul intitulat"]
[]
["prin reprezentant legal"]
[]
["cunoscând prevederile legii penale cu privire la falsul în declarații:"]
[null,"1. Declar că proiectul propus asistenței financiare nerambursabile FEADR nu beneficiază de altă finanțare din\nprograme de finanțare nerambursabilă."]
["De asemenea mă angajez ca în cazul în care proiectul va fi selectat pentru finanțare FEADR, nu voi depune acest\nproiect la nici un alt program de finanțare nerambursabilă la care proiectul poate fi în întregime sau parțial eligibil\npentru asistență."]
[null,"2. Declar că îndeplinesc condițiile de eligibilitate prevăzute în fișa sub-măsurii și Ghidul Solicitantului și mă\nangajez să le respect pe perioada de valabilitate a contractului de finanțare și monitorizare a investiției, inclusiv\ncriteriile de selecție pentru care proiectul a fost punctat."]
[null,"3. Declar că toate informațiile din prezenta cerere de finanțare și din documentele anexate sunt corecte și mă\nangajez să respect condițiile cerute în reglementările referitoare la prezentul program și pe cele legate de\nproiectul anexat și să furnizez periodic, la cerere, documentele justificative necesare."]
[null,"4. Declar pe propria răspundere că orice modificări aduse dreptului de proprietate sau de folosință vor fi\nnotificate AFIR în termen de trei zile de la data producerii lor."]
["  5. Declar că eu și organizația mea (UAT sau ONG) nu ne aflăm într-unul din următoarele cazuri:"]
[null,null,null,"Acuzat din cauza unei greșeli privind conduita profesională având ca soluție finală res judicata (împotriva căreia nici un apel nu este posibil)"]
[null,null,null,"Vinovat de grave deficiențe de conduită profesională dovedite prin orice mijloace pe care Agenția le poate justifica."]
[null,null,null,"Vinovat de faptul că nu am prezentat informaţiile cerute de autoritatea contractantă ca o condiţie de participare la licitaţie sau contractare"]
[null,null,null,"Încălcarea prevederilor contractuale prin care nu mi-am îndeplinit obligațiile contractuale în legătură cu un alt contract cu Agenția sau alte contracte finanțate din fonduri comunitare."]
[null,null,null,"Încercarea de a obține informații confidențiale sau de influențare a Agenției în timpul procesului de evaluare a proiectului și nu voi face presiuni la adresa evaluatorului."]
["6.",null,null,null,null,"Declar că organizația pe care o reprezint ARE datorii către instituții de credit și/sau instituții financiare\nnebancare. În acest sens, atașez Graficul de rambursare a datoriilor și document de la bancă pentru\ncertificarea respectării graficului de rambursare."]
[null,null,null,null,null,"Declar că organizația pe care o reprezint NU are datorii către instituții de credit şi/sau instituții financiare\nnebancare."]
["7.",null,null,null,null,"Declar pe propria răspundere ca în cazul în care nu respect oricare din punctele prevăzute în această\ndeclarație proiectul să devină neeligibil în baza criteriului \"Eligibilitatea solicitantului\" sau contractul să fie\nreziliat."]
["8.",null,null,null,null,"Declar pe propria răspundere că:"]
[null,null,null,null,null,"Nu sunt înregistrat în scopuri TVA și că mă angajez să notific Agenției orice modificare a situatiei privind înregistrarea ca plătitor de TVA, în maximum 10 (zece) zile de la data înregistrării în scopuri TVA."]
[null,null,null,null,null,"Sunt înregistrat în scopuri de TVA (certificat de înregistrare fiscală în scopuri de TVA)."]
["9.",null,null,null,null,"Declar pe propria răspundere că nu am înscrieri care privesc sancțiuni economico-financiare în cazierul\njudiciar pe care mă oblig să îl depun la încheierea contractului de finanțare."]
["10.",null,null,null,null,"Declar pe propria raspundere că nu am fapte înscrise în cazierul fiscal."]
["11.",null,null,null,null,"Declar pe propria răspundere că toate cheltuielile neeligibile vor fi suportate de solicitant și că acestea vor fi realizate până la finalizarea proiectului."]
["12.",null,null,null,null,"Ma angajez ca in termenul precizat in Ghidul Solicitantului, de la data primirii \"Notificarii benficiarului privind selectarea cererii de finantare si semnarea contractului de finantare\", sa asigur si sa prezint documentele obligatorii mentionate in Ghidul solicitantului pentru contractarea proiectului."]
["13.",null,null,null,null,"Declar pe proprie raspundere ca voi achita integral datoria fata de AFIR, inclusiv dobanzile si majorarile de\nintarziere pana la semnarea contractului de finantare (pentru solicitantii inregistrati in registrul debitorilor AFIR atat pentru programul SAPARD cat si pentru FEADR)."]
["14.",null,null,null,null,"Declar pe propria răspundere ca nu sunt în insolventă sau incapacitate de plată."]
[15,null,null,null,null,"Declar pe propria răspundere că în conformitate cu termenul menţionat în notificarea AFIR privind selecţia cererii de finanţare, voi obţine şi depune, înainte de semnarea contractului de finanţare, documentul emis de ANPM menţionat în secţiunea E punctul 4 a cererii de finanţare."]
[16,null,null,null,null,"Accept publicarea pe site-ul AFIR a datelor mele cu respectarea legislaţiei naţionale şi europene privind transparenţa."]
[]
["Semnătura reprezentant legal şi ştampila",null,null,null,null,null,null,null,null,null,null,null,null,null,null,null,null,null,null,null,null,null,null,null,null,null,null,null,null,null,null,null,null,null,null,null,null,null,null,null,null,null,null," Data:"]
[]
[]
[]
["Anexa INDICATORI DE MONITORIZARE"]
["MASURA 5/ 6B DEZVOLTAREA SATELOR"]
[]
["1. Tipul de sprijin",null,null,null,null,null,null,null,null,null,null,null,null,null,null,null,null,null,"A. CREAREA SI MODERNIZAREA INFRASTRUCTII FIZICE DE BAZA"]
[null,null,null,null,null,null,null,null,null,null,null,null,null,null,null,null,null,null,"B. CREAREA SI DEZVOLTAREA SERVICIILOR DE BAZA"]
[null,null,null,null,null,null,null,null,null,null,null,null,null,null,null,null,null,null,"C. PROTEJAREA SI PROMOVAREA PATRIMONIULUI NATURAL SI CULTURAL DE INTERES LOCAL"]
["2. Numărul comunelor sprijinite"]
["3. Număr KM de drum",null,null,null,null,null,null,null,null,null,null,null,null,null,null,null,null,null,"Nou construiţi"]
[null,null,null,null,null,null,null,null,null,null,null,null,null,null,null,null,null,null,"Modernizaţi"]
["4. Număr locuitori deserviţi"]
["5. Contribuie la Prioritatea 1",null,null,null,null,null,null,null,null,null,null,null,null,null,null,null,null,null,"M01 - Transfer de cunoştinţe şi acţiuni de informare"]
[null,null,null,null,null,null,null,null,null,null,null,null,null,null,null,null,null,null,"M02 - Servicii de consiliere"]
[null,null,null,null,null,null,null,null,null,null,null,null,null,null,null,null,null,null,"M16 - Cooperare"]
[]
["Indic. nr. 1 - se va bifa doar o singura categorie"]
["Indic. nr. 2 - se va completa numărul comunelor sprijinite prin proiect"]
["Indic. nr. 3- se va completa numărul locuitorilor deserviţi"]
["Indic. nr. 5 - se va completa din momentul demararii M01, M02, respectiv M16, cu bifa în dreptul măsurii corespunzătoare, dacă va fi cazul."]
["Pentru indicatorii de tip numeric care nu fac obiectul investitiei sa va completa valoarea zero."]
[]
["Factori de risc"]
["I1. Valoarea sprijinului public nerambursabil (EURO)",null,null,null,null,null,null,null,null,null,null,null,null,null,null,null,null,null,null,null,null,null,null,null,null,null,null,null,null,null,null,null,null,null,null,null,null,null,null,null,null,null,null,null,null,null,null,null,null,null,null,null,null,"Punctaj obţinut"]
["•",null,"60.001 > 75.000",null,null,null,null,null,null,null,null,null,null,null,null,null,null,null,null,null,null,null,null,null,null,null,null,null,null,null,null,null,null,null,null,null,null,null,null,null,null,null,null,null,null,null,null,null,null,null,null,null,null,5]
["•",null,"50.001 > 60.000",null,null,null,null,null,null,null,null,null,null,null,null,null,null,null,null,null,null,null,null,null,null,null,null,null,null,null,null,null,null,null,null,null,null,null,null,null,null,null,null,null,null,null,null,null,null,null,null,null,null,4]
["•",null,"5.000 ≤ 50.000",null,null,null,null,null,null,null,null,null,null,null,null,null,null,null,null,null,null,null,null,null,null,null,null,null,null,null,null,null,null,null,null,null,null,null,null,null,null,null,null,null,null,null,null,null,null,null,null,null,null,3]
[]
["I2. Complexitatea investitiei"]
["Solicitanți Publici",null,null,null,null,null,null,null,null,null,null,null,null,null,null,null,null,null,null,null,null,null,null,"Punctaj obţinut",null,null,null,null,null,null,null,null,"Solicitanți Privați",null,null,null,null,null,null,null,null,null,null,null,null,null,null,null,null,null,null,null,null,"Punctaj obţinut"]
["•",null,"Investiție nouă",null,null,null,null,null,null,null,null,null,null,null,null,null,null,null,null,null,null,null,null,null,null,null,null,null,null,5,null,null,"•",null,"Investiție nouă",null,null,null,null,null,null,null,null,null,null,null,null,null,null,null,null,null,null,null,null,null,null,null,null,null,5]
["•",null,"Modernizări cu C+M",null,null,null,null,null,null,null,null,null,null,null,null,null,null,null,null,null,null,null,null,null,null,null,null,null,null,4,null,null,"•",null,"Modernizări cu C+M",null,null,null,null,null,null,null,null,null,null,null,null,null,null,null,null,null,null,null,null,null,null,null,null,null,4]
[]
["I3. Riscul proiectului d.p.d.v. al raportului procentual între Cheltuielile suportate de Solicitant și Valoarea ajutorului nerambursabil",null,null,null,null,null,null,null,null,null,null,null,null,null,null,null,null,null,null,null,null,null,null,null,null,null,null,null,null,null,null,null,null,null,null,null,null,null,null,null,null,null,null,null,null,null,null,null,null,null,null,null,null,"Punctaj obţinut"]
["Total valoare proiect(fără TVA)\n% = --------------------------------------------------------- x 100\nValoarea ajutorului nerambursabil solicitat"]
["•",null,"> 110%",null,null,null,null,null,null,null,null,null,null,null,null,null,null,null,null,null,null,null,null,null,null,null,null,null,null,null,null,null,null,null,null,null,null,null,null,null,null,null,null,null,null,null,null,null,null,null,null,null,null,5]
["•",null,"între 101 si 110%",null,null,null,null,null,null,null,null,null,null,null,null,null,null,null,null,null,null,null,null,null,null,null,null,null,null,null,null,null,null,null,null,null,null,null,null,null,null,null,null,null,null,null,null,null,null,null,null,null,null,3]
["•",null," = 100%",null,null,null,null,null,null,null,null,null,null,null,null,null,null,null,null,null,null,null,null,null,null,null,null,null,null,null,null,null,null,null,null,null,null,null,null,null,null,null,null,null,null,null,null,null,null,null,null,null,null,1]
[]
["I4. Capacitatea solicitantului de a manageria proiectul, experiența în implementarea proiectelor finanțate din fonduri comunitare",null,null,null,null,null,null,null,null,null,null,null,null,null,null,null,null,null,null,null,null,null,null,null,null,null,null,null,null,null,null,null,null,null,null,null,null,null,null,null,null,null,null,null,null,null,null,null,null,null,null,null,null,"Punctaj obţinut"]
["•",null,"Solicitant care nu a implementat un alt proiect SAPARD/FEADR, comunitar sau\nnu a obținut asistență financiară nerambursabilă din partea altui instrument\nfinanciar.",null,null,null,null,null,null,null,null,null,null,null,null,null,null,null,null,null,null,null,null,null,null,null,null,null,null,null,null,null,null,null,null,null,null,null,null,null,null,null,null,null,null,null,null,null,null,null,null,null,null,5]
["•",null,"Solicitant care are experiența implementării și care a finalizat un proiect\nSAPARD/FEADR, comunitar sau obținut asistență financiară nerambursabilă din partea altui instrument financiar ",null,null,null,null,null,null,null,null,null,null,null,null,null,null,null,null,null,null,null,null,null,null,null,null,null,null,null,null,null,null,null,null,null,null,null,null,null,null,null,null,null,null,null,null,null,null,null,null,null,null,3]
["•",null,"Solicitant care are experiența implementării și care a finalizat un proiect\nSAPARD/FEADR și un alt proiect comunitar sau obținut din asistența financiară\nnerambursabilă din partea altui instrument financiar",null,null,null,null,null,null,null,null,null,null,null,null,null,null,null,null,null,null,null,null,null,null,null,null,null,null,null,null,null,null,null,null,null,null,null,null,null,null,null,null,null,null,null,null,null,null,null,null,null,null,1]
["TOTAL"]
[]
["Pentru selectarea proiectelor ce vor fi verificate prin sondaj, se va determina riscul fiecărui proiect folosind cei 4 factori de risc (I1, I2, I3 și I4 )."]
["Pentru fiecare proiect se va determina punctajul fiecărui factor de risc pe o scară de la 1 la 5."]
[]
[]
["Codul unic de inregistrare APIA"]
["In cazul in care nu aveti un cod unic de inregistrare APIA, completati acest formular."]
[]
["FORMULAR"]
[]
["Programului naţional de dezvoltare rurală 2014 - 2020"]
[]
["Denumire solicitant:"]
[]
["Categorie Solicitant:"]
[]
["Sediul / Adresa"]
[]
["Ţara",null,null,null,null,"România",null,null,null,null,null,null,null,null,null,"Judeţul",null,null,null,null,null,null,null,null,null,null,null,null,null,null,null,null,null,null,null,"oraşul"]
[]
["comuna",null,null,null,null,null,null,null,null,null,null,null,null,null,null,null,null,null,null,null,null,null,null,null,"satul",null,null,null,null,null,null,null,null,null,null,null,null,null,null,null,null,"strada"]
[]
["nr.",null,null,null,null,null,null,null,"bl.",null,null,null,null,null,null,"et.",null,null,null,null,null,null,"ap.",null,null,null,null,"sectorul",null,null,null,null,null,null,null,null,null,null,null,null,"codul poştal"]
[]
["Număr de telefon",null,null,null,null,null,null,null,null,null,null,null,null,null,null,null,null,null,null,null,null,null,null,null,null,null,null,null,null,null,null,null,null,null,null,null,null,null,null,null,"E-mail"]
[]
["Număr de înregistrare în registrul comerțului/Registrul asociațiilor și fundațiilor"]
[]
["CUI / CIF"]
[]
["Cod CAEN pentru activitatea principală"]
[]
["Cod CAEN pentru activitatea secundară pentru care se solicită înregistrarea în Registrul unic de identificare"]
[]
["Cod IBAN"]
[]
["deschis la Banca"]
[]
["Sucursala / Agenție"]
[]
["Prin reprezentant legal, doamna/domnul"]
[]
["cu CNP",null,null,null,null,null,null,null,null,null,null,null,null,null,null,null,"solicit înscrierea în Registrul unic de identificare -Agenţia de Plăţi şi Intervenţie pentru Agricultură."]
[]
["Am luat la cunoştinţă că orice modificare a informaţiilor de mai sus trebuie furnizată către APIA în termen de maximum 10 zile\nlucrătoare de la producerea acestora.\nDeclar pe propria răspundere că cele de mai sus sunt conforme cu realitatea.\nSunt de acord ca datele din cerere să fie introduse în baza de date a Sistemului Integrat de Administrare şi Control, procesate şi\nverificate în vederea înscrierii în Registrul unic de identificare şi transmise autorităţilor responsabile în vederea elaborării de studii\nstatistice şi de evaluări economice, în condiţiile Legii nr. 677-2001 pentru protecţia persoanelor cu privire la prelucrarea datelor cu\ncaracter personal şi libera circulaţie a acestor date, cu modificarile şi completările ulterioare."]
[]
["Reprezentant legal",null,null,null,null,null,null,null,null,null,null,null,null,null,null,null,null,null,null,null,null,null,null,null,null,null,null,null,null,null,null,null,null,null,null,null,null,null,null,null,null,null,null,null,null,"Data:"]
[]
["Numele şi prenumele"]
[]
["Semnătura "]

{"sheet":"Anexa 1","index":1,"n_rows":134,"n_cols":52,"rows_kept":134,"cut":false,"hidden":false,"merged":[[129,4,129,41],[130,4,130,41],[129,42,129,50],[130,42,130,50],[129,51,129,60],[15,0,15,3],[15,4,15,41],[15,42,15,50],[15,51,15,60],[16,4,16,41],[16,42,16,50],[16,51,16,60],[16,0,16,3],[22,0,22,3],[22,4,22,41],[22,42,22,50],[22,51,22,60],[31,4,31,41],[32,0,32,3],[32,4,32,41],[21,4,21,41],[21,42,21,50],[21,51,21,60],[20,0,20,3],[133,0,133,41],[133,42,133,60],[86,7,86,41],[87,42,88,60],[89,42,89,50],[89,51,89,60],[90,7,90,60],[91,0,91,60],[94,0,94,3],[94,4,94,41],[94,42,94,50],[94,51,94,60],[123,4,123,41],[123,42,123,50],[123,51,123,60],[127,51,127,60],[126,4,126,41],[127,4,127,41],[128,4,128,41],[128,51,128,60],[123,0,123,3],[130,0,130,3],[120,0,120,3],[120,4,120,41],[0,7,0,41],[1,7,1,41],[1,42,2,60],[2,7,2,41],[7,0,7,60],[8,0,8,3],[8,4,8,41],[8,42,8,50],[8,51,8,60],[3,7,3,41],[3,42,3,50],[3,51,3,60],[4,7,4,60],[5,0,5,60],[6,0,6,60],[21,0,21,3],[20,4,20,41],[20,42,20,50],[20,51,20,60],[28,6,28,41],[26,6,26,41],[27,6,27,41],[24,6,24,41],[29,42,29,50],[28,0,28,3],[25,42,25,50],[26,42,26,50],[27,42,27,50],[23,0,23,3],[23,42,23,50],[24,0,24,3],[23,51,23,60],[24,42,24,50],[24,51,24,60],[25,0,25,3],[26,0,26,3],[27,0,27,3],[30,42,30,50],[31,42,31,50],[29,51,29,60],[30,51,30,60],[31,51,31,60],[29,4,29,41],[30,4,30,41],[34,0,34,3],[34,42,34,50],[32,51,32,60],[33,0,33,3],[33,4,33,41],[33,42,33,50],[33,51,33,60],[32,42,32,50],[29,0,29,3],[30,0,30,3],[31,0,31,3],[35,4,35,41],[35,42,35,50],[35,51,35,60],[34,4,34,41],[34,51,34,60],[35,0,35,3],[40,0,40,3],[40,42,40,50],[41,0,41,41],[41,42,41,60],[39,0,39,3],[39,42,39,50],[39,51,39,60],[36,0,36,3],[37,4,37,41],[40,51,40,60],[39,4,39,41],[40,4,40,41],[37,0,37,3],[37,42,37,50],[37,51,37,60],[38,0,38,3],[38,42,38,50],[38,51,38,60],[36,4,36,41],[36,42,36,50],[36,51,36,60],[38,4,38,41],[56,0,56,3],[56,4,56,41],[56,42,56,50],[56,51,56,60],[57,0,57,3],[57,4,57,41],[57,42,57,50],[57,51,57,60],[51,42,51,50],[51,51,51,60],[52,0,52,3],[52,4,52,41],[52,42,52,50],[52,51,52,60],[51,4,51,41],[53,42,53,50],[53,51,53,60],[54,0,54,3],[54,4,54,41],[55,0,55,3],[55,4,55,41],[55,42,55,50],[55,51,55,60],[60,0,60,3],[60,4,60,41],[60,42,60,50],[60,51,60,60],[61,0,61,3],[61,4,61,41],[61,42,61,50],[61,51,61,60],[58,0,58,3],[58,4,58,41],[58,42,58,50],[58,51,58,60],[59,0,59,3],[59,4,59,41],[59,42,59,50],[59,51,59,60],[64,0,64,3],[64,4,64,41],[64,42,64,50],[64,51,64,60],[66,0,66,3],[66,42,66,50],[66,51,66,60],[65,0,65,3],[62,0,62,3],[62,4,62,41],[62,42,62,50],[62,51,62,60],[63,0,63,3],[63,4,63,41],[63,42,63,50],[63,51,63,60],[71,42,71,50],[71,51,71,60],[70,6,70,41],[71,6,71,41],[72,4,72,41],[67,0,67,3],[67,42,67,50],[67,51,67,60],[69,0,69,3],[69,42,69,50],[69,51,69,60],[69,6,69,41],[73,42,73,50],[73,51,73,60],[73,0,73,3],[73,4,73,41],[70,0,70,3],[43,7,43,41],[44,7,44,41],[44,42,45,60],[46,42,46,50],[46,51,46,60],[47,7,47,60],[48,0,48,60],[54,42,54,50],[54,51,54,60],[50,0,50,60],[53,0,53,3],[53,4,53,41],[49,0,49,60],[51,0,51,3],[45,7,45,41],[46,7,46,41],[70,42,70,50],[70,51,70,60],[71,0,71,3],[83,0,83,3],[83,4,83,41],[81,0,81,3],[81,4,81,41],[83,42,83,50],[83,51,83,60],[76,51,76,60],[65,4,65,41],[65,42,65,50],[65,51,65,60],[66,6,66,41],[67,6,67,41],[68,0,68,3],[68,6,68,41],[68,42,68,50],[68,51,68,60],[74,42,74,50],[74,51,74,60],[74,0,74,3],[74,4,74,41],[75,0,75,3],[75,4,75,41],[72,0,72,3],[72,42,72,50],[79,51,79,60],[80,0,80,3],[80,4,80,41],[80,42,80,50],[80,51,80,60],[77,0,77,3],[77,4,77,41],[77,42,77,50],[77,51,77,60],[78,0,78,3],[78,4,78,41],[78,42,78,50],[78,51,78,60],[75,51,75,60],[76,0,76,3],[76,4,76,41],[76,42,76,50],[13,4,13,41],[13,42,13,50],[13,51,13,60],[10,42,10,50],[10,51,10,60],[11,0,11,3],[11,4,11,41],[11,42,11,50],[28,42,28,50],[25,51,25,60],[26,51,26,60],[27,51,27,60],[28,51,28,60],[19,0,19,3],[19,4,19,41],[19,42,19,50],[19,51,19,60],[25,6,25,41],[23,6,23,41],[72,51,72,60],[9,51,9,60],[18,4,18,41],[18,42,18,50],[18,51,18,60],[17,0,17,3],[17,4,17,41],[17,42,17,50],[17,51,17,60],[14,0,14,3],[14,4,14,41],[14,42,14,50],[14,51,14,60],[18,0,18,3],[9,0,9,3],[9,4,9,41],[9,42,9,50],[10,0,10,3],[10,4,10,41],[11,51,11,60],[12,0,12,3],[12,4,12,41],[12,42,12,50],[12,51,12,60],[13,0,13,3],[119,0,119,3],[119,4,119,41],[119,42,119,50],[110,0,110,3],[75,42,75,50],[79,0,79,3],[79,4,79,41],[79,42,79,50],[84,0,84,41],[84,42,84,60],[81,42,81,50],[81,51,81,60],[82,0,82,3],[82,4,82,41],[82,42,82,50],[82,51,82,60],[110,4,110,41],[110,42,110,50],[111,0,111,3],[111,4,111,41],[110,51,110,60],[111,42,111,50],[111,51,111,60],[112,0,112,3],[132,0,132,3],[132,4,132,41],[132,42,132,50],[132,51,132,60],[122,4,122,41],[122,42,122,50],[122,51,122,60],[131,0,131,3],[131,4,131,41],[131,42,131,50],[131,51,131,60],[126,0,126,3],[126,42,126,50],[126,51,126,60],[127,0,127,3],[127,42,127,50],[124,0,124,3],[124,42,124,50],[124,51,124,60],[125,0,125,3],[125,42,125,50],[125,51,125,60],[130,51,130,60],[128,42,128,50],[112,42,112,50],[112,51,112,60],[113,0,113,3],[114,0,114,3],[115,0,115,3],[116,0,116,3],[117,0,117,3],[118,0,118,3],[112,4,112,41],[113,4,113,41],[114,4,114,41],[113,42,113,50],[114,42,114,50],[113,51,113,60],[114,51,114,60],[121,42,121,50],[121,51,121,60],[121,4,121,41],[124,4,124,41],[125,4,125,41],[115,4,115,41],[116,4,116,41],[117,4,117,41],[118,4,118,41],[117,51,117,60],[118,51,118,60],[115,42,115,50],[116,42,116,50],[117,42,117,50],[118,42,118,50],[115,51,115,60],[116,51,116,60],[120,42,120,50],[120,51,120,60],[119,51,119,60],[108,42,108,50],[108,51,108,60],[105,4,105,41],[105,42,105,50],[105,51,105,60],[106,4,106,41],[106,42,106,50],[106,51,106,60],[109,0,109,3],[109,4,109,41],[109,42,109,50],[109,51,109,60],[108,0,108,3],[108,4,108,41],[99,0,99,3],[99,4,99,41],[99,42,99,50],[99,51,99,60],[100,0,100,3],[100,4,100,41],[100,42,100,50],[100,51,100,60],[107,4,107,41],[107,42,107,50],[107,51,107,60],[103,4,103,41],[103,42,103,50],[103,51,103,60],[104,4,104,41],[104,42,104,50],[104,51,104,60],[101,4,101,41],[101,42,101,50],[101,51,101,60],[102,4,102,41],[102,42,102,50],[102,51,102,60],[105,0,105,3],[87,7,87,41],[88,7,88,41],[89,7,89,41],[95,0,95,3],[95,4,95,41],[95,42,95,50],[95,51,95,60],[97,0,97,3],[97,4,97,41],[97,42,97,50],[97,51,97,60],[98,0,98,3],[98,4,98,41],[98,42,98,50],[92,0,92,60],[93,0,93,60],[96,0,96,3],[96,4,96,41],[96,42,96,50],[96,51,96,60],[98,51,98,60]]}
[null,null,null,null,null,null,null,"MINISTERUL AGRICULTURII ŞI DEZVOLTĂRII RURALE"]
[null,null,null,null,null,null,null,null,null,null,null,null,null,null,null,null,null,null,null,null,null,null,null,null,null,null,null,null,null,null,null,null,null,null,null,null,null,null,null,null,null,null,"Anexa A1"]
[null,null,null,null,null,null,null,"AGENŢIA PENTRU FINANŢAREA INVESTIŢIILOR RURALE"]
[null,null,null,null,null,null,null,null,null,null,null,null,null,null,null,null,null,null,null,null,null,null,null,null,null,null,null,null,null,null,null,null,null,null,null,null,null,null,null,null,null,null,null,null,null,null,null,null,null,null,null,"Nr.2"]
[null,null,null,null,null,null,null,"Deviz financiar- Capitolul 3 - Cheltuieli pentru proiectare şi asistenţa tehnică - EURO"]
[]
[]
["(Titlu deviz)"]
["Nr.crt",null,null,null,"Specificaţie",null,null,null,null,null,null,null,null,null,null,null,null,null,null,null,null,null,null,null,null,null,null,null,null,null,null,null,null,null,null,null,null,null,null,null,null,null,"Valoare eligibilă",null,null,null,null,null,null,null,null,"Valoare\nneeligibilă"]
[1,null,null,null,"Cheltuieli pentru studii de teren (geotehnice, geologice, hidrologice, hidrogeologice, fotogrammetrice, topografice şi de stabilitate a terenului pe care se amplasează obiectivul de investiţie)"]
[2,null,null,null,"Cheltuieli pentru obţinere de avize, acorduri şi autorizaţii - total, din care:",null,null,null,null,null,null,null,null,null,null,null,null,null,null,null,null,null,null,null,null,null,null,null,null,null,null,null,null,null,null,null,null,null,null,null,null,null,{"$f":"SUM(AQ12:AY21)","v":0},null,null,null,null,null,null,null,null,{"$f":"SUM(AZ12:BI21)","v":0}]
[null,null,null,null,"1. obţinerea/prelungirea valabilităţii ceritificatului de urbanism"]
[null,null,null,null,"2. obţinerea/prelungirea valabilităţii autorizaţiei de construire/desfiinţare, obţinere autorizaţii de scoatere din circuitul agricol"]
[null,null,null,null,"3. obţinerea avizelor şi acordurilor pentru racorduri şi branşamente la reţelele publice de apă, canalizare, gaze, termoficare, energie electrică, telefonie etc."]
[null,null,null,null,"4. obţinere aviz sanitar, sanitar-veterinar şi fitosanitar"]
[null,null,null,null,"5. obţinerea certificatului de nomenclatură stradală şi adresa"]
[null,null,null,null,"6. întocmirea documentaţiei, obţinerea numărului Cadastral provizoriu şi înregistrarea terenului în Cartea Funciară"]
[null,null,null,null,"7. obţinerea avizului PSI"]
[null,null,null,null,"8. obţinerea acordului de mediu"]
[null,null,null,null,"9. căi ferate"]
[null,null,null,null,"10. alte avize, acorduri şi autorizaţii solicitate prin lege"]
[3,null,null,null,"3 Proiectare şi inginerie - total, din care:",null,null,null,null,null,null,null,null,null,null,null,null,null,null,null,null,null,null,null,null,null,null,null,null,null,null,null,null,null,null,null,null,null,null,null,null,null,{"$f":"AQ23+AQ30+AQ31+AQ32","v":0},null,null,null,null,null,null,null,null,{"$f":"AZ23+AZ30+AZ31+AZ32","v":0}]
[null,null,null,null,"1. Cheltuieli pentru elaborarea tuturor fazelor de proiectare - total, din care:",null,null,null,null,null,null,null,null,null,null,null,null,null,null,null,null,null,null,null,null,null,null,null,null,null,null,null,null,null,null,null,null,null,null,null,null,null,{"$f":"SUM(AQ24:AY29)","v":0},null,null,null,null,null,null,null,null,{"$f":"SUM(AZ24:BI29)","v":0}]
[null,null,null,null,null,null,"a. studiu de prefezabilitate"]
[null,null,null,null,null,null,"b. studiu de fezabilitate"]
[null,null,null,null,null,null,"c. proiect tehnic"]
[null,null,null,null,null,null,"d. detalii de execuţie"]
[null,null,null,null,null,null,"e. verificarea tehnică a proiectării"]
[null,null,null,null,null,null,"f. elaborarea certificatului de performanţa energetică a clădirii"]
[null,null,null,null,"2. Documentaţii necesare pentru obţinerea acordurilor, avizelor şi autorizaţiilor aferente obiectivului de investitii"]
[null,null,null,null,"3. Cheltuielile pentru expertiza tehnică efectuată pentru construcţii începute şi neterminate sau care urmează a fi modificate prin proiect (modernizări, consolidări etc.)"]
[null,null,null,null,"4. Cheltuielile pentru efectuarea auditului energetic"]
[4,null,null,null,"Organizarea procedurilor de achiziţie"]
[5,null,null,null,"Cheltuieli pentru consultanţă - total, din care:",null,null,null,null,null,null,null,null,null,null,null,null,null,null,null,null,null,null,null,null,null,null,null,null,null,null,null,null,null,null,null,null,null,null,null,null,null,{"$f":"SUM(AQ35:AY36)","v":0},null,null,null,null,null,null,null,null,{"$f":"SUM(AZ35:BI36)","v":0}]
[null,null,null,null,"1. plata serviciilor de consultanţă la elaborarea memoriului justificativ, studiilor de piaţă, de evaluare, la întocmirea cererii de finanţare"]
[null,null,null,null,"2. plata serviciilor de consultanţă în domeniul managementului investiţiei sau administrarea contractului de execuţie"]
[6,null,null,null,"Cheltuieli pentru asistenţa tehnică - total, din care:",null,null,null,null,null,null,null,null,null,null,null,null,null,null,null,null,null,null,null,null,null,null,null,null,null,null,null,null,null,null,null,null,null,null,null,null,null,{"$f":"SUM(AQ38:AY39)","v":0},null,null,null,null,null,null,null,null,{"$f":"SUM(AZ38:BI39)","v":0}]
[null,null,null,null,"1. asistenţa tehnică din partea proiectantului în cazul când aceasta nu intră în tarifarea proiectării"]
[null,null,null,null,"2. plata diriginţilor de şantier desemnaţi de autoritatea contractantă, autorizaţi conform prevederilor legale pentru verificarea execuţiei lucrărilor de construcţii şi instalaţii"]
[null,null,null,null,"Total valoare fără TVA",null,null,null,null,null,null,null,null,null,null,null,null,null,null,null,null,null,null,null,null,null,null,null,null,null,null,null,null,null,null,null,null,null,null,null,null,null,{"$f":"AQ37+AQ34+AQ22+AQ11+AQ10","v":0},null,null,null,null,null,null,null,null,{"$f":"AZ37+AZ34+AZ33+AZ22+AZ11+AZ10","v":0}]
[null,null,null,null,"Valoare TVA (aferentă cheltuielilor eligibile şi neeligibile)"]
["TOTAL DEVIZ FINANCIAR 1 (inclusiv TVA)",null,null,null,null,null,null,null,null,null,null,null,null,null,null,null,null,null,null,null,null,null,null,null,null,null,null,null,null,null,null,null,null,null,null,null,null,null,null,null,null,null,{"$f":"AQ40+AZ40+AQ41+AZ41","v":0}]
[]
[null,null,null,null,null,null,null,"MINISTERUL AGRICULTURII ŞI DEZVOLTĂRII RURALE"]
[null,null,null,null,null,null,null,null,null,null,null,null,null,null,null,null,null,null,null,null,null,null,null,null,null,null,null,null,null,null,null,null,null,null,null,null,null,null,null,null,null,null,"Anexa A1"]
[null,null,null,null,null,null,null,"AGENŢIA PENTRU FINANŢAREA INVESTIŢIILOR RURALE"]
[null,null,null,null,null,null,null,null,null,null,null,null,null,null,null,null,null,null,null,null,null,null,null,null,null,null,null,null,null,null,null,null,null,null,null,null,null,null,null,null,null,null,null,null,null,null,null,null,null,null,null,"Nr.3"]
[null,null,null,null,null,null,null,"Deviz financiar- Capitolul 3 - Cheltuieli pentru proiectare şi asistenţa tehnică - EURO"]
[]
[]
["(Titlu deviz)"]
["Nr.crt",null,null,null,"Specificaţie",null,null,null,null,null,null,null,null,null,null,null,null,null,null,null,null,null,null,null,null,null,null,null,null,null,null,null,null,null,null,null,null,null,null,null,null,null,"Valoare eligibilă",null,null,null,null,null,null,null,null,"Valoare\nneeligibilă"]
[1,null,null,null,"Cheltuieli pentru studii de teren (geotehnice, geologice, hidrologice, hidrogeologice, fotogrammetrice, topografice şi de stabilitate a terenului pe care se amplasează obiectivul de investiţie)"]
[2,null,null,null,"Cheltuieli pentru obţinere de avize, acorduri şi autorizaţii - total, din care:",null,null,null,null,null,null,null,null,null,null,null,null,null,null,null,null,null,null,null,null,null,null,null,null,null,null,null,null,null,null,null,null,null,null,null,null,null,{"$f":"SUM(AQ55:AY64)","v":0},null,null,null,null,null,null,null,null,{"$f":"SUM(AZ55:BI64)","v":0}]
[null,null,null,null,"1. obţinerea/prelungirea valabilităţii ceritificatului de urbanism"]
[null,null,null,null,"2. obţinerea/prelungirea valabilităţii autorizaţiei de construire/desfiinţare, obţinere autorizaţii de scoatere din circuitul agricol"]
[null,null,null,null,"3. obţinerea avizelor şi acordurilor pentru racorduri şi branşamente la reţelele publice de apă, canalizare, gaze, termoficare, energie electrică, telefonie etc."]
[null,null,null,null,"4. obţinere aviz sanitar, sanitar-veterinar şi fitosanitar"]
[null,null,null,null,"5. obţinerea certificatului de nomenclatură stradală şi adresa"]
[null,null,null,null,"6. întocmirea documentaţiei, obţinerea numărului Cadastral provizoriu şi înregistrarea terenului în Cartea Funciară"]
[null,null,null,null,"7. obţinerea avizului PSI"]
[null,null,null,null,"8. obţinerea acordului de mediu"]
[null,null,null,null,"9. căi ferate"]
[null,null,null,null,"10. alte avize, acorduri şi autorizaţii solicitate prin lege"]
[3,null,null,null,"3 Proiectare şi inginerie - total, din care:",null,null,null,null,null,null,null,null,null,null,null,null,null,null,null,null,null,null,null,null,null,null,null,null,null,null,null,null,null,null,null,null,null,null,null,null,null,{"$f":"AQ66+AQ73+AQ74+AQ75","v":0},null,null,null,null,null,null,null,null,{"$f":"AZ66+AZ73+AZ74+AZ75","v":0}]
[null,null,null,null,"1. Cheltuieli pentru elaborarea tuturor fazelor de proiectare - total, din care:",null,null,null,null,null,null,null,null,null,null,null,null,null,null,null,null,null,null,null,null,null,null,null,null,null,null,null,null,null,null,null,null,null,null,null,null,null,{"$f":"SUM(AQ67:AY72)","v":0},null,null,null,null,null,null,null,null,{"$f":"SUM(AZ67:BI72)","v":0}]
[null,null,null,null,null,null,"a. studiu de prefezabilitate"]
[null,null,null,null,null,null,"b. studiu de fezabilitate"]
[null,null,null,null,null,null,"c. proiect tehnic"]
[null,null,null,null,null,null,"d. detalii de execuţie"]
[null,null,null,null,null,null,"e. verificarea tehnică a proiectării"]
[null,null,null,null,null,null,"f. elaborarea certificatului de performanţa energetică a clădirii"]
[null,null,null,null,"2. Documentaţii necesare pentru obţinerea acordurilor, avizelor şi autorizaţiilor aferente obiectivului de investitii"]
[null,null,null,null,"3. Cheltuielile pentru expertiza tehnică efectuată pentru construcţii începute şi neterminate sau care urmează a fi modificate prin proiect (modernizări, consolidări etc.)"]
[null,null,null,null,"4. Cheltuielile pentru efectuarea auditului energetic"]
[4,null,null,null,"Organizarea procedurilor de achiziţie"]
[5,null,null,null,"Cheltuieli pentru consultanţă - total, din care:",null,null,null,null,null,null,null,null,null,null,null,null,null,null,null,null,null,null,null,null,null,null,null,null,null,null,null,null,null,null,null,null,null,null,null,null,null,{"$f":"SUM(AQ78:AY79)","v":0},null,null,null,null,null,null,null,null,{"$f":"SUM(AZ78:BI79)","v":0}]
[null,null,null,null,"1. plata serviciilor de consultanţă la elaborarea memoriului justificativ, studiilor de piaţă, de evaluare, la întocmirea cererii de finanţare"]
[null,null,null,null,"2. plata serviciilor de consultanţă în domeniul managementului investiţiei sau administrarea contractului de execuţie"]
[6,null,null,null,"Cheltuieli pentru asistenţa tehnică - total, din care:",null,null,null,null,null,null,null,null,null,null,null,null,null,null,null,null,null,null,null,null,null,null,null,null,null,null,null,null,null,null,null,null,null,null,null,null,null,{"$f":"SUM(AQ81:AY82)","v":0},null,null,null,null,null,null,null,null,{"$f":"SUM(AZ81:BI82)","v":0}]
[null,null,null,null,"1. asistenţa tehnică din partea proiectantului în cazul când aceasta nu intră în tarifarea proiectării"]
[null,null,null,null,"2. plata diriginţilor de şantier desemnaţi de autoritatea contractantă, autorizaţi conform prevederilor legale pentru verificarea execuţiei lucrărilor de construcţii şi instalaţii"]
[null,null,null,null,"Total valoare fără TVA",null,null,null,null,null,null,null,null,null,null,null,null,null,null,null,null,null,null,null,null,null,null,null,null,null,null,null,null,null,null,null,null,null,null,null,null,null,{"$f":"AQ80+AQ77+AQ65+AQ54+AQ53","v":0},null,null,null,null,null,null,null,null,{"$f":"AZ80+AZ77+AZ76+AZ65+AZ54+AZ53","v":0}]
[null,null,null,null,"Valoare TVA (aferentă cheltuielilor eligibile şi neeligibile)"]
["TOTAL DEVIZ FINANCIAR 1 (inclusiv TVA)",null,null,null,null,null,null,null,null,null,null,null,null,null,null,null,null,null,null,null,null,null,null,null,null,null,null,null,null,null,null,null,null,null,null,null,null,null,null,null,null,null,{"$f":"AQ83+AZ83+AQ84+AZ84","v":0}]
[]
[null,null,null,null,null,null,null,"MINISTERUL AGRICULTURII ŞI DEZVOLTĂRII RURALE"]
[null,null,null,null,null,null,null,null,null,null,null,null,null,null,null,null,null,null,null,null,null,null,null,null,null,null,null,null,null,null,null,null,null,null,null,null,null,null,null,null,null,null,"Anexa A1\nHG 907/2016"]
[null,null,null,null,null,null,null,"AGENŢIA PENTRU FINANŢAREA INVESTIŢIILOR RURALE"]
[]
[null,null,null,null,null,null,null,"Deviz financiar- Capitolul 3 - Cheltuieli pentru proiectare şi asistenţa tehnică - EURO"]
[]
[]
["(Titlu deviz)"]
["Nr.crt",null,null,null,"Specificaţie",null,null,null,null,null,null,null,null,null,null,null,null,null,null,null,null,null,null,null,null,null,null,null,null,null,null,null,null,null,null,null,null,null,null,null,null,null,"Valoare eligibilă",null,null,null,null,null,null,null,null,"Valoare\nneeligibilă"]
["3.1",null,null,null,"Cheltuieli pentru studii - total din care:",null,null,null,null,null,null,null,null,null,null,null,null,null,null,null,null,null,null,null,null,null,null,null,null,null,null,null,null,null,null,null,null,null,null,null,null,null,{"$f":"AQ97+AQ98+AQ99","v":0},null,null,null,null,null,null,null,null,{"$f":"AZ97+AZ98+AZ99","v":0}]
[null,null,null,null,"3.1.1 Studii de teren: studii geotehnice, geologice, hidrologice, hidrogeotehnice,\nfotogrammetrice, topografica şi de stabilitate ale terenului pe care se amplasează obiectivul de investiţie "]
[null,null,null,null,"3.1.2 Raport privind impactul asupra mediului"]
[null,null,null,null,"3.1.3 Studii de specialitate necesare în funcţie de specificul investiţiei"]
["3.2",null,null,null,"Documentaţii-suport şi cheltuieli pentru obţinerea de avize, acorduri şi\nautorizaţii",null,null,null,null,null,null,null,null,null,null,null,null,null,null,null,null,null,null,null,null,null,null,null,null,null,null,null,null,null,null,null,null,null,null,null,null,null,{"$f":"AQ101+AQ102+AQ103+AQ106+AQ107+AQ108+AQ109","v":0},null,null,null,null,null,null,null,null,{"$f":"AZ101+AZ102+AZ103+AZ104+AZ105+AZ106+AZ107+AZ108+AZ109","v":0}]
[null,null,null,null,"1. obţinerea/prelungirea valabilităţii ceritificatului de urbanism"]
[null,null,null,null,"2. obţinerea/prelungirea valabilităţii autorizaţiei de construire/desfiinţare"]
[null,null,null,null,"3. obţinerea avizelor şi acordurilor pentru racorduri şi branşamente la reţele publice\nde alimentare cu apă, canalizare, alimentare cu gaze, alimentare cu agent termic,\nenergie electrică, telefonie"]
[null,null,null,null,"4. obţinerea certificatului de nomenclatură stradală şi adresă"]
[null,null,null,null,"5. întocmirea documentaţiei, obţinerea numărului cadastral provizoriu şi\nînregistrarea terenului în cartea funciară"]
[null,null,null,null,"6. obţinerea actului administrativ al autorităţii competente pentru protecţia mediului"]
[null,null,null,null,"7. obţinerea avizului de protecţie civilă"]
[null,null,null,null,"8. avizul de specialitate în cazul obiectivelor de patrimoniu"]
[null,null,null,null,"9. alte avize, acorduri şi autorizaţii"]
["3.3",null,null,null,"Cheltuieli pentru expertizarea tehnică a construcţiilor existente, a structurilor\nşi/sau, după caz, a proiectelor tehnice, inclusiv întocmirea de către expertul\ntehnic a raportului de expertiză tehnică",null,null,null,null,null,null,null,null,null,null,null,null,null,null,null,null,null,null,null,null,null,null,null,null,null,null,null,null,null,null,null,null,null,null,null,null,null,0,null,null,null,null,null,null,null,null,0]
["3.4",null,null,null,"Cheltuieli pentru certificarea performanţei energetice şi auditul energetic al clădirilor",null,null,null,null,null,null,null,null,null,null,null,null,null,null,null,null,null,null,null,null,null,null,null,null,null,null,null,null,null,null,null,null,null,null,null,null,null,0,null,null,null,null,null,null,null,null,0]
["3.5",null,null,null,"Cheltuieli pentru proiectare",null,null,null,null,null,null,null,null,null,null,null,null,null,null,null,null,null,null,null,null,null,null,null,null,null,null,null,null,null,null,null,null,null,null,null,null,null,{"$f":"AQ113+AQ114+AQ115+AQ116+AQ117+AQ118","v":0},null,null,null,null,null,null,null,null,{"$f":"AZ113+AZ114+AZ115+AZ116+AZ117+AZ118","v":0}]
[null,null,null,null,"3.5.1 Temă de proiectare"]
[null,null,null,null,"3.5.2 Studiu de prefezabilitate"]
[null,null,null,null,"3.5.3 Studiu de fezabilitate/documentaţie de avizare a lucrărilor de intervenţii şi\ndeviz general"]
[null,null,null,null,"3.5.4 Documentaţiile tehnice necesare în vederea obţinerii avizelor/acordurilor/\nautorizaţiilor"]
[null,null,null,null,"3.5.5 Verificarea tehnică de calitate a proiectului tehnic şi a detaliilor de execuţie"]
[null,null,null,null,"3.5.6 Proiect tehnic şi detalii de execuţie"]
["3.6",null,null,null,"Cheltuieli aferente organizării şi derulării procedurilor de achiziţii publice",null,null,null,null,null,null,null,null,null,null,null,null,null,null,null,null,null,null,null,null,null,null,null,null,null,null,null,null,null,null,null,null,null,null,null,null,null,null,null,null,null,null,null,null,null,null,{"$f":"AZ120+AZ121+AZ122+AZ123","v":0}]
[null,null,null,null,"1. Cheltuieli aferente întocmirii documentaţiei de atribuire şi multiplicării acesteia (exclusiv cele cumpărate de ofertanţi)"]
[null,null,null,null,"2. Cheltuieli cu onorariile, transportul, cazarea şi diurna membrilor desemnaţi în comisiile de evaluare"]
[null,null,null,null,"3. Anunţuri de intenţie, de participare şi de atribuire a contractelor, corespondenţă\nprin poştă, fax, poştă electronică în legătură cu procedurile de achiziţie publică"]
[null,null,null,null,"4. Cheltuieli aferente organizării şi derulării procedurilor de achiziţii publice"]
["3.7",null,null,null,"Cheltuieli pentru consultanţă",null,null,null,null,null,null,null,null,null,null,null,null,null,null,null,null,null,null,null,null,null,null,null,null,null,null,null,null,null,null,null,null,null,null,null,null,null,{"$f":"AQ125","v":0},null,null,null,null,null,null,null,null,{"$f":"AZ125+AZ126","v":0}]
[null,null,null,null,"3.7.1 Managementul de proiect pentru obiectivul de investiţii"]
[null,null,null,null,"3.7.2 Auditul financiar"]
["3.8",null,null,null,"Cheltuieli pentru asistenţă tehnică",null,null,null,null,null,null,null,null,null,null,null,null,null,null,null,null,null,null,null,null,null,null,null,null,null,null,null,null,null,null,null,null,null,null,null,null,null,{"$f":"AQ128+AQ131","v":0},null,null,null,null,null,null,null,null,{"$f":"AZ128+AZ131","v":0}]
[null,null,null,null,"3.8.1. Asistenţă tehnică din partea proiectantului",null,null,null,null,null,null,null,null,null,null,null,null,null,null,null,null,null,null,null,null,null,null,null,null,null,null,null,null,null,null,null,null,null,null,null,null,null,{"$f":"AQ129+AQ130","v":0},null,null,null,null,null,null,null,null,{"$f":"AZ129+AZ130","v":0}]
[null,null,null,null,"    1.1. pe perioada de execuţie a lucrărilor"]
[null,null,null,null,"     1.2. pentru participarea proiectantului la fazele incluse în programul de control al\nlucrărilor de execuţie, avizat de către Inspectoratul de Stat în Construcţii"]
[null,null,null,null,"3.8.2 Dirigenţie de şantier, asigurată de personal tehnic de specialitate, autorizat"]
[null,null,null,null,"Total valoare fără TVA",null,null,null,null,null,null,null,null,null,null,null,null,null,null,null,null,null,null,null,null,null,null,null,null,null,null,null,null,null,null,null,null,null,null,null,null,null,{"$f":"AQ127+AQ124+AQ112+AQ111+AQ110+AQ100+AQ96","v":0},null,null,null,null,null,null,null,null,{"$f":"AZ127+AZ124+AZ119+AZ112+AZ111+AZ110+AZ100+AZ96","v":0}]
[null,null,null,null,"Valoare TVA (aferentă cheltuielilor eligibile şi neeligibile)"]
["TOTAL DEVIZ FINANCIAR 1 (inclusiv TVA)",null,null,null,null,null,null,null,null,null,null,null,null,null,null,null,null,null,null,null,null,null,null,null,null,null,null,null,null,null,null,null,null,null,null,null,null,null,null,null,null,null,{"$f":"AQ132+AZ132+AQ133+AZ133","v":0}]

{"sheet":"Anexa 2","index":2,"n_rows":95,"n_cols":52,"rows_kept":95,"cut":false,"hidden":false,"merged":[[43,51,43,60],[0,7,0,41],[1,7,1,41],[1,42,2,60],[2,7,2,41],[3,7,3,41],[3,42,3,50],[3,51,3,60],[42,0,42,41],[42,42,42,50],[42,51,42,60],[9,0,9,41],[9,42,9,50],[9,51,9,60],[10,0,10,41],[10,42,10,50],[10,51,10,60],[4,7,4,60],[5,0,5,60],[6,0,6,60],[7,0,7,60],[8,0,8,3],[8,4,8,41],[8,42,8,60],[13,0,13,3],[13,4,13,41],[13,42,13,50],[13,51,13,60],[14,0,14,3],[14,4,14,41],[14,42,14,50],[14,51,14,60],[11,0,11,3],[11,4,11,41],[11,42,11,50],[11,51,11,60],[12,0,12,3],[12,4,12,41],[12,42,12,50],[12,51,12,60],[17,0,17,3],[17,4,17,41],[17,42,17,50],[17,51,17,60],[18,0,18,3],[18,4,18,41],[18,42,18,50],[18,51,18,60],[15,0,15,3],[15,4,15,41],[15,42,15,50],[15,51,15,60],[16,0,16,3],[16,4,16,41],[16,42,16,50],[16,51,16,60],[19,0,19,3],[19,4,19,41],[19,42,19,50],[19,51,19,60],[20,0,20,60],[21,0,21,3],[21,4,21,41],[21,42,21,50],[21,51,21,60],[25,0,25,3],[25,4,25,41],[25,42,25,50],[25,51,25,60],[26,0,26,3],[26,4,26,41],[26,42,26,50],[26,51,26,60],[22,0,22,3],[22,4,22,41],[22,42,22,50],[22,51,22,60],[23,0,23,60],[24,0,24,3],[24,4,24,41],[24,42,24,50],[24,51,24,60],[29,0,29,41],[29,42,29,50],[29,51,29,60],[30,0,30,41],[30,42,30,60],[27,0,27,3],[27,4,27,41],[27,42,27,50],[27,51,27,60],[28,0,28,41],[28,42,28,50],[28,51,28,60],[56,0,56,60],[58,0,58,3],[58,4,58,41],[58,42,58,50],[58,51,58,60],[57,0,57,3],[57,4,57,41],[57,42,57,50],[57,51,57,60],[63,0,63,41],[63,42,63,60],[61,42,61,50],[61,51,61,60],[62,42,62,50],[62,51,62,60],[61,0,61,41],[62,0,62,41],[59,0,59,3],[59,4,59,41],[59,42,59,50],[59,51,59,60],[60,0,60,3],[60,4,60,41],[60,42,60,50],[60,51,60,60],[44,0,44,3],[44,4,44,41],[44,42,44,50],[44,51,44,60],[45,0,45,3],[45,4,45,41],[45,42,45,50],[45,51,45,60],[33,7,33,41],[34,7,34,41],[34,42,35,60],[35,7,35,41],[36,7,36,41],[36,42,36,50],[36,51,36,60],[43,0,43,41],[43,42,43,50],[41,0,41,3],[41,4,41,41],[41,42,41,60],[39,0,39,60],[40,0,40,60],[37,7,37,60],[38,0,38,60],[48,0,48,3],[48,4,48,41],[48,42,48,50],[48,51,48,60],[49,0,49,3],[49,4,49,41],[49,42,49,50],[49,51,49,60],[46,42,46,50],[46,51,46,60],[47,0,47,3],[47,4,47,41],[47,42,47,50],[47,51,47,60],[46,0,46,3],[46,4,46,41],[54,4,54,41],[54,42,54,50],[54,51,54,60],[55,0,55,3],[55,4,55,41],[55,42,55,50],[55,51,55,60],[50,0,50,3],[50,4,50,41],[50,42,50,50],[50,51,50,60],[51,0,51,3],[51,4,51,41],[51,42,51,50],[51,51,51,60],[52,42,52,50],[52,51,52,60],[52,0,52,3],[52,4,52,41],[53,0,53,60],[54,0,54,3],[94,0,94,41],[94,42,94,60],[91,0,91,3],[91,4,91,41],[91,42,91,50],[91,51,91,60],[92,0,92,41],[92,42,92,50],[92,51,92,60],[87,0,87,3],[87,4,87,41],[87,42,87,50],[87,51,87,60],[93,0,93,41],[93,42,93,50],[93,51,93,60],[88,0,88,3],[88,4,88,41],[88,42,88,50],[88,51,88,60],[89,0,89,3],[89,4,89,41],[89,42,89,50],[89,51,89,60],[90,0,90,3],[90,4,90,41],[90,42,90,50],[90,51,90,60],[84,0,84,3],[84,4,84,41],[84,42,84,50],[84,51,84,60],[85,0,85,3],[85,4,85,41],[85,42,85,50],[85,51,85,60],[86,0,86,60],[81,0,81,3],[81,4,81,41],[81,42,81,50],[81,51,81,60],[82,0,82,3],[82,4,82,41],[82,42,82,50],[82,51,82,60],[83,0,83,60],[79,4,79,41],[79,42,79,50],[79,51,79,60],[80,0,80,3],[80,4,80,41],[80,42,80,50],[80,51,80,60],[77,0,77,3],[77,4,77,41],[77,42,77,50],[77,51,77,60],[78,0,78,3],[78,4,78,41],[78,42,78,50],[78,51,78,60],[79,0,79,3],[66,7,66,41],[67,7,67,41],[67,42,68,60],[68,7,68,41],[69,7,69,41],[69,42,69,50],[69,51,69,60],[75,0,75,41],[75,42,75,50],[75,51,75,60],[76,0,76,41],[76,42,76,50],[76,51,76,60],[70,7,70,60],[71,0,71,60],[72,0,72,60],[73,0,73,60],[74,0,74,3],[74,4,74,41],[74,42,74,60]]}
[null,null,null,null,null,null,null,"MINISTERUL AGRICULTURII ŞI DEZVOLTĂRII RURALE"]
[null,null,null,null,null,null,null,null,null,null,null,null,null,null,null,null,null,null,null,null,null,null,null,null,null,null,null,null,null,null,null,null,null,null,null,null,null,null,null,null,null,null,"Anexa A2"]
[null,null,null,null,null,null,null,"AGENŢIA PENTRU FINANŢAREA INVESTIŢIILOR RURALE"]
[null,null,null,null,null,null,null,null,null,null,null,null,null,null,null,null,null,null,null,null,null,null,null,null,null,null,null,null,null,null,null,null,null,null,null,null,null,null,null,null,null,null,null,null,null,null,null,null,null,null,null,"Nr.2"]
[null,null,null,null,null,null,null,"DEVIZ PE OBIECT *"]
[]
[]
["(Descriere obiect de construcţie)"]
["Nr. crt.",null,null,null,"Denumire",null,null,null,null,null,null,null,null,null,null,null,null,null,null,null,null,null,null,null,null,null,null,null,null,null,null,null,null,null,null,null,null,null,null,null,null,null,"Valoarea pe categorii de lucrări, fară TVA - EURO"]
[null,null,null,null,null,null,null,null,null,null,null,null,null,null,null,null,null,null,null,null,null,null,null,null,null,null,null,null,null,null,null,null,null,null,null,null,null,null,null,null,null,null,"Valoare eligibilă",null,null,null,null,null,null,null,null,"Valoare\nneeligibilă"]
["I - LUCRĂRI DE CONSTRUCŢII ŞI INSTALAŢII"]
[1,null,null,null,"Terasamente"]
[2,null,null,null,"Construcţii : rezistenţă (fundaţii, structură de rezistenţă) şi arhitectură (închideri exterioare, compartimentări, finisaje)"]
[3,null,null,null,"Izolaţii"]
[4,null,null,null,"Instalaţii electrice"]
[5,null,null,null,"Instalaţii sanitare"]
[6,null,null,null,"Instalaţii de încălzire, ventilare, climatizare. PSI, radio-tv, intranet"]
[7,null,null,null,"Instalaţii de alimentare cu gaze naturale"]
[8,null,null,null,"Instalaţii de telecomunicaţii"]
[null,null,null,null,"TOTAL I ( fără TVA)",null,null,null,null,null,null,null,null,null,null,null,null,null,null,null,null,null,null,null,null,null,null,null,null,null,null,null,null,null,null,null,null,null,null,null,null,null,{"$f":"SUM(AQ12:AY19)","v":0},null,null,null,null,null,null,null,null,{"$f":"SUM(AZ12:BI19)","v":0}]
["II - MONTAJ"]
[9,null,null,null,"Montaj utilaje şi echipamente tehnologice"]
[null,null,null,null,"TOTAL II ( fără TVA)",null,null,null,null,null,null,null,null,null,null,null,null,null,null,null,null,null,null,null,null,null,null,null,null,null,null,null,null,null,null,null,null,null,null,null,null,null,{"$f":"SUM(AQ22)","v":0},null,null,null,null,null,null,null,null,{"$f":"SUM(AZ22)","v":0}]
["III - PROCURARE"]
[10,null,null,null,"Utilaje şi echipamente tehnologice"]
[11,null,null,null,"Utilaje şi echipamente de transport, utilaje şi echipamente fară montaj, mijloace de transport, alte achiziţii specifice"]
[12,null,null,null,"Dotări"]
[null,null,null,null,"TOTAL III ( fără TVA)",null,null,null,null,null,null,null,null,null,null,null,null,null,null,null,null,null,null,null,null,null,null,null,null,null,null,null,null,null,null,null,null,null,null,null,null,null,{"$f":"SUM(AQ25:AY27)","v":0},null,null,null,null,null,null,null,null,{"$f":"SUM(AZ25:BI27)","v":0}]
["TOTAL ( TOTAL I + TOTAL II +TOTAL III) fără TVA",null,null,null,null,null,null,null,null,null,null,null,null,null,null,null,null,null,null,null,null,null,null,null,null,null,null,null,null,null,null,null,null,null,null,null,null,null,null,null,null,null,{"$f":"AQ28+AQ23+AQ20","v":0},null,null,null,null,null,null,null,null,{"$f":"AZ28+AZ23+AZ20","v":0}]
["TVA aferent cheltuielilor eligibile şi neeligibile"]
["TOTAL DEVIZ PE OBIECT (inclusiv TVA)",null,null,null,null,null,null,null,null,null,null,null,null,null,null,null,null,null,null,null,null,null,null,null,null,null,null,null,null,null,null,null,null,null,null,null,null,null,null,null,null,null,{"$f":"AQ29+AZ29+AQ30+AZ30","v":0}]
[]
[]
[null,null,null,null,null,null,null,"MINISTERUL AGRICULTURII ŞI DEZVOLTĂRII RURALE"]
[null,null,null,null,null,null,null,null,null,null,null,null,null,null,null,null,null,null,null,null,null,null,null,null,null,null,null,null,null,null,null,null,null,null,null,null,null,null,null,null,null,null,"Anexa A2"]
[null,null,null,null,null,null,null,"AGENŢIA PENTRU FINANŢAREA INVESTIŢIILOR RURALE"]
[null,null,null,null,null,null,null,null,null,null,null,null,null,null,null,null,null,null,null,null,null,null,null,null,null,null,null,null,null,null,null,null,null,null,null,null,null,null,null,null,null,null,null,null,null,null,null,null,null,null,null,"Nr.3"]
[null,null,null,null,null,null,null,"DEVIZ PE OBIECT *"]
[]
[]
["(Descriere obiect de construcţie)"]
["Nr. crt.",null,null,null,"Denumire",null,null,null,null,null,null,null,null,null,null,null,null,null,null,null,null,null,null,null,null,null,null,null,null,null,null,null,null,null,null,null,null,null,null,null,null,null,"Valoarea pe categorii de lucrări, fară TVA - EURO"]
[null,null,null,null,null,null,null,null,null,null,null,null,null,null,null,null,null,null,null,null,null,null,null,null,null,null,null,null,null,null,null,null,null,null,null,null,null,null,null,null,null,null,"Valoare eligibilă",null,null,null,null,null,null,null,null,"Valoare\nneeligibilă"]
["I - LUCRĂRI DE CONSTRUCŢII ŞI INSTALAŢII"]
[1,null,null,null,"Terasamente"]
[2,null,null,null,"Construcţii : rezistenţă (fundaţii, structură de rezistenţă) şi arhitectură (închideri exterioare, compartimentări, finisaje)"]
[3,null,null,null,"Izolaţii"]
[4,null,null,null,"Instalaţii electrice"]
[5,null,null,null,"Instalaţii sanitare"]
[6,null,null,null,"Instalaţii de încălzire, ventilare, climatizare. PSI, radio-tv, intranet"]
[7,null,null,null,"Instalaţii de alimentare cu gaze naturale"]
[8,null,null,null,"Instalaţii de telecomunicaţii"]
[null,null,null,null,"TOTAL I ( fără TVA)",null,null,null,null,null,null,null,null,null,null,null,null,null,null,null,null,null,null,null,null,null,null,null,null,null,null,null,null,null,null,null,null,null,null,null,null,null,{"$f":"SUM(AQ45:AY52)","v":0},null,null,null,null,null,null,null,null,{"$f":"SUM(AZ45:BI52)","v":0}]
["II - MONTAJ"]
[9,null,null,null,"Montaj utilaje şi echipamente tehnologice"]
[null,null,null,null,"TOTAL II ( fără TVA)",null,null,null,null,null,null,null,null,null,null,null,null,null,null,null,null,null,null,null,null,null,null,null,null,null,null,null,null,null,null,null,null,null,null,null,null,null,{"$f":"SUM(AQ55)","v":0},null,null,null,null,null,null,null,null,{"$f":"SUM(AZ55)","v":0}]
["III - PROCURARE"]
[10,null,null,null,"Utilaje şi echipamente tehnologice"]
[11,null,null,null,"Utilaje şi echipamente de transport, utilaje şi echipamente fară montaj, mijloace de transport, alte achiziţii specifice"]
[12,null,null,null,"Dotări"]
[null,null,null,null,"TOTAL III ( fără TVA)",null,null,null,null,null,null,null,null,null,null,null,null,null,null,null,null,null,null,null,null,null,null,null,null,null,null,null,null,null,null,null,null,null,null,null,null,null,{"$f":"SUM(AQ58:AY60)","v":0},null,null,null,null,null,null,null,null,{"$f":"SUM(AZ58:BI60)","v":0}]
["TOTAL ( TOTAL I + TOTAL II +TOTAL III) fără TVA",null,null,null,null,null,null,null,null,null,null,null,null,null,null,null,null,null,null,null,null,null,null,null,null,null,null,null,null,null,null,null,null,null,null,null,null,null,null,null,null,null,{"$f":"AQ61+AQ56+AQ53","v":0},null,null,null,null,null,null,null,null,{"$f":"AZ61+AZ56+AZ53","v":0}]
["TVA aferent cheltuielilor eligibile şi neeligibile"]
["TOTAL DEVIZ PE OBIECT (inclusiv TVA)",null,null,null,null,null,null,null,null,null,null,null,null,null,null,null,null,null,null,null,null,null,null,null,null,null,null,null,null,null,null,null,null,null,null,null,null,null,null,null,null,null,{"$f":"AQ62+AZ62+AQ63+AZ63","v":0}]
[]
[]
[null,null,null,null,null,null,null,"MINISTERUL AGRICULTURII ŞI DEZVOLTĂRII RURALE"]
[null,null,null,null,null,null,null,null,null,null,null,null,null,null,null,null,null,null,null,null,null,null,null,null,null,null,null,null,null,null,null,null,null,null,null,null,null,null,null,null,null,null,"Anexa A2\nHG 907/2016"]
[null,null,null,null,null,null,null,"AGENŢIA PENTRU FINANŢAREA INVESTIŢIILOR RURALE"]
[]
[null,null,null,null,null,null,null,"DEVIZ PE OBIECT *"]
[]
[]
["(Descriere obiect de construcţie)"]
["Nr. crt.",null,null,null,"Denumire",null,null,null,null,null,null,null,null,null,null,null,null,null,null,null,null,null,null,null,null,null,null,null,null,null,null,null,null,null,null,null,null,null,null,null,null,null,"Valoarea pe categorii de lucrări, fară TVA - EURO"]
["Cap. 4 + Cheltuieli pentru investiţia de bază",null,null,null,null,null,null,null,null,null,null,null,null,null,null,null,null,null,null,null,null,null,null,null,null,null,null,null,null,null,null,null,null,null,null,null,null,null,null,null,null,null,"Valoare eligibilă",null,null,null,null,null,null,null,null,"Valoare\nneeligibilă"]
["   I - LUCRĂRI DE CONSTRUCŢII ŞI INSTALAŢII"]
["4.1",null,null,null,"Construcţii şi instalaţii"]
[null,null,null,null,"4.1.1 Terasamente, sistematizare pe verticală şi amenajări exterioare"]
[null,null,null,null,"4.1.2 Rezistenţă"]
[null,null,null,null,"4.1.3 Arhitectură"]
[null,null,null,null,"4.1.4 Instalaţii"]
[null,null,null,null,"TOTAL I ( fără TVA)",null,null,null,null,null,null,null,null,null,null,null,null,null,null,null,null,null,null,null,null,null,null,null,null,null,null,null,null,null,null,null,null,null,null,null,null,null,{"$f":"SUM(AQ79:AY82)","v":0},null,null,null,null,null,null,null,null,{"$f":"SUM(AZ79:BI82)","v":0}]
["   II - MONTAJ"]
["4.2",null,null,null,"Montaj utilaje şi echipamente tehnologice"]
[null,null,null,null,"TOTAL II ( fără TVA)",null,null,null,null,null,null,null,null,null,null,null,null,null,null,null,null,null,null,null,null,null,null,null,null,null,null,null,null,null,null,null,null,null,null,null,null,null,{"$f":"SUM(AQ85)","v":0},null,null,null,null,null,null,null,null,{"$f":"SUM(AZ85)","v":0}]
["   III - PROCURARE"]
["4.3",null,null,null,"Utilaje, echipamente tehnologice şi funcţionale care necesită montaj"]
["4.4",null,null,null,"Utilaje, echipamente tehnologice şi funcţionale care nu necesită\nmontaj şi echipamente de transport"]
["4.5",null,null,null,"Dotări"]
["4.6",null,null,null,"Active necorporale"]
[null,null,null,null,"TOTAL III ( fără TVA)",null,null,null,null,null,null,null,null,null,null,null,null,null,null,null,null,null,null,null,null,null,null,null,null,null,null,null,null,null,null,null,null,null,null,null,null,null,{"$f":"SUM(AQ88:AY91)","v":0},null,null,null,null,null,null,null,null,{"$f":"SUM(AZ88:BI91)","v":0}]
["TOTAL ( TOTAL I + TOTAL II +TOTAL III) fără TVA",null,null,null,null,null,null,null,null,null,null,null,null,null,null,null,null,null,null,null,null,null,null,null,null,null,null,null,null,null,null,null,null,null,null,null,null,null,null,null,null,null,{"$f":"AQ92+AQ86+AQ83","v":0},null,null,null,null,null,null,null,null,{"$f":"AZ92+AZ86+AZ83","v":0}]
["TVA aferent cheltuielilor eligibile şi neeligibile"]
["TOTAL DEVIZ PE OBIECT (inclusiv TVA)",null,null,null,null,null,null,null,null,null,null,null,null,null,null,null,null,null,null,null,null,null,null,null,null,null,null,null,null,null,null,null,null,null,null,null,null,null,null,null,null,null,{"$f":"AQ93+AZ93+AQ94+AZ94","v":0}]

{"sheet":"Anexa 3","index":3,"n_rows":121,"n_cols":52,"rows_kept":121,"cut":false,"hidden":false,"merged":[[102,0,102,41],[102,42,102,60],[103,0,103,3],[103,4,103,41],[103,42,103,50],[103,51,103,60],[104,0,104,60],[105,0,105,3],[105,4,105,41],[105,42,105,50],[105,51,105,60],[82,7,82,41],[82,42,83,60],[84,42,84,50],[84,51,84,60],[85,7,85,60],[86,0,86,60],[90,0,90,3],[90,4,90,41],[90,42,90,50],[90,51,90,60],[83,7,83,41],[84,7,84,41],[46,0,46,60],[47,0,47,60],[48,0,48,60],[49,0,49,60],[50,0,50,3],[50,4,50,41],[3,7,3,41],[3,42,3,50],[3,51,3,60],[4,7,4,60],[5,0,5,60],[6,0,6,60],[14,0,14,3],[14,4,14,41],[14,42,14,50],[14,51,14,60],[15,0,15,3],[15,4,15,41],[15,42,15,50],[15,51,15,60],[12,0,12,3],[12,4,12,41],[12,42,12,50],[12,51,12,60],[1,7,1,41],[1,42,2,60],[2,7,2,41],[10,0,10,3],[10,4,10,41],[10,42,10,50],[10,51,10,60],[11,0,11,3],[11,4,11,41],[11,42,11,50],[11,51,11,60],[7,0,7,60],[8,0,8,60],[9,0,9,3],[9,4,9,41],[9,42,9,50],[9,51,9,60],[13,0,13,3],[13,4,13,41],[13,42,13,50],[13,51,13,60],[18,0,18,3],[18,4,18,41],[18,42,18,50],[18,51,18,60],[19,0,19,3],[19,4,19,41],[19,42,19,50],[19,51,19,60],[16,0,16,3],[16,4,16,41],[16,42,16,50],[16,51,16,60],[17,0,17,3],[17,4,17,41],[17,42,17,50],[17,51,17,60],[22,0,22,60],[23,0,23,3],[23,4,23,41],[23,42,23,50],[23,51,23,60],[24,0,24,60],[20,0,20,41],[20,42,20,60],[21,0,21,3],[21,4,21,41],[21,42,21,50],[21,51,21,60],[27,0,27,3],[27,4,27,41],[27,42,27,50],[27,51,27,60],[28,0,28,3],[28,4,28,41],[28,42,28,50],[28,51,28,60],[25,0,25,3],[25,4,25,41],[25,42,25,50],[25,51,25,60],[26,0,26,3],[26,4,26,41],[26,42,26,50],[26,51,26,60],[31,0,31,3],[31,4,31,41],[31,42,31,50],[31,51,31,60],[32,0,32,3],[32,4,32,41],[32,42,32,50],[32,51,32,60],[29,0,29,3],[29,4,29,41],[29,42,29,50],[29,51,29,60],[30,0,30,3],[30,4,30,41],[30,42,30,50],[30,51,30,60],[35,0,35,3],[35,4,35,41],[35,42,35,50],[35,51,35,60],[36,0,36,3],[36,4,36,41],[36,42,36,50],[36,51,36,60],[33,0,33,3],[33,4,33,41],[33,42,33,50],[33,51,33,60],[34,0,34,3],[34,4,34,41],[34,42,34,50],[34,51,34,60],[42,7,42,41],[42,42,43,60],[43,7,43,41],[44,7,44,41],[44,42,44,50],[44,51,44,60],[45,7,45,60],[37,0,37,3],[37,4,37,41],[37,42,37,50],[37,51,37,60],[38,0,38,3],[38,4,38,41],[38,42,38,60],[52,0,52,3],[52,4,52,41],[52,42,52,50],[52,51,52,60],[53,0,53,3],[53,4,53,41],[53,42,53,50],[53,51,53,60],[50,42,50,50],[50,51,50,60],[51,0,51,3],[51,4,51,41],[51,42,51,50],[51,51,51,60],[56,0,56,3],[56,4,56,41],[56,42,56,50],[56,51,56,60],[57,0,57,3],[57,4,57,41],[57,42,57,50],[57,51,57,60],[54,0,54,3],[54,4,54,41],[54,42,54,50],[54,51,54,60],[55,0,55,3],[55,4,55,41],[55,42,55,50],[55,51,55,60],[60,0,60,3],[60,4,60,41],[60,42,60,50],[60,51,60,60],[61,0,61,41],[61,42,61,60],[58,0,58,3],[58,4,58,41],[58,42,58,50],[58,51,58,60],[59,0,59,3],[59,4,59,41],[59,42,59,50],[59,51,59,60],[62,0,62,3],[62,4,62,41],[62,42,62,50],[62,51,62,60],[63,0,63,60],[64,0,64,3],[64,4,64,41],[64,42,64,50],[64,51,64,60],[65,0,65,60],[66,0,66,3],[66,4,66,41],[66,42,66,50],[66,51,66,60],[67,0,67,3],[67,4,67,41],[67,42,67,50],[67,51,67,60],[70,0,70,3],[70,4,70,41],[70,42,70,50],[70,51,70,60],[71,0,71,3],[71,4,71,41],[71,42,71,50],[71,51,71,60],[68,0,68,3],[68,4,68,41],[68,42,68,50],[68,51,68,60],[69,0,69,3],[69,4,69,41],[69,42,69,50],[69,51,69,60],[74,0,74,3],[74,4,74,41],[74,42,74,50],[74,51,74,60],[75,0,75,3],[75,4,75,41],[75,42,75,50],[75,51,75,60],[72,0,72,3],[72,4,72,41],[72,42,72,50],[72,51,72,60],[73,0,73,3],[73,4,73,41],[73,42,73,50],[73,51,73,60],[78,0,78,3],[78,4,78,41],[78,42,78,50],[78,51,78,60],[79,0,79,3],[79,4,79,41],[79,42,79,60],[76,0,76,3],[76,4,76,41],[76,42,76,50],[76,51,76,60],[77,0,77,3],[77,4,77,41],[77,42,77,50],[77,51,77,60],[120,0,120,3],[120,4,120,41],[118,0,118,3],[118,4,118,41],[118,42,118,50],[118,51,118,60],[119,0,119,3],[119,4,119,41],[119,42,119,50],[119,51,119,60],[120,42,120,60],[117,0,117,3],[117,4,117,41],[117,42,117,50],[117,51,117,60],[114,0,114,3],[114,4,114,41],[114,42,114,50],[114,51,114,60],[116,0,116,3],[116,4,116,41],[116,42,116,50],[116,51,116,60],[115,0,115,3],[115,4,115,41],[115,42,115,50],[115,51,115,60],[112,0,112,3],[112,4,112,41],[112,42,112,50],[112,51,112,60],[113,0,113,3],[113,4,113,41],[113,42,113,50],[113,51,113,60],[110,0,110,3],[110,4,110,41],[110,42,110,50],[110,51,110,60],[111,0,111,3],[111,4,111,41],[111,42,111,50],[111,51,111,60],[108,0,108,3],[108,4,108,41],[108,42,108,50],[108,51,108,60],[109,0,109,3],[109,4,109,41],[109,42,109,50],[109,51,109,60],[106,0,106,60],[107,0,107,3],[107,4,107,41],[107,42,107,50],[107,51,107,60],[95,4,95,41],[95,42,95,50],[95,51,95,60],[101,0,101,3],[101,4,101,41],[101,42,101,50],[101,51,101,60],[98,0,98,3],[98,4,98,41],[98,42,98,50],[98,51,98,60],[100,0,100,3],[100,4,100,41],[100,42,100,50],[100,51,100,60],[99,0,99,3],[99,4,99,41],[99,42,99,50],[99,51,99,60],[97,0,97,3],[97,4,97,41],[97,42,97,50],[97,51,97,60],[94,0,94,3],[94,4,94,41],[94,42,94,50],[94,51,94,60],[87,0,87,60],[88,0,88,60],[96,0,96,3],[96,4,96,41],[96,42,96,50],[96,51,96,60],[92,0,92,3],[92,4,92,41],[92,42,92,50],[92,51,92,60],[93,0,93,3],[93,4,93,41],[93,42,93,50],[93,51,93,60],[89,0,89,60],[91,0,91,3],[91,4,91,41],[91,42,91,50],[91,51,91,60],[95,0,95,3]]}
[]
[null,null,null,null,null,null,null,"MINISTERUL AGRICULTURII ŞI DEZVOLTĂRII RURALE",null,null,null,null,null,null,null,null,null,null,null,null,null,null,null,null,null,null,null,null,null,null,null,null,null,null,null,null,null,null,null,null,null,null,"Anexa A3"]
[]
[null,null,null,null,null,null,null,"AGENŢIA PENTRU FINANŢAREA INVESTIŢIILOR RURALE",null,null,null,null,null,null,null,null,null,null,null,null,null,null,null,null,null,null,null,null,null,null,null,null,null,null,null,null,null,null,null,null,null,null,null,null,null,null,null,null,null,null,null,"Nr.2"]
[]
[]
[]
["(Titlu deviz)"]
["Deviz capitolul 2- Cheltuieli pentru asigurarea utilităţilor necesare obiectivului - EURO"]
["Nr.crt",null,null,null,"Specificaţie",null,null,null,null,null,null,null,null,null,null,null,null,null,null,null,null,null,null,null,null,null,null,null,null,null,null,null,null,null,null,null,null,null,null,null,null,null,"Valoare eligibilă",null,null,null,null,null,null,null,null,"Valoare\nneeligibilă"]
[1,null,null,null,"Alimentare cu apă"]
[2,null,null,null,"Canalizare"]
[3,null,null,null,"Alimentare cu gaze naturale"]
[4,null,null,null,"Alimentare cu agent termic"]
[5,null,null,null,"Alimentare cu energie electrică"]
[6,null,null,null,"Telecomunicaţii (telefonie, radio-tv,etc)"]
[7,null,null,null,"Alte tipuri de reţele exterioare"]
[8,null,null,null,"Drumuri de acces"]
[null,null,null,null,"Total valoare fără TVA",null,null,null,null,null,null,null,null,null,null,null,null,null,null,null,null,null,null,null,null,null,null,null,null,null,null,null,null,null,null,null,null,null,null,null,null,null,{"$f":"SUM(AQ11:AY18)","v":0},null,null,null,null,null,null,null,null,{"$f":"SUM(AZ11:BI18)","v":0}]
[null,null,null,null,"Valoare TVA aferentă cheltuielilor eligibile şi neeligibile"]
["TOTAL DEVIZ CAPITOLUL 2 (inclusiv TVA)",null,null,null,null,null,null,null,null,null,null,null,null,null,null,null,null,null,null,null,null,null,null,null,null,null,null,null,null,null,null,null,null,null,null,null,null,null,null,null,null,null,{"$f":"AQ19+AZ19+AQ20+AZ20","v":0}]
[]
[" Deviz capitolul 5 - Alte cheltuieli - EURO"]
["Nr.crt",null,null,null,"Specificaţie",null,null,null,null,null,null,null,null,null,null,null,null,null,null,null,null,null,null,null,null,null,null,null,null,null,null,null,null,null,null,null,null,null,null,null,null,null,"Valoare eligibilă",null,null,null,null,null,null,null,null,"Valoare\nneeligibilă"]
[]
["5.1 ",null,null,null,"Organizare de şantier",null,null,null,null,null,null,null,null,null,null,null,null,null,null,null,null,null,null,null,null,null,null,null,null,null,null,null,null,null,null,null,null,null,null,null,null,null,{"$f":"SUM(AQ27:AY28)","v":0},null,null,null,null,null,null,null,null,{"$f":"SUM(AZ27:BI28)","v":0}]
["5.1.1",null,null,null,"lucrări de construcţii şi instalaţii aferente organizării de şantier"]
["5.1.2",null,null,null,"cheltuieli conexe organizării de şantier"]
["5.2",null,null,null,"Comisioane, taxe",null,null,null,null,null,null,null,null,null,null,null,null,null,null,null,null,null,null,null,null,null,null,null,null,null,null,null,null,null,null,null,null,null,null,null,null,null,{"$f":"SUM(AQ31:AY34)","v":0},null,null,null,null,null,null,null,null,{"$f":"SUM(AZ30:BI36)","v":0}]
[null,null,null,null,"comisionul băncii finanţatoare"]
[null,null,null,null,"cota aferentă Inspectoratului de Stat în Construcţii pentru controlul calităţii lucrărilor de construcţii"]
[null,null,null,null,"cota pentru controlul statului în amenajarea teritoriului, urbanism şi pentru autorizarea lucrărilor de construcţii"]
[null,null,null,null,"prime de asigurare din sarcina autorităţii contractante"]
[null,null,null,null,"alte cheltuieli de aceeaşi natură, stabilite în condiţiile legii"]
[null,null,null,null,"cota aferentă Casei Sociale a Constructorilor"]
["5.3",null,null,null," Cheltuieli diverse si neprevazute"]
[null,null,null,null,"TOTAL DEVIZ CAPITOLUL 5",null,null,null,null,null,null,null,null,null,null,null,null,null,null,null,null,null,null,null,null,null,null,null,null,null,null,null,null,null,null,null,null,null,null,null,null,null,{"$f":"AQ26+AQ29","v":0},null,null,null,null,null,null,null,null,{"$f":"AZ26+AZ29+AZ36","v":0}]
[null,null,null,null,"VALOARE TVA aferentă cheltuielilor eligibile şi neeligibile"]
[null,null,null,null,"TOTAL DEVIZ CAPITOLUL 5 ( inclusiv TVA)",null,null,null,null,null,null,null,null,null,null,null,null,null,null,null,null,null,null,null,null,null,null,null,null,null,null,null,null,null,null,null,null,null,null,null,null,null,{"$f":"AQ37+AZ37+AQ38+AZ38","v":0}]
[]
[]
[]
[null,null,null,null,null,null,null,"MINISTERUL AGRICULTURII ŞI DEZVOLTĂRII RURALE",null,null,null,null,null,null,null,null,null,null,null,null,null,null,null,null,null,null,null,null,null,null,null,null,null,null,null,null,null,null,null,null,null,null,"Anexa A3"]
[]
[null,null,null,null,null,null,null,"AGENŢIA PENTRU FINANŢAREA INVESTIŢIILOR RURALE",null,null,null,null,null,null,null,null,null,null,null,null,null,null,null,null,null,null,null,null,null,null,null,null,null,null,null,null,null,null,null,null,null,null,null,null,null,null,null,null,null,null,null,"Nr.3"]
[]
[]
[]
["(Titlu deviz)"]
["Deviz capitolul 2- Cheltuieli pentru asigurarea utilităţilor necesare obiectivului - EURO"]
["Nr.crt",null,null,null,"Specificaţie",null,null,null,null,null,null,null,null,null,null,null,null,null,null,null,null,null,null,null,null,null,null,null,null,null,null,null,null,null,null,null,null,null,null,null,null,null,"Valoare eligibilă",null,null,null,null,null,null,null,null,"Valoare\nneeligibilă"]
[1,null,null,null,"Alimentare cu apă"]
[2,null,null,null,"Canalizare"]
[3,null,null,null,"Alimentare cu gaze naturale"]
[4,null,null,null,"Alimentare cu agent termic"]
[5,null,null,null,"Alimentare cu energie electrică"]
[6,null,null,null,"Telecomunicaţii (telefonie, radio-tv,etc)"]
[7,null,null,null,"Alte tipuri de reţele exterioare"]
[8,null,null,null,"Drumuri de acces"]
[null,null,null,null,"Total valoare fără TVA",null,null,null,null,null,null,null,null,null,null,null,null,null,null,null,null,null,null,null,null,null,null,null,null,null,null,null,null,null,null,null,null,null,null,null,null,null,{"$f":"SUM(AQ52:AY59)","v":0},null,null,null,null,null,null,null,null,{"$f":"SUM(AZ52:BI59)","v":0}]
[null,null,null,null,"Valoare TVA aferentă cheltuielilor eligibile şi neeligibile"]
["TOTAL DEVIZ CAPITOLUL 2 (inclusiv TVA)",null,null,null,null,null,null,null,null,null,null,null,null,null,null,null,null,null,null,null,null,null,null,null,null,null,null,null,null,null,null,null,null,null,null,null,null,null,null,null,null,null,{"$f":"AQ60+AZ60+AQ61+AZ61","v":0}]
[]
[" Deviz capitolul 5 - Alte cheltuieli - EURO"]
["Nr.crt",null,null,null,"Specificaţie",null,null,null,null,null,null,null,null,null,null,null,null,null,null,null,null,null,null,null,null,null,null,null,null,null,null,null,null,null,null,null,null,null,null,null,null,null,"Valoare eligibilă",null,null,null,null,null,null,null,null,"Valoare\nneeligibilă"]
[]
["5.1 ",null,null,null,"Organizare de şantier",null,null,null,null,null,null,null,null,null,null,null,null,null,null,null,null,null,null,null,null,null,null,null,null,null,null,null,null,null,null,null,null,null,null,null,null,null,{"$f":"SUM(AQ68:AY69)","v":0},null,null,null,null,null,null,null,null,{"$f":"SUM(AZ68:BI69)","v":0}]
["5.1.1",null,null,null,"lucrări de construcţii şi instalaţii aferente organizării de şantier"]
["5.1.2",null,null,null,"cheltuieli conexe organizării de şantier"]
["5.2",null,null,null,"Comisioane, taxe",null,null,null,null,null,null,null,null,null,null,null,null,null,null,null,null,null,null,null,null,null,null,null,null,null,null,null,null,null,null,null,null,null,null,null,null,null,{"$f":"SUM(AQ72:AY75)","v":0},null,null,null,null,null,null,null,null,{"$f":"SUM(AZ71:BI77)","v":0}]
[null,null,null,null,"comisionul băncii finanţatoare"]
[null,null,null,null,"cota aferentă Inspectoratului de Stat în Construcţii pentru controlul calităţii lucrărilor de construcţii"]
[null,null,null,null,"cota pentru controlul statului în amenajarea teritoriului, urbanism şi pentru autorizarea lucrărilor de construcţii"]
[null,null,null,null,"prime de asigurare din sarcina autorităţii contractante"]
[null,null,null,null,"alte cheltuieli de aceeaşi natură, stabilite în condiţiile legii"]
[null,null,null,null,"cota aferentă Casei Sociale a Constructorilor"]
["5.3",null,null,null," Cheltuieli diverse si neprevazute"]
[null,null,null,null,"TOTAL DEVIZ CAPITOLUL 5",null,null,null,null,null,null,null,null,null,null,null,null,null,null,null,null,null,null,null,null,null,null,null,null,null,null,null,null,null,null,null,null,null,null,null,null,null,{"$f":"AQ67+AQ70","v":0},null,null,null,null,null,null,null,null,{"$f":"AZ67+AZ70+AZ77","v":0}]
[null,null,null,null,"VALOARE TVA aferentă cheltuielilor eligibile şi neeligibile"]
[null,null,null,null,"TOTAL DEVIZ CAPITOLUL 5 ( inclusiv TVA)",null,null,null,null,null,null,null,null,null,null,null,null,null,null,null,null,null,null,null,null,null,null,null,null,null,null,null,null,null,null,null,null,null,null,null,null,null,{"$f":"AQ78+AZ78+AQ79+AZ79","v":0}]
[]
[]
[null,null,null,null,null,null,null,"MINISTERUL AGRICULTURII ŞI DEZVOLTĂRII RURALE",null,null,null,null,null,null,null,null,null,null,null,null,null,null,null,null,null,null,null,null,null,null,null,null,null,null,null,null,null,null,null,null,null,null,"Anexa A3\nHG 907/2016"]
[]
[null,null,null,null,null,null,null,"AGENŢIA PENTRU FINANŢAREA INVESTIŢIILOR RURALE"]
[]
[]
[]
["(Titlu deviz)"]
["Deviz capitolul 2- Cheltuieli pentru asigurarea utilităţilor necesare obiectivului - EURO"]
["Nr.crt",null,null,null,"Specificaţie",null,null,null,null,null,null,null,null,null,null,null,null,null,null,null,null,null,null,null,null,null,null,null,null,null,null,null,null,null,null,null,null,null,null,null,null,null,"Valoare eligibilă",null,null,null,null,null,null,null,null,"Valoare\nneeligibilă"]
[1,null,null,null,"Alimentare cu apă"]
[2,null,null,null,"Canalizare"]
[3,null,null,null,"Alimentare cu gaze naturale"]
[4,null,null,null,"Alimentare cu agent termic"]
[5,null,null,null,"Alimentare cu energie electrică"]
[6,null,null,null,"Telecomunicaţii (telefonie, radio-tv,etc)"]
[7,null,null,null,"Drumuri de acces"]
[8,null,null,null,"Căi ferate industriale"]
[9,null,null,null,"Alte utilități"]
[null,null,null,null,"TOTAL DEVIZ CAPITOLUL 2",null,null,null,null,null,null,null,null,null,null,null,null,null,null,null,null,null,null,null,null,null,null,null,null,null,null,null,null,null,null,null,null,null,null,null,null,null,{"$f":"SUM(AQ92:AY100)","v":0},null,null,null,null,null,null,null,null,{"$f":"SUM(AZ92:BI100)","v":0}]
[null,null,null,null,"Valoare TVA aferentă cheltuielilor eligibile şi neeligibile"]
["TOTAL DEVIZ CAPITOLUL 2 (inclusiv TVA)",null,null,null,null,null,null,null,null,null,null,null,null,null,null,null,null,null,null,null,null,null,null,null,null,null,null,null,null,null,null,null,null,null,null,null,null,null,null,null,null,null,{"$f":"AQ101+AZ101+AQ102+AZ102","v":0}]
[]
[" Deviz capitolul 5 - Alte cheltuieli - EURO"]
["Nr.crt",null,null,null,"Specificaţie",null,null,null,null,null,null,null,null,null,null,null,null,null,null,null,null,null,null,null,null,null,null,null,null,null,null,null,null,null,null,null,null,null,null,null,null,null,"Valoare eligibilă",null,null,null,null,null,null,null,null,"Valoare\nneeligibilă"]
[]
["5.1 ",null,null,null,"Organizare de şantier",null,null,null,null,null,null,null,null,null,null,null,null,null,null,null,null,null,null,null,null,null,null,null,null,null,null,null,null,null,null,null,null,null,null,null,null,null,{"$f":"SUM(AQ109:AY110)","v":0},null,null,null,null,null,null,null,null,{"$f":"SUM(AZ109:BI110)","v":0}]
[null,null,null,null,"5.1.1 Lucrări de construcţii şi instalaţii aferente organizării de şantier"]
[null,null,null,null,"5.1.2 Cheltuieli conexe organizării de şantier"]
["5.2",null,null,null,"Comisioane, cote, taxe, costul creditului",null,null,null,null,null,null,null,null,null,null,null,null,null,null,null,null,null,null,null,null,null,null,null,null,null,null,null,null,null,null,null,null,null,null,null,null,null,{"$f":"SUM(AQ113:AQ116)-AQ115","v":0},null,null,null,null,null,null,null,null,{"$f":"SUM(AZ112:BI116)","v":0}]
[null,null,null,null,"5.2.1. Comisioanele şi dobânzile aferente creditului băncii finanţatoare",null,null,null,null,null,null,null,null,null,null,null,null,null,null,null,null,null,null,null,null,null,null,null,null,null,null,null,null,null,null,null,null,null,null,null,null,null,1]
[null,null,null,null,"5.2.2. Cota aferentă ISC pentru controlul calităţii lucrărilor de\nconstrucţii"]
[null,null,null,null,"5.2.3. Cota aferentă ISC pentru controlul statului în amenajarea teritoriului, urbanism şi pentru autorizarea lucrărilor de construcţii"]
[null,null,null,null,"5.2.4. Cota aferentă Casei Sociale a Constructorilor - CSC"]
[null,null,null,null,"5.2.5. Taxe pentru acorduri, avize conforme şi autorizaţia de construire/desfiinţare"]
["5.3",null,null,null," Cheltuieli diverse si neprevazute"]
["5.3",null,null,null,"Cheltuieli pentru informare și publicitate",null,null,null,null,null,null,null,null,null,null,null,null,null,null,null,null,null,null,null,null,null,null,null,null,null,null,null,null,null,null,null,null,null,null,null,null,null,0,null,null,null,null,null,null,null,null,0]
[null,null,null,null,"TOTAL DEVIZ CAPITOLUL 5",null,null,null,null,null,null,null,null,null,null,null,null,null,null,null,null,null,null,null,null,null,null,null,null,null,null,null,null,null,null,null,null,null,null,null,null,null,{"$f":"AQ108+AQ111+AQ118","v":0},null,null,null,null,null,null,null,null,{"$f":"AZ118+AZ117+AZ111+AZ108","v":0}]
[null,null,null,null,"VALOARE TVA aferentă cheltuielilor eligibile şi neeligibile"]
[null,null,null,null,"TOTAL DEVIZ CAPITOLUL 5 ( inclusiv TVA)",null,null,null,null,null,null,null,null,null,null,null,null,null,null,null,null,null,null,null,null,null,null,null,null,null,null,null,null,null,null,null,null,null,null,null,null,null,{"$f":"AQ119+AZ119+AQ120+AZ120","v":0}]